Ref No,Fund Type,Dept,Cost Centre Description    ,Description    ,Creditor Name    ,GL Code Net Amount,Payment date        
2,Revenue,CAHD,Training - Adult Services,Training Expenses,Acorn Health & Safety Limited,465, 02-May-2017
3,Revenue,CAHD,Pathway 2 - (Interim Beds),Permanent Nursing,Brunelcare,51087, 02-May-2017
4,Revenue,CAHD,Information Systems - Software,Software Support & Maintenance,Capita Business Services Ltd,178473.07, 02-May-2017
5,Revenue,CAHD,Home Care - Elderly - South,Other Small Contracts,Cherish Able Care Limited,828, 02-May-2017
6,Revenue,CAHD,Bed and Breakfast,Bed & Breakfast,Connolly & Callaghan Limited,476, 02-May-2017
7,Revenue,CAHD,Bed and Breakfast,Bed & Breakfast,Connolly & Callaghan Limited,525, 02-May-2017
8,Revenue,CAHD,Bed and Breakfast,Bed & Breakfast,Connolly & Callaghan Limited,490, 02-May-2017
9,Revenue,CAHD,Bed and Breakfast,Bed & Breakfast,Connolly & Callaghan Limited,616, 02-May-2017
10,Revenue,CAHD,Bed and Breakfast,Bed & Breakfast,Connolly & Callaghan Limited,490, 02-May-2017
11,Revenue,CAHD,Bed and Breakfast,Bed & Breakfast,Connolly & Callaghan Limited,581, 02-May-2017
12,Revenue,CAHD,18-25 Year Olds,Day Care / Social Activities,Headway Bristol,63.96, 02-May-2017
13,Revenue,CAHD,Home Care - Elderly - South,Day Care / Social Activities,Headway Bristol,447.72, 02-May-2017
14,Revenue,CAHD,Home Care - Elderly - South,Other Small Contracts,Headway Bristol,671.58, 02-May-2017
15,Revenue,CAHD,Home Care - Elderly - North,Day Care / Social Activities,Headway Bristol,1172.6, 02-May-2017
16,Revenue,CAHD,Home Care - Elderly - North,Other Small Contracts,Headway Bristol,191.88, 02-May-2017
17,Revenue,CAHD,Home Care - Elderly - South,Other Small Contracts,Kensington Community Care,1792, 02-May-2017
18,Revenue,CAHD,Home Care - Elderly - North,Other Small Contracts,Kensington Community Care,6413.76, 02-May-2017
19,Revenue,CAHD,Home Care - Elderly - North,Day Care / Social Activities,Milestones Trust,1834.46, 02-May-2017
20,Revenue,CAHD,Home Care - Elderly - North,Other Small Contracts,Milestones Trust,740.04, 02-May-2017
21,Revenue,CAHD,Social Lettings Agency,Fees - General,Individual,12.22, 02-May-2017
22,Revenue,CAHD,Social Lettings Agency,Other Supplies & Services,Individual,690.32, 02-May-2017
23,Revenue,CAHD,Home Care - Elderly - South,Day Care / Social Activities,Selborne Care Limited,815.97, 02-May-2017
24,Revenue,CAHD,Home Care - Elderly - South,Supported Living,Selborne Care Limited,1014.2, 02-May-2017
25,Revenue,CAHD,Home Care - Elderly - North,Day Care / Social Activities,Selborne Care Limited,368.8, 02-May-2017
26,Revenue,CAHD,Home Care - Elderly - North,Supported Living,Selborne Care Limited,55.32, 02-May-2017
27,Revenue,CAHD,Home Care - Elderly - South,Day Care / Social Activities,Selborne Care Limited,875.9, 02-May-2017
28,Revenue,CAHD,Home Care - Elderly - South,Other Small Contracts,Selborne Care Limited,73.76, 02-May-2017
29,Revenue,CAHD,Home Care - Elderly - South,Supported Living,Selborne Care Limited,1106.4, 02-May-2017
30,Revenue,CAHD,Home Care - Elderly - North,Day Care / Social Activities,Selborne Care Limited,368.8, 02-May-2017
31,Revenue,CAHD,Home Care - Elderly - North,Supported Living,Selborne Care Limited,55.32, 02-May-2017
32,Revenue,CAHD,Home Care - Elderly - South,Day Care / Social Activities,Smile Independent Living Support Limited,96, 02-May-2017
33,Revenue,CAHD,Home Care - Elderly - South,Other Small Contracts,Smile Independent Living Support Limited,249.6, 02-May-2017
34,Revenue,CAHD,Home Care - Elderly - North,Day Care / Social Activities,Smile Independent Living Support Limited,384, 02-May-2017
35,Revenue,CAHD,Home Care - Elderly - North,Other Small Contracts,Smile Independent Living Support Limited,556.8, 02-May-2017
36,Revenue,CAHD,Home Care - Elderly - North,Supported Living,Smile Independent Living Support Limited,216, 02-May-2017
37,Revenue,CAHD,Home Care - Elderly - South,Day Care / Social Activities,3 Trees Community Support Ltd,93.4, 03-May-2017
38,Revenue,CAHD,Home Care - Elderly - North,Day Care / Social Activities,3 Trees Community Support Ltd,1018.06, 03-May-2017
39,Revenue,CAHD,Home Care - Elderly - North,Other Small Contracts,3 Trees Community Support Ltd,952.68, 03-May-2017
40,Revenue,CAHD,Home Care - Elderly - North,Supported Living,3 Trees Community Support Ltd,8234.66, 03-May-2017
41,Revenue,CAHD,Tenancy Start Up Scheme,Other Supplies & Services,Acorn Property Letting and Management,1390, 03-May-2017
42,Revenue,CAHD,Home Care - Elderly - South,Other Small Contracts,AliMo Care Ltd,1511.64, 03-May-2017
43,Revenue,CAHD,Home Care - Elderly - North,Other Small Contracts,Bibby Factors Bristol Limited,6092.12, 03-May-2017
44,Revenue,CAHD,Social Lettings Agency,Fees - General,Individual,11.41, 03-May-2017
45,Revenue,CAHD,Social Lettings Agency,Other Supplies & Services,Individual,746.54, 03-May-2017
46,Revenue,CAHD,Home Care - Elderly - South,Other Small Contracts,Caring Comes 1st Ltd,1888.77, 03-May-2017
47,Revenue,CAHD,Intermediate Care Accommodation,Other Supplies & Services,Merlin Housing Society,553.36, 03-May-2017
48,Revenue,CAHD,Tenancy Start Up Scheme,Other Supplies & Services,Individual,1400, 03-May-2017
49,Revenue,CAHD,Home Care - Elderly - South,Day Care / Social Activities,Mrs B Kimber -  CM2000,1669.06, 03-May-2017
50,Revenue,CAHD,Home Care - Elderly - South,Other Small Contracts,Mrs B Kimber -  CM2000,8894.82, 03-May-2017
51,Revenue,CAHD,Home Care - Elderly - South,Supported Living,Mrs B Kimber -  CM2000,35.84, 03-May-2017
52,Revenue,CAHD,Home Care - Elderly - North,Day Care / Social Activities,Mrs B Kimber -  CM2000,313.6, 03-May-2017
53,Revenue,CAHD,Home Care - Elderly - North,Other Small Contracts,Mrs B Kimber -  CM2000,2583.28, 03-May-2017
54,Revenue,CAHD,Training - Adult Services,Training Expenses,Nelson Training Limited,1178.78, 03-May-2017
55,Revenue,CAHD,Information Systems - Software,Software Support & Maintenance,Oracle Corporation UK Limited,590.9, 03-May-2017
56,Revenue,CAHD,Home Care - Elderly - South,Other Small Contracts,Right At Home (Bristol),1202.88, 03-May-2017
57,Revenue,CAHD,Home Care - Elderly - North,Other Small Contracts,Seraphim Home Care,556.92, 03-May-2017
58,Revenue,CAHD,Home Care - Elderly - North,Day Care / Social Activities,Silva Care Limited,514.08, 03-May-2017
59,Revenue,CAHD,Care Payment,Support,Individual,1402.7, 03-May-2017
60,Revenue,CAHD,Minor Adaptations Service,Daily Living Equipment,TVM Cheltenham Limited,748.71, 03-May-2017
61,Revenue,CAHD,Day Care - South,Day Care / Social Activities,United Response,555.25, 03-May-2017
62,Revenue,CAHD,Home Care - Elderly - South,Day Care / Social Activities,About Me Care and Support Limited,1341.68, 04-May-2017
63,Revenue,CAHD,Home Care - Elderly - South,Day Care / Social Activities,About Me Care and Support Limited,616.74, 04-May-2017
64,Revenue,CAHD,Pathway 1 - Re-Ablement Home Care,Other Small Contracts,Brunelcare,71000, 04-May-2017
65,Revenue,CAHD,Bed and Breakfast,Bed & Breakfast,Connolly & Callaghan Limited,616, 04-May-2017
66,Revenue,CAHD,Information Systems - Software,Software Support & Maintenance,IBM United Kingdom,1635, 04-May-2017
67,Revenue,CAHD,18-25 Year Olds,Day Care / Social Activities,Make it Mentoring CIC Limited,1960.14, 04-May-2017
68,Revenue,CAHD,18-25 Year Olds,Day Care / Social Activities,Make it Mentoring CIC Limited,1730.38, 04-May-2017
69,Revenue,CAHD,Home Care - Elderly - South,Day Care / Social Activities,Moving On,1361.6, 04-May-2017
70,Revenue,CAHD,Social Lettings Agency,Fees - General,Individual,10, 04-May-2017
71,Revenue,CAHD,Social Lettings Agency,Other Supplies & Services,Individual,565, 04-May-2017
72,Revenue,CAHD,Home Care - Elderly - South,Other Small Contracts,Right At Home (Bristol),1223.04, 04-May-2017
73,Revenue,CAHD,Home Care - Elderly - South,Other Small Contracts,AliMo Care Ltd,1538.16, 05-May-2017
74,Revenue,CAHD,Younger Adult Mental Health,Health Services (Third Party Payments),Avon & Wiltshire Mental Health,1666.67, 05-May-2017
75,Revenue,CAHD,Home Care - Elderly - South,Other Small Contracts,Brunelcare,1913.86, 05-May-2017
76,Revenue,CAHD,Home Care - Elderly - North,Other Small Contracts,Brunelcare,870.74, 05-May-2017
77,Revenue,CAHD,Home Care - Elderly - North,Day Care / Social Activities,Camphill Communities Thornbury Limited,957.02, 05-May-2017
78,Revenue,CAHD,Home Care - Elderly - North,Other Small Contracts,Camphill Communities Thornbury Limited,158.04, 05-May-2017
79,Revenue,CAHD,Home Care - Elderly - North,Supported Living,Camphill Communities Thornbury Limited,970.19, 05-May-2017
80,Revenue,CAHD,Bed and Breakfast,Bed & Breakfast,Connolly & Callaghan Limited,616, 05-May-2017
81,Revenue,CAHD,Bed and Breakfast,Bed & Breakfast,Connolly & Callaghan Limited,791, 05-May-2017
82,Revenue,CAHD,Home Care - Elderly - South,Other Small Contracts,Helping Hands Homecare,1091.74, 05-May-2017
83,Revenue,CAHD,Home Care - Elderly - North,Day Care / Social Activities,Helping Hands Homecare,176.8, 05-May-2017
84,Revenue,CAHD,Home Care - Elderly - North,Other Small Contracts,Helping Hands Homecare,5119.66, 05-May-2017
85,Revenue,CAHD,Bed and Breakfast,Bed & Breakfast,Knightstone Housing Association Ltd,532.24, 05-May-2017
86,Revenue,CAHD,Social Lettings Agency,Fees - General,Individual,13.6, 05-May-2017
87,Revenue,CAHD,Social Lettings Agency,Other Supplies & Services,Individual,768.4, 05-May-2017
88,Revenue,CAHD,18-25 Year Olds,Day Care / Social Activities,Make it Mentoring CIC Limited,732.36, 05-May-2017
89,Revenue,CAHD,Younger MH non-res purchasing,Other Small Contracts,Maples Community Care Limited,759, 05-May-2017
90,Revenue,CAHD,Younger MH non-res purchasing,Supported Living,Maples Community Care Limited,1194.16, 05-May-2017
91,Revenue,CAHD,Home Care - Elderly - South,Supported Living,Maples Community Care Limited,3213.1, 05-May-2017
92,Revenue,CAHD,Younger MH non-res purchasing,Supported Living,Maples Community Care Limited,1214.4, 05-May-2017
93,Revenue,CAHD,Younger MH non-res purchasing,Supported Living,Maples Community Care Limited,809.6, 05-May-2017
94,Revenue,CAHD,Younger MH non-res purchasing,Other Small Contracts,Maples Community Care Limited,566.72, 05-May-2017
95,Revenue,CAHD,Care Payment,Support ,Individual,2679.9, 05-May-2017
96,Revenue,CAHD,Homeless - Private Sector Leasing,Other Supplies & Services,Individual,570, 05-May-2017
97,Revenue,CAHD,Care Payment,Support,Individual,1396.85, 05-May-2017
98,Revenue,CAHD,Care Payment,Support,Individual,517, 05-May-2017
99,Revenue,CAHD,Newton House,Security Systems,National Security Group,78.95, 05-May-2017
100,Revenue,CAHD,Supporting People Programme,Grants to Voluntary Bodies,People Potential Possibilities : T/A P3,12151, 05-May-2017
101,Revenue,CAHD,Supporting People Programme,Grants to Voluntary Bodies,People Potential Possibilities : T/A P3,94769, 05-May-2017
102,Revenue,CAHD,18-25 Year Olds,Day Care / Social Activities,Redefine Mentoring Ltd,500, 05-May-2017
103,Revenue,CAHD,Training - Adult Services,Training Expenses,St Peter`s Hospice,1800, 05-May-2017
104,Revenue,CAHD,Information Systems - Software,Software Support & Maintenance,This Is Focus Limited,1065, 05-May-2017
105,Revenue,CAHD,Home Care - Elderly - South,Other Small Contracts,United Response,6638.4, 05-May-2017
106,Revenue,CAHD,Home Care - Elderly - North,Day Care / Social Activities,United Response,1737.97, 05-May-2017
107,Revenue,CAHD,Home Care - Elderly - North,Other Small Contracts,United Response,2655.36, 05-May-2017
108,Revenue,CAHD,Home Care - Elderly - North,Supported Living,United Response,1945.42, 05-May-2017
109,Revenue,CAHD,Alexandra Way,Laundry Services,Wash Technix,437.1, 05-May-2017
110,Revenue,CAHD,Purchase of RAC places,Other L.A.'s - General,Bath & North East Somerset Council,1772, 08-May-2017
111,Revenue,CAHD,Purchase of RAC places,Other L.A.'s - General,Bath & North East Somerset Council,1207.6, 08-May-2017
112,Revenue,CAHD,Pathway 1 - Re-Ablement Home Care,Private & Voluntary Home Care,Brunelcare,24132.35, 08-May-2017
113,Revenue,CAHD,18-25 Year Olds,Day Care / Social Activities,Make it Mentoring CIC Limited,832.88, 08-May-2017
114,Revenue,CAHD,Social Lettings Agency,Fees - General,Individual,10.53, 08-May-2017
115,Revenue,CAHD,Social Lettings Agency,Other Supplies & Services,Individual,595.11, 08-May-2017
116,Revenue,CAHD,Social Lettings Agency,Fees - General,Individual,10.53, 08-May-2017
117,Revenue,CAHD,Social Lettings Agency,Other Supplies & Services,Individual,595.11, 08-May-2017
118,Revenue,CAHD,Home Care - Elderly - South,Day Care / Social Activities,Smile Independent Living Support Limited,96, 08-May-2017
119,Revenue,CAHD,Home Care - Elderly - South,Other Small Contracts,Smile Independent Living Support Limited,163.2, 08-May-2017
120,Revenue,CAHD,Home Care - Elderly - North,Day Care / Social Activities,Smile Independent Living Support Limited,384, 08-May-2017
121,Revenue,CAHD,Home Care - Elderly - North,Other Small Contracts,Smile Independent Living Support Limited,556.8, 08-May-2017
122,Revenue,CAHD,Home Care - Elderly - North,Supported Living,Smile Independent Living Support Limited,211.2, 08-May-2017
123,Revenue,CAHD,Alexandra Way,Water Charges,Water2business Limited,579.67, 08-May-2017
124,Revenue,CAHD,Bed Purchasing - South,Permanent Residential,.,801.57, 09-May-2017
125,Revenue,CAHD,South Glos Users in South Glos Homes,Permanent Nursing,.,620.2, 09-May-2017
126,Revenue,CAHD,Bed Purchasing - North,Permanent Nursing,.,3294.28, 09-May-2017
127,Revenue,CAHD,South Glos Users in South Glos Homes,Permanent Nursing,.,620.2, 09-May-2017
128,Revenue,CAHD,South Glos Users in South Glos Homes,Permanent Nursing,.,1316.96, 09-May-2017
129,Revenue,CAHD,Bed Purchasing - South,Permanent Nursing,.,3349.56, 09-May-2017
130,Revenue,CAHD,South Glos Users in South Glos Homes,Permanent Nursing,.,620.2, 09-May-2017
131,Revenue,CAHD,Bed Purchasing - North,Permanent Nursing,.,3294.28, 09-May-2017
132,Revenue,CAHD,South Glos Users in South Glos Homes,Permanent Nursing,.,620.2, 09-May-2017
133,Revenue,CAHD,South Glos Users in South Glos Homes,Permanent Nursing,.,1361.61, 09-May-2017
134,Revenue,CAHD,Bed Purchasing - South,Permanent Nursing,.,3294.28, 09-May-2017
135,Revenue,CAHD,South Glos Users in South Glos Homes,Permanent Nursing,.,620.2, 09-May-2017
136,Revenue,CAHD,Bed Purchasing - Southmead Hospital,Permanent Nursing,.,4800, 09-May-2017
137,Revenue,CAHD,Bed Purchasing - Southmead Hospital,Permanent Nursing,.,2400, 09-May-2017
138,Revenue,CAHD,South Glos Users in South Glos Homes,Permanent Nursing,.,620.2, 09-May-2017
139,Revenue,CAHD,South Glos Users in South Glos Homes,Permanent Nursing,.,602.68, 09-May-2017
140,Revenue,CAHD,South Glos Users in South Glos Homes,Permanent Nursing,.,509.45, 09-May-2017
141,Revenue,CAHD,Bed Purchasing - North,Permanent Residential,.,4254.6, 09-May-2017
142,Revenue,CAHD,South Glos Users in South Glos Homes,Permanent Nursing,.,620.2, 09-May-2017
143,Revenue,CAHD,Bed Purchasing - South,Permanent Nursing,.,3621.48, 09-May-2017
144,Revenue,CAHD,South Glos Users in South Glos Homes,Permanent Nursing,.,620.2, 09-May-2017
145,Revenue,CAHD,Bed Purchasing - North,Permanent Nursing,.,5039.68, 09-May-2017
146,Revenue,CAHD,South Glos Users in South Glos Homes,Permanent Nursing,.,620.2, 09-May-2017
147,Revenue,CAHD,Bed Purchasing - South,Permanent Nursing,.,3824.08, 09-May-2017
148,Revenue,CAHD,Bed Purchasing - Southmead Hospital,Permanent Nursing,.,3824.08, 09-May-2017
149,Revenue,CAHD,South Glos Users in South Glos Homes,Permanent Nursing,.,3214.29, 09-May-2017
150,Revenue,CAHD,South Glos Users in South Glos Homes,Permanent Nursing,.,620.2, 09-May-2017
151,Revenue,CAHD,South Glos Users in South Glos Homes,Permanent Nursing,.,509.45, 09-May-2017
152,Revenue,CAHD,South Glos Users in South Glos Homes,Permanent Nursing,.,620.2, 09-May-2017
153,Revenue,CAHD,South Glos Users in South Glos Homes,Permanent Nursing,.,620.2, 09-May-2017
154,Revenue,CAHD,Bed Purchasing - Southmead Hospital,Respite Planned - Residential,.,3768.36, 09-May-2017
155,Revenue,CAHD,South Glos Users in South Glos Homes,Permanent Nursing,.,620.2, 09-May-2017
156,Revenue,CAHD,South Glos Users in South Glos Homes,Permanent Nursing,.,803.57, 09-May-2017
157,Revenue,CAHD,South Glos Users in South Glos Homes,Permanent Nursing,.,620.2, 09-May-2017
158,Revenue,CAHD,South Glos Users in South Glos Homes,Permanent Nursing,.,509.45, 09-May-2017
159,Revenue,CAHD,South Glos Users in South Glos Homes,Permanent Nursing,.,982.14, 09-May-2017
160,Revenue,CAHD,South Glos Users in South Glos Homes,Permanent Nursing,.,620.2, 09-May-2017
161,Revenue,CAHD,South Glos Users in South Glos Homes,Permanent Nursing,.,509.45, 09-May-2017
162,Revenue,CAHD,Bed Purchasing - North,Permanent Nursing,.,4228.56, 09-May-2017
163,Revenue,CAHD,South Glos Users in South Glos Homes,Permanent Nursing,.,959.82, 09-May-2017
164,Revenue,CAHD,South Glos Users in South Glos Homes,Permanent Nursing,.,620.2, 09-May-2017
165,Revenue,CAHD,South Glos Users in South Glos Homes,Permanent Nursing,.,509.45, 09-May-2017
166,Revenue,CAHD,South Glos Users in South Glos Homes,Permanent Nursing,.,1049.11, 09-May-2017
167,Revenue,CAHD,South Glos Users in South Glos Homes,Permanent Nursing,.,620.2, 09-May-2017
168,Revenue,CAHD,South Glos Users in South Glos Homes,Permanent Nursing,.,620.2, 09-May-2017
169,Revenue,CAHD,South Glos Users in South Glos Homes,Permanent Nursing,.,620.2, 09-May-2017
170,Revenue,CAHD,South Glos Users in South Glos Homes,Permanent Nursing,.,620.2, 09-May-2017
171,Revenue,CAHD,South Glos Users in South Glos Homes,Permanent Nursing,.,620.2, 09-May-2017
172,Revenue,CAHD,South Glos Users in South Glos Homes,Permanent Nursing,.,5513.39, 09-May-2017
173,Revenue,CAHD,South Glos Users in South Glos Homes,Permanent Nursing,.,620.2, 09-May-2017
174,Revenue,CAHD,South Glos Users in South Glos Homes,Permanent Nursing,.,509.45, 09-May-2017
175,Revenue,CAHD,South Glos Users in South Glos Homes,Permanent Nursing,.,620.2, 09-May-2017
176,Revenue,CAHD,South Glos Users in South Glos Homes,Permanent Nursing,.,620.2, 09-May-2017
177,Revenue,CAHD,South Glos Users in South Glos Homes,Permanent Nursing,.,620.2, 09-May-2017
178,Revenue,CAHD,South Glos Users in South Glos Homes,Permanent Nursing,.,620.2, 09-May-2017
179,Revenue,CAHD,South Glos Users in South Glos Homes,Permanent Nursing,.,620.2, 09-May-2017
180,Revenue,CAHD,South Glos Users in South Glos Homes,Permanent Nursing,.,620.2, 09-May-2017
181,Revenue,CAHD,South Glos Users in South Glos Homes,Permanent Nursing,.,691.96, 09-May-2017
182,Revenue,CAHD,South Glos Users in South Glos Homes,Permanent Nursing,.,620.2, 09-May-2017
183,Revenue,CAHD,South Glos Users in South Glos Homes,Permanent Nursing,.,620.2, 09-May-2017
184,Revenue,CAHD,South Glos Users in South Glos Homes,Permanent Nursing,.,620.2, 09-May-2017
185,Revenue,CAHD,South Glos Users in South Glos Homes,Permanent Nursing,.,509.45, 09-May-2017
186,Revenue,CAHD,South Glos Users in South Glos Homes,Permanent Nursing,.,620.2, 09-May-2017
187,Revenue,CAHD,South Glos Users in South Glos Homes,Permanent Nursing,.,620.2, 09-May-2017
188,Revenue,CAHD,South Glos Users in South Glos Homes,Permanent Nursing,.,620.2, 09-May-2017
189,Revenue,CAHD,South Glos Users in South Glos Homes,Permanent Nursing,.,620.2, 09-May-2017
190,Revenue,CAHD,South Glos Users in South Glos Homes,Permanent Nursing,.,2522.32, 09-May-2017
191,Revenue,CAHD,South Glos Users in South Glos Homes,Permanent Nursing,.,620.2, 09-May-2017
192,Revenue,CAHD,South Glos Users in South Glos Homes,Permanent Nursing,.,509.45, 09-May-2017
193,Revenue,CAHD,South Glos Users in South Glos Homes,Permanent Nursing,.,1205.36, 09-May-2017
194,Revenue,CAHD,South Glos Users in South Glos Homes,Permanent Nursing,.,620.2, 09-May-2017
195,Revenue,CAHD,South Glos Users in South Glos Homes,Permanent Nursing,.,509.45, 09-May-2017
196,Revenue,CAHD,South Glos Users in South Glos Homes,Permanent Nursing,.,848.21, 09-May-2017
197,Revenue,CAHD,South Glos Users in South Glos Homes,Permanent Nursing,.,620.2, 09-May-2017
198,Revenue,CAHD,South Glos Users in South Glos Homes,Permanent Nursing,.,509.45, 09-May-2017
199,Revenue,CAHD,Bed Purchasing - North,Permanent Nursing,.,3114.96, 09-May-2017
200,Revenue,CAHD,South Glos Users in South Glos Homes,Permanent Nursing,.,620.2, 09-May-2017
201,Revenue,CAHD,Bed Purchasing - North,Permanent Nursing,.,3294.28, 09-May-2017
202,Revenue,CAHD,South Glos Users in South Glos Homes,Permanent Nursing,.,620.2, 09-May-2017
203,Revenue,CAHD,South Glos Users in South Glos Homes,Permanent Nursing,.,2388.39, 09-May-2017
204,Revenue,CAHD,South Glos Users in South Glos Homes,Permanent Nursing,.,620.2, 09-May-2017
205,Revenue,CAHD,South Glos Users in South Glos Homes,Permanent Nursing,.,509.45, 09-May-2017
206,Revenue,CAHD,Bed Purchasing - Southmead Hospital,Permanent Nursing,.,3824.08, 09-May-2017
207,Revenue,CAHD,Bed Purchasing - Southmead Hospital,Permanent Nursing,.,3505.36, 09-May-2017
208,Revenue,CAHD,Bed Purchasing - Southmead Hospital,Permanent Nursing,.,3824.08, 09-May-2017
209,Revenue,CAHD,South Glos Users in South Glos Homes,Permanent Nursing,.,620.2, 09-May-2017
210,Revenue,CAHD,South Glos Users in South Glos Homes,Permanent Nursing,.,509.45, 09-May-2017
211,Revenue,CAHD,South Glos Users in South Glos Homes,Permanent Nursing,.,620.2, 09-May-2017
212,Revenue,CAHD,Bed Purchasing - North,Permanent Residential,.,3545.52, 09-May-2017
213,Revenue,CAHD,Bed Purchasing - Southmead Hospital,Permanent Residential,.,3571.43, 09-May-2017
214,Revenue,CAHD,18-25 Year Olds,Permanent Residential,1 St Georges House,14038.2, 09-May-2017
215,Revenue,CAHD,18-25 Year Olds,Permanent Residential,5Th Floor Harlech Court,14619.64, 09-May-2017
216,Revenue,CAHD,18-25 Year Olds,Permanent Residential,5Th Floor Harlech Court,14760, 09-May-2017
217,Revenue,CAHD,18-25 Year Olds,Permanent Residential,5Th Floor Harlech Court,13130.76, 09-May-2017
218,Revenue,CAHD,Bed Purchasing - North,Permanent Residential,5Th Floor Harlech Court,15870.6, 09-May-2017
219,Revenue,CAHD,Bed Purchasing - North,Permanent Residential,5Th Floor Harlech Court,7935.3, 09-May-2017
220,Revenue,CAHD,Bed Purchasing - North,Permanent Residential,5Th Floor Harlech Court,7833.46, 09-May-2017
221,Revenue,CAHD,18-25 Year Olds,Respite Planned - Residential,5Th Floor Harlech Court,13412.6, 09-May-2017
222,Revenue,CAHD,Bed Purchasing - North,Permanent Residential,5Th Floor Harlech Court,14104.28, 09-May-2017
223,Revenue,CAHD,Jointly Funded H&SC Packages,Permanent Residential,5Th Floor Harlech Court,3490.16, 09-May-2017
224,Revenue,CAHD,18-25 Year Olds,Permanent Residential,5Th Floor Harlech Court,16704.04, 09-May-2017
225,Revenue,CAHD,Bed Purchasing - South,Permanent Residential,5Th Floor Harlech Court,9985.6, 09-May-2017
226,Revenue,CAHD,Bed purchasing - S28A Under 65 - South,Permanent Residential,5Th Floor Harlech Court,10450.56, 09-May-2017
227,Revenue,CAHD,Bed Purchasing - South,Permanent Residential,5Th Floor Harlech Court,10960.12, 09-May-2017
228,Revenue,CAHD,Bed Purchasing - North,Permanent Nursing,ABI Development Limited,7591.84, 09-May-2017
229,Revenue,CAHD,Bed Purchasing - South,Permanent Nursing,Ambleside Nusing Home,2126.16, 09-May-2017
230,Revenue,CAHD,Bed Purchasing - Southmead Hospital,Permanent Nursing,Amerind Grove Nursing Home,2570.76, 09-May-2017
231,Revenue,CAHD,Bed Purchasing - Southmead Hospital,Permanent Nursing,Amerind Grove Nursing Home,2263.12, 09-May-2017
232,Revenue,CAHD,Bed Purchasing - North,Permanent Residential,Ark Care Homes Ltd,11036.72, 09-May-2017
233,Revenue,CAHD,Bed Purchasing - South,Permanent Nursing,Ash Grove House,2836.4, 09-May-2017
234,Revenue,CAHD,Bed Purchasing - South,Permanent Residential,Ash View House,6260.36, 09-May-2017
235,Revenue,CAHD,S117 Placements PCT,Permanent Residential,Ash View House,7241.6, 09-May-2017
236,Revenue,CAHD,18-25 Year Olds,Permanent Residential,Ash View House,6803.84, 09-May-2017
237,Revenue,CAHD,Section 117 Placements MH Younger,Permanent Residential,Ash View House,4719.08, 09-May-2017
238,Revenue,CAHD,Jointly Funded H&SC Packages,Permanent Residential,Ash View House,2022.48, 09-May-2017
239,Revenue,CAHD,Bed purchasing - Elderly S117 - South,Permanent Residential,Ash View House,6414.04, 09-May-2017
240,Revenue,CAHD,Bed Purchasing - North,Permanent Residential,Aspects 2 Limited,6930.72, 09-May-2017
241,Revenue,CAHD,Bed Purchasing - South,Permanent Residential,Autism Specialised Care Homes,6235.88, 09-May-2017
242,Revenue,CAHD,Bed Purchasing - Southmead Hospital,Permanent Nursing,Bayview Nursing & Residential Home,4998.68, 09-May-2017
243,Revenue,CAHD,Bed Purchasing - Southmead Hospital,Fees & Charges Income - General,Bayview Nursing & Residential Home,1493.71, 09-May-2017
244,Revenue,CAHD,South Glos Users in South Glos Homes,Permanent Nursing,Beaufort Grange Care Home,620.2, 09-May-2017
245,Revenue,CAHD,South Glos Users in South Glos Homes,Permanent Nursing,Beaufort Grange Care Home,620.2, 09-May-2017
246,Revenue,CAHD,South Glos Users in South Glos Homes,Permanent Nursing,Beaufort Grange Care Home,620.2, 09-May-2017
247,Revenue,CAHD,Bed Purchasing - North,Respite Emergency - Residential,Beaufort Grange Care Home,13750, 09-May-2017
248,Revenue,CAHD,Bed Purchasing - North,Respite Emergency - Residential,Beaufort Grange Care Home,3928.57, 09-May-2017
249,Revenue,CAHD,Bed Purchasing - North,Permanent Nursing,Beaufort Grange Care Home,4229.28, 09-May-2017
250,Revenue,CAHD,South Glos Users in South Glos Homes,Permanent Nursing,Beaufort Grange Care Home,620.2, 09-May-2017
251,Revenue,CAHD,South Glos Users in South Glos Homes,Permanent Nursing,Beaufort Grange Care Home,620.2, 09-May-2017
252,Revenue,CAHD,South Glos Users in South Glos Homes,Permanent Nursing,Beaufort Grange Care Home,620.2, 09-May-2017
253,Revenue,CAHD,South Glos Users in South Glos Homes,Permanent Nursing,Beaufort Grange Care Home,620.2, 09-May-2017
254,Revenue,CAHD,South Glos Users in South Glos Homes,Permanent Nursing,Beaufort Grange Care Home,620.2, 09-May-2017
255,Revenue,CAHD,South Glos Users in South Glos Homes,Permanent Nursing,Beaufort Grange Care Home,620.2, 09-May-2017
256,Revenue,CAHD,South Glos Users in South Glos Homes,Permanent Nursing,Beaufort Grange Care Home,620.2, 09-May-2017
257,Revenue,CAHD,South Glos Users in South Glos Homes,Permanent Nursing,Beaufort Grange Care Home,620.2, 09-May-2017
258,Revenue,CAHD,South Glos Users in South Glos Homes,Permanent Nursing,Beaufort Grange Care Home,620.2, 09-May-2017
259,Revenue,CAHD,South Glos Users in South Glos Homes,Permanent Nursing,Beaufort Grange Care Home,620.2, 09-May-2017
260,Revenue,CAHD,South Glos Users in South Glos Homes,Permanent Nursing,Beaufort Grange Care Home,620.2, 09-May-2017
261,Revenue,CAHD,Bed Purchasing - Elderly S117- North,Permanent Nursing,Beaufort Grange Care Home,4468.56, 09-May-2017
262,Revenue,CAHD,South Glos Users in South Glos Homes,Permanent Nursing,Beaufort Grange Care Home,620.2, 09-May-2017
263,Revenue,CAHD,Bed Purchasing - Elderly S117- North,Permanent Nursing,Beaufort Grange Care Home,4673.92, 09-May-2017
264,Revenue,CAHD,South Glos Users in South Glos Homes,Permanent Nursing,Beaufort Grange Care Home,620.2, 09-May-2017
265,Revenue,CAHD,South Glos Users in South Glos Homes,Permanent Nursing,Beaufort Grange Care Home,620.2, 09-May-2017
266,Revenue,CAHD,South Glos Users in South Glos Homes,Permanent Nursing,Beaufort Grange Care Home,620.2, 09-May-2017
267,Revenue,CAHD,South Glos Users in South Glos Homes,Permanent Nursing,Beaufort Grange Care Home,620.2, 09-May-2017
268,Revenue,CAHD,South Glos Users in South Glos Homes,Permanent Nursing,Beaufort Grange Care Home,620.2, 09-May-2017
269,Revenue,CAHD,South Glos Users in South Glos Homes,Permanent Nursing,Beaufort Grange Care Home,620.2, 09-May-2017
270,Revenue,CAHD,South Glos Users in South Glos Homes,Permanent Nursing,Beaufort Grange Care Home,620.2, 09-May-2017
271,Revenue,CAHD,Bed Purchasing - North,Permanent Residential,Beaufort House,2443.36, 09-May-2017
272,Revenue,CAHD,Bed Purchasing - North,Permanent Residential,Beaufort House,2464.28, 09-May-2017
273,Revenue,CAHD,Bed Purchasing - South,Permanent Residential,Beaufort House,2431.2, 09-May-2017
274,Revenue,CAHD,Bed Purchasing - South,Permanent Residential,Beaufort House,2339.4, 09-May-2017
275,Revenue,CAHD,Bed Purchasing - Southmead Hospital,Permanent Residential,Beaufort House,2464.28, 09-May-2017
276,Revenue,CAHD,Bed Purchasing - North,Permanent Residential,Beaufort House,2407.8, 09-May-2017
277,Revenue,CAHD,Bed Purchasing - North,Permanent Residential,Beaufort House,2407.8, 09-May-2017
278,Revenue,CAHD,Bed Purchasing - North,Permanent Residential,Beaufort House,2587.48, 09-May-2017
279,Revenue,CAHD,Bed Purchasing - Southmead Hospital,Permanent Residential,Beaufort House,2464.28, 09-May-2017
280,Revenue,CAHD,Bed Purchasing - Southmead Hospital,Permanent Residential,Beaufort House,2633.8, 09-May-2017
281,Revenue,CAHD,Bed Purchasing - Southmead Hospital,Permanent Residential,Beaufort House,1316.9, 09-May-2017
282,Revenue,CAHD,Bed Purchasing - Southmead Hospital,Permanent Residential,Beaufort House,1021.43, 09-May-2017
283,Revenue,CAHD,Bed Purchasing - South,Respite Planned - Residential,Beaufort House,1316.9, 09-May-2017
284,Revenue,CAHD,Bed Purchasing - South,Permanent Residential,Bedrock Lodge,1791.54, 09-May-2017
285,Revenue,CAHD,Bed Purchasing - South,Permanent Residential,Bedrock Lodge,2015.63, 09-May-2017
286,Revenue,CAHD,South Glos Users in South Glos Homes,Permanent Nursing,Beech House,620.2, 09-May-2017
287,Revenue,CAHD,Bed Purchasing - South,Permanent Residential,Beech House,2836.4, 09-May-2017
288,Revenue,CAHD,South Glos Users in South Glos Homes,Permanent Nursing,Beech House,620.2, 09-May-2017
289,Revenue,CAHD,Bed Purchasing - North,Permanent Nursing,Beech House,2709.76, 09-May-2017
290,Revenue,CAHD,South Glos Users in South Glos Homes,Permanent Nursing,Beech House,620.2, 09-May-2017
291,Revenue,CAHD,South Glos Users in South Glos Homes,Permanent Nursing,Beech House,620.2, 09-May-2017
292,Revenue,CAHD,South Glos Users in South Glos Homes,Permanent Nursing,Beech House,620.2, 09-May-2017
293,Revenue,CAHD,Bed Purchasing - North,Permanent Nursing,Beech House,3031.04, 09-May-2017
294,Revenue,CAHD,South Glos Users in South Glos Homes,Permanent Nursing,Beech House,620.2, 09-May-2017
295,Revenue,CAHD,Bed Purchasing - North,Permanent Residential,Beech House,2836.4, 09-May-2017
296,Revenue,CAHD,South Glos Users in South Glos Homes,Permanent Nursing,Beech House,620.2, 09-May-2017
297,Revenue,CAHD,South Glos Users in South Glos Homes,Permanent Nursing,Beech House,620.2, 09-May-2017
298,Revenue,CAHD,South Glos Users in South Glos Homes,Permanent Nursing,Beech House,620.2, 09-May-2017
299,Revenue,CAHD,South Glos Users in South Glos Homes,Permanent Nursing,Beech House,620.2, 09-May-2017
300,Revenue,CAHD,South Glos Users in South Glos Homes,Permanent Nursing,Beech House,620.2, 09-May-2017
301,Revenue,CAHD,South Glos Users in South Glos Homes,Permanent Nursing,Beech House,620.2, 09-May-2017
302,Revenue,CAHD,South Glos Users in South Glos Homes,Permanent Nursing,Beech House,937.5, 09-May-2017
303,Revenue,CAHD,South Glos Users in South Glos Homes,Permanent Nursing,Beech House,620.2, 09-May-2017
304,Revenue,CAHD,South Glos Users in South Glos Homes,Permanent Nursing,Beech House,509.45, 09-May-2017
305,Revenue,CAHD,South Glos Users in South Glos Homes,Permanent Nursing,Beech House,620.2, 09-May-2017
306,Revenue,CAHD,Bed Purchasing - North,Permanent Residential,Beech House,3444.2, 09-May-2017
307,Revenue,CAHD,South Glos Users in South Glos Homes,Permanent Nursing,Beech House,620.2, 09-May-2017
308,Revenue,CAHD,South Glos Users in South Glos Homes,Permanent Nursing,Beech House,620.2, 09-May-2017
309,Revenue,CAHD,Bed Purchasing - North,Permanent Nursing,Beech House,3169.68, 09-May-2017
310,Revenue,CAHD,South Glos Users in South Glos Homes,Permanent Nursing,Beech House,620.2, 09-May-2017
311,Revenue,CAHD,Bed Purchasing - North,Respite Planned - Nursing,Beech House,1178.57, 09-May-2017
312,Revenue,CAHD,South Glos Users in South Glos Homes,Permanent Nursing,Beech House,620.2, 09-May-2017
313,Revenue,CAHD,South Glos Users in South Glos Homes,Permanent Nursing,Beech House,620.2, 09-May-2017
314,Revenue,CAHD,South Glos Users in South Glos Homes,Permanent Nursing,Beech House,620.2, 09-May-2017
315,Revenue,CAHD,South Glos Users in South Glos Homes,Permanent Nursing,Beech House,620.2, 09-May-2017
316,Revenue,CAHD,South Glos Users in South Glos Homes,Permanent Nursing,Beech House,620.2, 09-May-2017
317,Revenue,CAHD,South Glos Users in South Glos Homes,Permanent Nursing,Beech House,620.2, 09-May-2017
318,Revenue,CAHD,South Glos Users in South Glos Homes,Permanent Nursing,Beech House,620.2, 09-May-2017
319,Revenue,CAHD,Bed Purchasing - Southmead Hospital,Permanent Nursing,Blossom Field,3824.08, 09-May-2017
320,Revenue,CAHD,South Glos Users in South Glos Homes,Permanent Nursing,Blossom Field,1026.79, 09-May-2017
321,Revenue,CAHD,Bed Purchasing - North,Permanent Nursing,Blossom Field,3523.92, 09-May-2017
322,Revenue,CAHD,South Glos Users in South Glos Homes,Permanent Nursing,Blossom Field,620.2, 09-May-2017
323,Revenue,CAHD,Bed Purchasing - Elderly S117- North,Permanent Nursing,Blossom Field,3539.76, 09-May-2017
324,Revenue,CAHD,South Glos Users in South Glos Homes,Permanent Nursing,Blossom Field,620.2, 09-May-2017
325,Revenue,CAHD,South Glos Users in South Glos Homes,Permanent Nursing,Blossom Field,620.2, 09-May-2017
326,Revenue,CAHD,Bed Purchasing - Southmead Hospital,Permanent Nursing,Blossom Field,4862.4, 09-May-2017
327,Revenue,CAHD,South Glos Users in South Glos Homes,Permanent Nursing,Blossom Field,620.2, 09-May-2017
328,Revenue,CAHD,South Glos Users in South Glos Homes,Permanent Nursing,Blossom Field,625, 09-May-2017
329,Revenue,CAHD,South Glos Users in South Glos Homes,Permanent Nursing,Blossom Field,620.2, 09-May-2017
330,Revenue,CAHD,South Glos Users in South Glos Homes,Permanent Nursing,Blossom Field,509.45, 09-May-2017
331,Revenue,CAHD,Bed Purchasing - North,Permanent Nursing,Blossom Field,3811.4, 09-May-2017
332,Revenue,CAHD,South Glos Users in South Glos Homes,Permanent Nursing,Blossom Field,620.2, 09-May-2017
333,Revenue,CAHD,South Glos Users in South Glos Homes,Permanent Nursing,Blossom Field,620.2, 09-May-2017
334,Revenue,CAHD,South Glos Users in South Glos Homes,Permanent Nursing,Blossom Field,620.2, 09-May-2017
335,Revenue,CAHD,South Glos Users in South Glos Homes,Permanent Nursing,Blossom Field,620.2, 09-May-2017
336,Revenue,CAHD,South Glos Users in South Glos Homes,Permanent Nursing,Blossom Field,620.2, 09-May-2017
337,Revenue,CAHD,South Glos Users in South Glos Homes,Permanent Nursing,Blossom Field,620.2, 09-May-2017
338,Revenue,CAHD,South Glos Users in South Glos Homes,Permanent Nursing,Blossom Field,509.45, 09-May-2017
339,Revenue,CAHD,South Glos Users in South Glos Homes,Permanent Nursing,Blossom Field,620.2, 09-May-2017
340,Revenue,CAHD,South Glos Users in South Glos Homes,Permanent Nursing,Blossom Field,620.2, 09-May-2017
341,Revenue,CAHD,South Glos Users in South Glos Homes,Permanent Nursing,Blossom Field,620.2, 09-May-2017
342,Revenue,CAHD,Bed purchasing - Elderly S117 - South,Permanent Nursing,Blossom Field,4468.56, 09-May-2017
343,Revenue,CAHD,South Glos Users in South Glos Homes,Permanent Nursing,Blossom Field,620.2, 09-May-2017
344,Revenue,CAHD,South Glos Users in South Glos Homes,Permanent Nursing,Blossom Field,620.2, 09-May-2017
345,Revenue,CAHD,Bed Purchasing - South,Permanent Nursing,Blossom Field,4229.28, 09-May-2017
346,Revenue,CAHD,South Glos Users in South Glos Homes,Permanent Nursing,Blossom Field,620.2, 09-May-2017
347,Revenue,CAHD,South Glos Users in South Glos Homes,Permanent Nursing,Blossom Field,620.2, 09-May-2017
348,Revenue,CAHD,Bed Purchasing - Southmead Hospital,Permanent Nursing,Blossom Field,3824.08, 09-May-2017
349,Revenue,CAHD,South Glos Users in South Glos Homes,Permanent Nursing,Blossom Field,620.2, 09-May-2017
350,Revenue,CAHD,Bed Purchasing - Southmead Hospital,Permanent Nursing,Blossom Field,4862.4, 09-May-2017
351,Revenue,CAHD,South Glos Users in South Glos Homes,Permanent Nursing,Blossom Field,1049.11, 09-May-2017
352,Revenue,CAHD,South Glos Users in South Glos Homes,Permanent Nursing,Blossom Field,620.2, 09-May-2017
353,Revenue,CAHD,South Glos Users in South Glos Homes,Permanent Nursing,Blossom Field,509.45, 09-May-2017
354,Revenue,CAHD,South Glos Users in South Glos Homes,Permanent Nursing,Blossom Field,620.2, 09-May-2017
355,Revenue,CAHD,South Glos Users in South Glos Homes,Permanent Nursing,Blossom Field,2098.21, 09-May-2017
356,Revenue,CAHD,South Glos Users in South Glos Homes,Permanent Nursing,Blossom Field,620.2, 09-May-2017
357,Revenue,CAHD,South Glos Users in South Glos Homes,Permanent Nursing,Blossom Field,509.45, 09-May-2017
358,Revenue,CAHD,South Glos Users in South Glos Homes,Permanent Nursing,Blossom Field,620.2, 09-May-2017
359,Revenue,CAHD,South Glos Users in South Glos Homes,Permanent Nursing,Blossom Field,620.2, 09-May-2017
360,Revenue,CAHD,South Glos Users in South Glos Homes,Permanent Nursing,Blossom Field,620.2, 09-May-2017
361,Revenue,CAHD,South Glos Users in South Glos Homes,Permanent Nursing,Blossom Field,620.2, 09-May-2017
362,Revenue,CAHD,South Glos Users in South Glos Homes,Permanent Nursing,Blossom Field,620.2, 09-May-2017
363,Revenue,CAHD,Bed Purchasing - North,Permanent Nursing,Blossom Field,3824.08, 09-May-2017
364,Revenue,CAHD,South Glos Users in South Glos Homes,Permanent Nursing,Blossom Field,620.2, 09-May-2017
365,Revenue,CAHD,Bed Purchasing - North,Fees & Charges Income - General,Blossom Field,3176.16, 09-May-2017
366,Revenue,CAHD,Bed Purchasing - North,Permanent Nursing,Blossom Field,3483.56, 09-May-2017
367,Revenue,CAHD,South Glos Users in South Glos Homes,Permanent Nursing,Blossom Field,620.2, 09-May-2017
368,Revenue,CAHD,South Glos Users in South Glos Homes,Permanent Nursing,Blossom Field,620.2, 09-May-2017
369,Revenue,CAHD,Bed purchasing - S28A Under 65 - South,Permanent Residential,Bradbury House,4854.16, 09-May-2017
370,Revenue,CAHD,Bed Purchasing - South,Permanent Residential,Bradbury House,8375.2, 09-May-2017
371,Revenue,CAHD,Bed purchasing - S28A Under 65 - South,Permanent Residential,Bradbury House,7152.84, 09-May-2017
372,Revenue,CAHD,18-25 Year Olds,Permanent Residential,Bradbury House,9504.08, 09-May-2017
373,Revenue,CAHD,Bed purchasing - Elderly S117 - South,Permanent Residential,Bradbury House,8572.56, 09-May-2017
374,Revenue,CAHD,Jointly Funded H&SC Packages,Permanent Residential,Bradbury House,3184.96, 09-May-2017
375,Revenue,CAHD,Bed Purchasing - North,Permanent Residential,Bradbury House,5952.84, 09-May-2017
376,Revenue,CAHD,Jointly Funded H&SC Packages,Permanent Residential,Bradbury House,8223.16, 09-May-2017
377,Revenue,CAHD,Bed Purchasing - North,Permanent Residential,Bradbury House,2976.42, 09-May-2017
378,Revenue,CAHD,Jointly Funded H&SC Packages,Permanent Residential,Bradbury House,4111.58, 09-May-2017
379,Revenue,CAHD,South Glos Users in South Glos Homes,Permanent Nursing,Brandon Trust,620.2, 09-May-2017
380,Revenue,CAHD,South Glos Users in South Glos Homes,Permanent Nursing,Brandon Trust,620.2, 09-May-2017
381,Revenue,CAHD,South Glos Users in South Glos Homes,Permanent Nursing,Brandon Trust,3214.29, 09-May-2017
382,Revenue,CAHD,South Glos Users in South Glos Homes,Permanent Nursing,Brandon Trust,620.2, 09-May-2017
383,Revenue,CAHD,South Glos Users in South Glos Homes,Permanent Nursing,Brandon Trust,509.45, 09-May-2017
384,Revenue,CAHD,Bed Purchasing - South,Permanent Nursing,Brandon Trust,5609.76, 09-May-2017
385,Revenue,CAHD,South Glos Users in South Glos Homes,Permanent Nursing,Brandon Trust,620.2, 09-May-2017
386,Revenue,CAHD,Bed Purchasing - South,Permanent Residential,Brandon Trust,10988.8, 09-May-2017
387,Revenue,CAHD,Bed Purchasing - Southmead Hospital,Permanent Nursing,Brandon Trust,1191.23, 09-May-2017
388,Revenue,CAHD,Bed Purchasing - Southmead Hospital,Permanent Nursing,Brandon Trust,595.62, 09-May-2017
389,Revenue,CAHD,Bed Purchasing - South,Permanent Nursing,Brandon Trust,5559.08, 09-May-2017
390,Revenue,CAHD,South Glos Users in South Glos Homes,Permanent Nursing,Brandon Trust,620.2, 09-May-2017
391,Revenue,CAHD,Bed purchasing - S28A Under 65 - South,Permanent Nursing,Brandon Trust,5893.56,[] 09-May-2017
392,Revenue,CAHD,South Glos Users in South Glos Homes,Permanent Nursing,Brandon Trust,620.2, 09-May-2017
393,Revenue,CAHD,Bed purchasing - S28A Under 65 - South,Permanent Residential,Brandon Trust,5789.24, 09-May-2017
394,Revenue,CAHD,Bed Purchasing - LD S28A- Over 65- South,Permanent Nursing,Brandon Trust,5893.56, 09-May-2017
395,Revenue,CAHD,South Glos Users in South Glos Homes,Permanent Nursing,Brandon Trust,620.2, 09-May-2017
396,Revenue,CAHD,Bed Purchasing - LD S28A- Over 65- South,Permanent Nursing,Brandon Trust,5559.08, 09-May-2017
397,Revenue,CAHD,South Glos Users in South Glos Homes,Permanent Nursing,Brandon Trust,620.2, 09-May-2017
398,Revenue,CAHD,Bed Purchasing - South,Permanent Residential,Brandon Trust,3756.88, 09-May-2017
399,Revenue,CAHD,Bed purchasing - S28A Under 65 - South,Permanent Residential,Brandon Trust,5670.48, 09-May-2017
400,Revenue,CAHD,Bed purchasing - S28A Under 65 - South,Permanent Residential,Brandon Trust,5789.04, 09-May-2017
401,Revenue,CAHD,Bed Purchasing - North,Permanent Nursing,Brandon Trust,5553.32,[] 09-May-2017
402,Revenue,CAHD,South Glos Users in South Glos Homes,Permanent Nursing,Brandon Trust,620.2, 09-May-2017
403,Revenue,CAHD,Bed purchasing - S28A Under 65 - South,Permanent Nursing,Brandon Trust,5893.56,[] 09-May-2017
404,Revenue,CAHD,South Glos Users in South Glos Homes,Permanent Nursing,Brandon Trust,620.2, 09-May-2017
405,Revenue,CAHD,Bed purchasing -S28A  Under 65 - North,Permanent Nursing,Brandon Trust,5335.52, 09-May-2017
406,Revenue,CAHD,Bed purchasing - S28A Under 65 - South,Permanent Residential,Brandon Trust,5789.04, 09-May-2017
407,Revenue,CAHD,Bed Purchasing - LD S28A- Over 65- South,Permanent Residential,Brandon Trust,5442.56, 09-May-2017
408,Revenue,CAHD,Bed purchasing - S28A Under 65 - South,Permanent Residential,Brandon Trust,9567.24, 09-May-2017
409,Revenue,CAHD,Bed Purchasing - Southmead Hospital,Permanent Residential,Bridge House Care Home,2423.08, 09-May-2017
410,Revenue,CAHD,Bed Purchasing - North,Permanent Residential,Bridge House Care Home,2382.12, 09-May-2017
411,Revenue,CAHD,Home Care - Elderly - North,Day Care / Social Activities,Bridge House Care Home,526.72, 09-May-2017
412,Revenue,CAHD,Bed Purchasing - North,Permanent Residential,Bridge House Care Home,2496.04, 09-May-2017
413,Revenue,CAHD,Bed Purchasing - North,Permanent Residential,Bridge House Care Home,1248.02, 09-May-2017
414,Revenue,CAHD,Bed Purchasing - North,Permanent Residential,Bridge House Care Home,968, 09-May-2017
415,Revenue,CAHD,Bed Purchasing - North,Permanent Residential,Bridge House Care Home,2191.8, 09-May-2017
416,Revenue,CAHD,Bed Purchasing - North,Permanent Residential,Bridgwater Court,10324.96, 09-May-2017
417,Revenue,CAHD,Bed Purchasing - South,Permanent Residential,Brightbow,2689.2, 09-May-2017
418,Revenue,CAHD,MH Purchasing - Younger,Permanent Residential,Brightbow,2207.44, 09-May-2017
419,Revenue,CAHD,Home Care - Elderly - North,Day Care / Social Activities,Bristol Community Links North,996.32, 09-May-2017
420,Revenue,CAHD,Home Care - Elderly - North,Day Care / Social Activities,Bristol Community Links North,2490.8, 09-May-2017
421,Revenue,CAHD,18-25 Year Olds,SU Employment Support,Britannia House,712.08, 09-May-2017
422,Revenue,CAHD,Home Care - Elderly - North,Day Care / Social Activities,Britannia House,949.44, 09-May-2017
423,Revenue,CAHD,18-25 Year Olds,Day Care / Social Activities,Britannia House,712.08, 09-May-2017
424,Revenue,CAHD,Home Care - Elderly - North,Day Care / Social Activities,Britannia House,712.08, 09-May-2017
425,Revenue,CAHD,Home Care - Elderly - North,Day Care / Social Activities,Britannia House,949.44, 09-May-2017
426,Revenue,CAHD,Home Care - Elderly - South,Day Care / Social Activities,Britannia House,949.44, 09-May-2017
427,Revenue,CAHD,Home Care - Elderly - South,Day Care / Social Activities,Britannia House,712.08, 09-May-2017
428,Revenue,CAHD,Home Care - Elderly - South,Day Care / Social Activities,Britannia House,712.08, 09-May-2017
429,Revenue,CAHD,Bed Purchasing - North,Permanent Nursing,Bupa Care Services  Bridge House,1762.64, 09-May-2017
430,Revenue,CAHD,Jointly Funded H&SC Packages,Permanent Nursing,Bupa Care Services  Bridge House,4400.48, 09-May-2017
431,Revenue,CAHD,South Glos Users in all other LA Homes,Permanent Nursing,Bupa Care Services  Bridge House,853.28, 09-May-2017
432,Revenue,CAHD,Bed Purchasing - Elderly S117- North,Permanent Residential,Canjayor,2422.4, 09-May-2017
433,Revenue,CAHD,Home Care - Elderly - North,Day Care / Social Activities,Causeway House,2913.2, 09-May-2017
434,Revenue,CAHD,Home Care - Elderly - South,Day Care / Social Activities,Causeway House,4970.4, 09-May-2017
435,Revenue,CAHD,Home Care - Elderly - North,Day Care / Social Activities,Causeway House,4311.6, 09-May-2017
436,Revenue,CAHD,Home Care - Elderly - North,Day Care / Social Activities,Causeway House,2151.36, 09-May-2017
437,Revenue,CAHD,Turnberries,Day Care / Social Activities,Causeway House,3682, 09-May-2017
438,Revenue,CAHD,Home Care - Elderly - North,Day Care / Social Activities,Causeway House,4323.44, 09-May-2017
439,Revenue,CAHD,Home Care - Elderly - North,Day Care / Social Activities,Causeway House,1965.84, 09-May-2017
440,Revenue,CAHD,Home Care - Elderly - North,Day Care / Social Activities,Causeway House,3052.4, 09-May-2017
441,Revenue,CAHD,Home Care - Elderly - North,Day Care / Social Activities,Causeway House,4547.56, 09-May-2017
442,Revenue,CAHD,Home Care - Elderly - North,Day Care / Social Activities,Causeway House,1634.4, 09-May-2017
443,Revenue,CAHD,Home Care - Elderly - North,Day Care / Social Activities,Causeway House,2939.6, 09-May-2017
444,Revenue,CAHD,Bed Purchasing - Elderly S117- North,Permanent Nursing,Cedar Care Homes Limited,5440, 09-May-2017
445,Revenue,CAHD,Bed Purchasing - Elderly S117- North,Permanent Nursing,Cedar Care Homes Limited,4352, 09-May-2017
446,Revenue,CAHD,Bed Purchasing - North,Permanent Residential,Charlton House,1886.24, 09-May-2017
447,Revenue,CAHD,Bed purchasing -S28A  Under 65 - North,Permanent Residential,Chescombe Lodge,9357.8, 09-May-2017
448,Revenue,CAHD,18-25 Year Olds,Permanent Residential,Chosen Care Ltd  Citibase Watford,7689.72, 09-May-2017
449,Revenue,CAHD,Bed Purchasing - Elderly S117- North,Permanent Residential,Chosen Care Ltd  Citibase Watford,5060.64, 09-May-2017
450,Revenue,CAHD,Jointly Funded H&SC Packages,Permanent Residential,Chosen Care Ltd  Citibase Watford,5060.64, 09-May-2017
451,Revenue,CAHD,Bed Purchasing - Elderly S117- North,Permanent Residential,Chosen Care Ltd  Citibase Watford,2530.32, 09-May-2017
452,Revenue,CAHD,Jointly Funded H&SC Packages,Permanent Residential,Chosen Care Ltd  Citibase Watford,2530.32, 09-May-2017
453,Revenue,CAHD,18-25 Year Olds,Permanent Residential,Chosen Care Ltd  Citibase Watford,6073.44, 09-May-2017
454,Revenue,CAHD,Bed Purchasing - Southmead Hospital,Permanent Nursing,Churchill Property Services,2249.92, 09-May-2017
455,Revenue,CAHD,Bed Purchasing - South,Permanent Residential,Cleeve Lodge,1232.16, 09-May-2017
456,Revenue,CAHD,Bed Purchasing - South,Permanent Residential,Cleeve Lodge,2361.6, 09-May-2017
457,Revenue,CAHD,Bed Purchasing - South,Permanent Residential,Cleeve Lodge,2735.12, 09-May-2017
458,Revenue,CAHD,Bed Purchasing - South,Permanent Residential,Cleeve Lodge,1367.56, 09-May-2017
459,Revenue,CAHD,Bed Purchasing - South,Permanent Residential,Cleeve Lodge,2525.84, 09-May-2017
460,Revenue,CAHD,Bed Purchasing - South,Permanent Residential,Cleeve Lodge,2486.76, 09-May-2017
461,Revenue,CAHD,Bed Purchasing - South,Permanent Residential,Clerkenleap Barn,6079.8, 09-May-2017
462,Revenue,CAHD,Bed Purchasing - South,Permanent Residential,Collingwood Residential Home,2147.96, 09-May-2017
463,Revenue,CAHD,Bed Purchasing - Southmead Hospital,Permanent Residential,Collingwood Residential Home,2431.2, 09-May-2017
464,Revenue,CAHD,Bed Purchasing - South,Permanent Residential,Collingwood Residential Home,2329.92, 09-May-2017
465,Revenue,CAHD,Bed Purchasing - Southmead Hospital,Permanent Residential,Collingwood Residential Home,2350.16, 09-May-2017
466,Revenue,CAHD,Bed Purchasing - South,Respite Planned - Residential,Collingwood Residential Home,1195.34, 09-May-2017
467,Revenue,CAHD,Bed Purchasing - South,Permanent Residential,Collingwood Residential Home,2016.16, 09-May-2017
468,Revenue,CAHD,Bed Purchasing - South,Permanent Nursing,Community Integrated Care,2852.94, 09-May-2017
469,Revenue,CAHD,Bed Purchasing - South,Permanent Nursing,Community Integrated Care,938.78, 09-May-2017
470,Revenue,CAHD,Bed Purchasing - S28A - Over 65- North,Permanent Residential,Cream Ii Ltd  Longrun House,8879.52, 09-May-2017
471,Revenue,CAHD,Bed Purchasing - South,Permanent Residential,Cream Ii Ltd  Longrun House,3123.72, 09-May-2017
472,Revenue,CAHD,Jointly Funded H&SC Packages,Permanent Residential,Cream Ii Ltd  Longrun House,2717.92, 09-May-2017
473,Revenue,CAHD,Bed purchasing -S28A  Under 65 - North,Permanent Residential,Creedy Court,10156.6, 09-May-2017
474,Revenue,CAHD,Bed Purchasing - S28A - Over 65- North,Permanent Residential,Creedy Court,8534.04, 09-May-2017
475,Revenue,CAHD,Bed Purchasing - North,Permanent Residential,Creedy Court,13468.68, 09-May-2017
476,Revenue,CAHD,Bed Purchasing - South,Permanent Residential,Daneswood,11757.84, 09-May-2017
477,Revenue,CAHD,Home Care - Elderly - South,Day Care / Social Activities,Daneswood,1354.56, 09-May-2017
478,Revenue,CAHD,Bed Purchasing - North,Permanent Residential,Daneswood,9836.56, 09-May-2017
479,Revenue,CAHD,Bed Purchasing - Elderly S117- North,Permanent Nursing,Danshell Healthcare Group,10419.44, 09-May-2017
480,Revenue,CAHD,Jointly Funded H&SC Packages,Permanent Nursing,Danshell Healthcare Group,1546.12, 09-May-2017
481,Revenue,CAHD,Home Care - Elderly - South,Supported Living,Design House,2746.28, 09-May-2017
482,Revenue,CAHD,Home Care - Elderly - South,Supported Living,Design House,2935.76, 09-May-2017
483,Revenue,CAHD,Home Care - Elderly - South,Supported Living,Design House,3002.6, 09-May-2017
484,Revenue,CAHD,Home Care - Elderly - South,Supported Living,Design House,2868.88, 09-May-2017
485,Revenue,CAHD,18-25 Year Olds,Supported Living,Design House,1599.92, 09-May-2017
486,Revenue,CAHD,Home Care - Elderly - South,Day Care / Social Activities,Design House,1231.6, 09-May-2017
487,Revenue,CAHD,Home Care - Elderly - South,Supported Living,Design House,2528.96, 09-May-2017
488,Revenue,CAHD,Home Care - Elderly - South,Supported Living,Design House,2528.96, 09-May-2017
489,Revenue,CAHD,Home Care - Elderly - South,Supported Living,Design House,1648.36, 09-May-2017
490,Revenue,CAHD,Home Care - Elderly - South,Supported Living,Design House,824.18, 09-May-2017
491,Revenue,CAHD,Home Care - Elderly - South,Supported Living,Design House,2060, 09-May-2017
492,Revenue,CAHD,Home Care - Elderly - South,Supported Living,Design House,1817.72, 09-May-2017
493,Revenue,CAHD,Home Care - Elderly - South,Supported Living,Design House,2412, 09-May-2017
494,Revenue,CAHD,Home Care - Elderly - South,Supported Living,Design House,4128.16, 09-May-2017
495,Revenue,CAHD,Home Care - Elderly - South,Supported Living,Design House,2927.36, 09-May-2017
496,Revenue,CAHD,Home Care - Elderly - South,Day Care / Social Activities,Design House,1231.6, 09-May-2017
497,Revenue,CAHD,Home Care - Elderly - South,Supported Living,Design House,2779.72, 09-May-2017
498,Revenue,CAHD,Home Care - Elderly - South,Supported Living,Design House,2829.88, 09-May-2017
499,Revenue,CAHD,Home Care - Elderly - South,Supported Living,Design House,2163.68, 09-May-2017
500,Revenue,CAHD,Home Care - Elderly - South,Supported Living,Design House,1817.72, 09-May-2017
501,Revenue,CAHD,Home Care - Elderly - South,Supported Living,Design House,2163.68, 09-May-2017
502,Revenue,CAHD,Bed Purchasing - South,Permanent Residential,Devon & Cornwall Autistic Community Trus,9526.04, 09-May-2017
503,Revenue,CAHD,Bed Purchasing - South,Permanent Residential,Dimensions  Suite 2,5396.28, 09-May-2017
504,Revenue,CAHD,South Glos Users in South Glos Homes,Permanent Nursing,Drakes Court,620.2, 09-May-2017
505,Revenue,CAHD,South Glos Users in South Glos Homes,Permanent Nursing,Drakes Court,620.2, 09-May-2017
506,Revenue,CAHD,Bed Purchasing - Southmead Hospital,Respite Planned - Nursing,Drakes Court,2228.6, 09-May-2017
507,Revenue,CAHD,Bed Purchasing - Southmead Hospital,Respite Planned - Nursing,Drakes Court,1114.3, 09-May-2017
508,Revenue,CAHD,Bed Purchasing - Southmead Hospital,Permanent Nursing,Drakes Court,1945.28, 09-May-2017
509,Revenue,CAHD,South Glos Users in South Glos Homes,Permanent Nursing,Drakes Court,620.2, 09-May-2017
510,Revenue,CAHD,South Glos Users in South Glos Homes,Permanent Nursing,Drakes Court,620.2, 09-May-2017
511,Revenue,CAHD,Bed Purchasing - North,Respite Planned - Nursing,Drakes Court,2735.12, 09-May-2017
512,Revenue,CAHD,South Glos Users in South Glos Homes,Permanent Nursing,Drakes Court,620.2, 09-May-2017
513,Revenue,CAHD,South Glos Users in South Glos Homes,Permanent Nursing,Drakes Court,2700.89, 09-May-2017
514,Revenue,CAHD,South Glos Users in South Glos Homes,Permanent Nursing,Drakes Court,620.2, 09-May-2017
515,Revenue,CAHD,South Glos Users in South Glos Homes,Permanent Nursing,Drakes Court,509.45, 09-May-2017
516,Revenue,CAHD,Bed Purchasing - North,Permanent Nursing,Drakes Court,6603, 09-May-2017
517,Revenue,CAHD,Bed Purchasing - North,Permanent Nursing,Drakes Court,3020.76, 09-May-2017
518,Revenue,CAHD,Bed Purchasing - North,Permanent Nursing,Drakes Court,1510.38, 09-May-2017
519,Revenue,CAHD,Bed Purchasing - North,Permanent Nursing,Drakes Court,1491, 09-May-2017
520,Revenue,CAHD,South Glos Users in South Glos Homes,Permanent Nursing,Drakes Court,620.2, 09-May-2017
521,Revenue,CAHD,Bed Purchasing - North,Permanent Nursing,Drakes Court,1945.28, 09-May-2017
522,Revenue,CAHD,Bed Purchasing - Southmead Hospital,Permanent Nursing,Drakes Court,1945.28, 09-May-2017
523,Revenue,CAHD,South Glos Users in South Glos Homes,Permanent Nursing,Drakes Court,620.2, 09-May-2017
524,Revenue,CAHD,Bed Purchasing - North,Permanent Residential,Drakes Court,1886.24, 09-May-2017
525,Revenue,CAHD,Bed Purchasing - North,Permanent Nursing,Drakes Court,2283.32, 09-May-2017
526,Revenue,CAHD,South Glos Users in South Glos Homes,Permanent Nursing,Drakes Court,620.2, 09-May-2017
527,Revenue,CAHD,Bed Purchasing - North,Permanent Nursing,Drakes Court,2971.43, 09-May-2017
528,Revenue,CAHD,Bed Purchasing - North,Permanent Nursing,Drakes Court,2633.8, 09-May-2017
529,Revenue,CAHD,Bed Purchasing - North,Permanent Nursing,Drakes Court,1316.9, 09-May-2017
530,Revenue,CAHD,Bed Purchasing - North,Permanent Nursing,Drakes Court,1300, 09-May-2017
531,Revenue,CAHD,South Glos Users in South Glos Homes,Permanent Nursing,Drakes Court,803.57, 09-May-2017
532,Revenue,CAHD,South Glos Users in South Glos Homes,Permanent Nursing,Drakes Court,620.2, 09-May-2017
533,Revenue,CAHD,South Glos Users in South Glos Homes,Permanent Nursing,Drakes Court,509.45, 09-May-2017
534,Revenue,CAHD,South Glos Users in South Glos Homes,Permanent Nursing,Drakes Court,620.2, 09-May-2017
535,Revenue,CAHD,South Glos Users in South Glos Homes,Permanent Nursing,Drakes Court,620.2, 09-May-2017
536,Revenue,CAHD,South Glos Users in South Glos Homes,Permanent Nursing,Drakes Court,620.2, 09-May-2017
537,Revenue,CAHD,MH Purchasing - Younger,Permanent Residential,Dunraven House,2272.96, 09-May-2017
538,Revenue,CAHD,Bed Purchasing - North,Permanent Residential,East Court,2648.48, 09-May-2017
539,Revenue,CAHD,Home Care - Elderly - South,Day Care / Social Activities,Easton Community Centre,540.24, 09-May-2017
540,Revenue,CAHD,Home Care - Elderly - South,Day Care / Social Activities,Easton Community Centre,540.24, 09-May-2017
541,Revenue,CAHD,Home Care - Elderly - North,Day Care / Social Activities,Easton Community Centre,540.24, 09-May-2017
542,Revenue,CAHD,Bed Purchasing - North,Permanent Residential,Edgecumbe Lodge,5459.85, 09-May-2017
543,Revenue,CAHD,Bed Purchasing - North,Permanent Residential,Edgecumbe Lodge,2289.4, 09-May-2017
544,Revenue,CAHD,Bed Purchasing - Southmead Hospital,Permanent Residential,Edgecumbe Lodge,1886.64, 09-May-2017
545,Revenue,CAHD,Bed Purchasing - South,Permanent Residential,Edgecumbe Lodge,2140, 09-May-2017
546,Revenue,CAHD,Bed Purchasing - Southmead Hospital,Permanent Residential,Edgecumbe Lodge,2431.2, 09-May-2017
547,Revenue,CAHD,Bed Purchasing - South,Permanent Residential,Edgecumbe Lodge,2156.24, 09-May-2017
548,Revenue,CAHD,Bed Purchasing - North,Permanent Residential,Edgecumbe Lodge,2320.48, 09-May-2017
549,Revenue,CAHD,Bed Purchasing - South,Permanent Residential,Edgecumbe Lodge,2156.24, 09-May-2017
550,Revenue,CAHD,Bed Purchasing - South,Permanent Residential,Edgecumbe Lodge,2431.2, 09-May-2017
551,Revenue,CAHD,Bed Purchasing - South,Permanent Residential,Edgecumbe Lodge,1779.8, 09-May-2017
552,Revenue,CAHD,Bed Purchasing - Southmead Hospital,Permanent Residential,Edgecumbe Lodge,2431.2, 09-May-2017
553,Revenue,CAHD,Bed Purchasing - North,Permanent Residential,Edgecumbe Lodge,2156.24, 09-May-2017
554,Revenue,CAHD,Bed Purchasing - South,Permanent Residential,Edgemont House Ltd,2228.6, 09-May-2017
555,Revenue,CAHD,Bed Purchasing - Southmead Hospital,Permanent Residential,Edgemont House Ltd,1879.2, 09-May-2017
556,Revenue,CAHD,Bed Purchasing - South,Permanent Residential,Edgemont House Ltd,2188.08, 09-May-2017
557,Revenue,CAHD,Bed Purchasing - South,Permanent Residential,Edgemont House Ltd,2013.32, 09-May-2017
558,Revenue,CAHD,South Glos Users in South Glos Homes,Permanent Nursing,Edgemont View Nursing Home,620.2, 09-May-2017
559,Revenue,CAHD,South Glos Users in South Glos Homes,Permanent Nursing,Edgemont View Nursing Home,620.2, 09-May-2017
560,Revenue,CAHD,South Glos Users in South Glos Homes,Permanent Nursing,Edgemont View Nursing Home,620.2, 09-May-2017
561,Revenue,CAHD,South Glos Users in South Glos Homes,Permanent Nursing,Edgemont View Nursing Home,620.2, 09-May-2017
562,Revenue,CAHD,Bed Purchasing - South,Permanent Nursing,Edgemont View Nursing Home,2917.44, 09-May-2017
563,Revenue,CAHD,South Glos Users in South Glos Homes,Permanent Nursing,Edgemont View Nursing Home,620.2, 09-May-2017
564,Revenue,CAHD,South Glos Users in South Glos Homes,Permanent Nursing,Edgemont View Nursing Home,620.2, 09-May-2017
565,Revenue,CAHD,South Glos Users in South Glos Homes,Permanent Nursing,Edgemont View Nursing Home,620.2, 09-May-2017
566,Revenue,CAHD,South Glos Users in South Glos Homes,Permanent Nursing,Edgemont View Nursing Home,620.2, 09-May-2017
567,Revenue,CAHD,South Glos Users in South Glos Homes,Permanent Nursing,Edgemont View Nursing Home,1250, 09-May-2017
568,Revenue,CAHD,South Glos Users in South Glos Homes,Permanent Nursing,Edgemont View Nursing Home,620.2, 09-May-2017
569,Revenue,CAHD,South Glos Users in South Glos Homes,Permanent Nursing,Edgemont View Nursing Home,620.2, 09-May-2017
570,Revenue,CAHD,South Glos Users in South Glos Homes,Permanent Nursing,Edgemont View Nursing Home,620.2, 09-May-2017
571,Revenue,CAHD,Bed Purchasing - South,Permanent Nursing,Edgemont View Nursing Home,2228, 09-May-2017
572,Revenue,CAHD,South Glos Users in South Glos Homes,Permanent Nursing,Edgemont View Nursing Home,620.2, 09-May-2017
573,Revenue,CAHD,South Glos Users in South Glos Homes,Permanent Nursing,Edgemont View Nursing Home,620.2, 09-May-2017
574,Revenue,CAHD,South Glos Users in South Glos Homes,Permanent Nursing,Edgemont View Nursing Home,620.2, 09-May-2017
575,Revenue,CAHD,South Glos Users in South Glos Homes,Permanent Nursing,Edgemont View Nursing Home,620.2, 09-May-2017
576,Revenue,CAHD,South Glos Users in South Glos Homes,Permanent Nursing,Edgemont View Nursing Home,620.2, 09-May-2017
577,Revenue,CAHD,Bed Purchasing - Southmead Hospital,Permanent Nursing,Edgemont View Nursing Home,2917.44, 09-May-2017
578,Revenue,CAHD,South Glos Users in South Glos Homes,Permanent Nursing,Edgemont View Nursing Home,620.2, 09-May-2017
579,Revenue,CAHD,Bed Purchasing - North,Permanent Residential,Ellen House,5940.24, 09-May-2017
580,Revenue,CAHD,Bed Purchasing - North,Permanent Residential,Epworth House,2798.12, 09-May-2017
581,Revenue,CAHD,South Glos Users in South Glos Homes,Permanent Nursing,Fairview Court,620.2, 09-May-2017
582,Revenue,CAHD,South Glos Users in South Glos Homes,Permanent Nursing,Fairview Court,620.2, 09-May-2017
583,Revenue,CAHD,South Glos Users in South Glos Homes,Permanent Nursing,Fairview Court,620.2, 09-May-2017
584,Revenue,CAHD,South Glos Users in South Glos Homes,Permanent Nursing,Fairview Court,1004.46, 09-May-2017
585,Revenue,CAHD,South Glos Users in South Glos Homes,Permanent Nursing,Fairview Court,620.2, 09-May-2017
586,Revenue,CAHD,South Glos Users in South Glos Homes,Permanent Nursing,Fairview Court,509.45, 09-May-2017
587,Revenue,CAHD,Bed Purchasing - South,Permanent Nursing,Fairview Court,3031.04, 09-May-2017
588,Revenue,CAHD,South Glos Users in South Glos Homes,Permanent Nursing,Fairview Court,620.2, 09-May-2017
589,Revenue,CAHD,Bed Purchasing - Southmead Hospital,Permanent Nursing,Fairview Court,6858.48, 09-May-2017
590,Revenue,CAHD,South Glos Users in South Glos Homes,Permanent Nursing,Fairview Court,1517.86, 09-May-2017
591,Revenue,CAHD,Bed Purchasing - Southmead Hospital,Fees & Charges Income - General,Fairview Court,1448, 09-May-2017
592,Revenue,CAHD,Bed Purchasing - Southmead Hospital,Fees & Charges Income - General,Fairview Court,1161.14, 09-May-2017
593,Revenue,CAHD,Bed Purchasing - Southmead Hospital,Permanent Nursing,Fairview Court,3241.6, 09-May-2017
594,Revenue,CAHD,South Glos Users in South Glos Homes,Permanent Nursing,Fairview Court,620.2, 09-May-2017
595,Revenue,CAHD,South Glos Users in South Glos Homes,Permanent Nursing,Fairview Court,620.2, 09-May-2017
596,Revenue,CAHD,South Glos Users in South Glos Homes,Permanent Nursing,Fairview Court,620.2, 09-May-2017
597,Revenue,CAHD,Bed Purchasing - Southmead Hospital,Permanent Nursing,Fairview Court,3031.04, 09-May-2017
598,Revenue,CAHD,South Glos Users in South Glos Homes,Permanent Nursing,Fairview Court,620.2, 09-May-2017
599,Revenue,CAHD,Bed Purchasing - South,Permanent Nursing,Fairview Court,2449.12, 09-May-2017
600,Revenue,CAHD,South Glos Users in South Glos Homes,Permanent Nursing,Fairview Court,620.2, 09-May-2017
601,Revenue,CAHD,Bed purchasing - Elderly S117 - South,Permanent Nursing,Fairview Court,2985.4, 09-May-2017
602,Revenue,CAHD,South Glos Users in South Glos Homes,Permanent Nursing,Fairview Court,620.2, 09-May-2017
603,Revenue,CAHD,Bed Purchasing - South,Permanent Nursing,Fairview Court,2449.12, 09-May-2017
604,Revenue,CAHD,South Glos Users in South Glos Homes,Permanent Nursing,Fairview Court,620.2, 09-May-2017
605,Revenue,CAHD,South Glos Users in South Glos Homes,Permanent Nursing,Fairview Court,620.2, 09-May-2017
606,Revenue,CAHD,Bed Purchasing - South,Permanent Nursing,Fairview Court,3241.6, 09-May-2017
607,Revenue,CAHD,South Glos Users in South Glos Homes,Permanent Nursing,Fairview Court,620.2, 09-May-2017
608,Revenue,CAHD,South Glos Users in South Glos Homes,Permanent Nursing,Fairview Court,620.2, 09-May-2017
609,Revenue,CAHD,South Glos Users in South Glos Homes,Permanent Nursing,Fairview Court,620.2, 09-May-2017
610,Revenue,CAHD,Bed Purchasing - North,Permanent Nursing,Fairview Court,3241.6, 09-May-2017
611,Revenue,CAHD,South Glos Users in South Glos Homes,Permanent Nursing,Fairview Court,1250, 09-May-2017
612,Revenue,CAHD,South Glos Users in South Glos Homes,Permanent Nursing,Fairview Court,620.2, 09-May-2017
613,Revenue,CAHD,South Glos Users in South Glos Homes,Permanent Nursing,Fairview Court,509.45, 09-May-2017
614,Revenue,CAHD,Bed Purchasing - North,Fees & Charges Income - General,Fairview Court,1213.64, 09-May-2017
615,Revenue,CAHD,Bed Purchasing - South,Permanent Nursing,Fairview Court,3031.04, 09-May-2017
616,Revenue,CAHD,South Glos Users in South Glos Homes,Permanent Nursing,Fairview Court,620.2, 09-May-2017
617,Revenue,CAHD,Bed Purchasing - Southmead Hospital,Permanent Nursing,Fairview Court,3241.6, 09-May-2017
618,Revenue,CAHD,Bed Purchasing - Southmead Hospital,Permanent Nursing,Fairview Court,1620.8, 09-May-2017
619,Revenue,CAHD,South Glos Users in South Glos Homes,Permanent Nursing,Fairview Court,620.2, 09-May-2017
620,Revenue,CAHD,South Glos Users in South Glos Homes,Permanent Nursing,Fairview Court,620.2, 09-May-2017
621,Revenue,CAHD,South Glos Users in South Glos Homes,Permanent Nursing,Fairview Court,620.2, 09-May-2017
622,Revenue,CAHD,South Glos Users in South Glos Homes,Permanent Nursing,Fairview Court,620.2, 09-May-2017
623,Revenue,CAHD,South Glos Users in South Glos Homes,Permanent Nursing,Fairview Court,620.2, 09-May-2017
624,Revenue,CAHD,South Glos Users in South Glos Homes,Permanent Nursing,Fairview Court,620.2, 09-May-2017
625,Revenue,CAHD,South Glos Users in South Glos Homes,Permanent Nursing,Fairview Court,620.2, 09-May-2017
626,Revenue,CAHD,Bed Purchasing - South,Permanent Nursing,Fairview Court,2449.12, 09-May-2017
627,Revenue,CAHD,South Glos Users in South Glos Homes,Permanent Nursing,Fairview Court,620.2, 09-May-2017
628,Revenue,CAHD,Bed Purchasing - Southmead Hospital,Permanent Nursing,Fairview Court,3091.68, 09-May-2017
629,Revenue,CAHD,South Glos Users in South Glos Homes,Permanent Nursing,Fairview Court,620.2, 09-May-2017
630,Revenue,CAHD,Bed Purchasing - South,Permanent Nursing,Fairview Court,2607.8, 09-May-2017
631,Revenue,CAHD,South Glos Users in South Glos Homes,Permanent Nursing,Fairview Court,620.2, 09-May-2017
632,Revenue,CAHD,Bed purchasing - Elderly S117 - South,Permanent Residential,Fairview House,2058.04, 09-May-2017
633,Revenue,CAHD,Bed Purchasing - Southmead Hospital,Permanent Residential,Fairview House,1886.24, 09-May-2017
634,Revenue,CAHD,Bed Purchasing - South,Permanent Residential,Fairview House,2094.64, 09-May-2017
635,Revenue,CAHD,Bed Purchasing - South,Permanent Residential,Fairview House,1886.24, 09-May-2017
636,Revenue,CAHD,Bed Purchasing - South,Permanent Residential,Fairview House,943.12, 09-May-2017
637,Revenue,CAHD,Bed Purchasing - South,Fees & Charges Income - General,Fairview House,502.6, 09-May-2017
638,Revenue,CAHD,Bed Purchasing - South,Permanent Residential,Fairview House,1747.44, 09-May-2017
639,Revenue,CAHD,Bed Purchasing - South,Permanent Residential,Fairview House,1886.24, 09-May-2017
640,Revenue,CAHD,Bed Purchasing - South,Permanent Residential,Fairview House,1886.24, 09-May-2017
641,Revenue,CAHD,Bed Purchasing - South,Permanent Residential,Fairview House,1886.24, 09-May-2017
642,Revenue,CAHD,Bed Purchasing - South,Permanent Residential,Fairview House,2018.16, 09-May-2017
643,Revenue,CAHD,Bed Purchasing - South,Permanent Residential,Fairview House,1917.36, 09-May-2017
644,Revenue,CAHD,Bed Purchasing - South,Permanent Residential,Fairview House,2117.24, 09-May-2017
645,Revenue,CAHD,Bed Purchasing - Southmead Hospital,Permanent Residential,Faith House,1857.14, 09-May-2017
646,Revenue,CAHD,Bed Purchasing - Southmead Hospital,Respite Emergency - Residential,Faith House,1207.14, 09-May-2017
647,Revenue,CAHD,Bed Purchasing - Southmead Hospital,Respite Emergency - Residential,Faith House,742.86, 09-May-2017
648,Revenue,CAHD,Bed Purchasing - North,Respite Planned - Residential,Faith House,1300, 09-May-2017
649,Revenue,CAHD,Bed Purchasing - North,Respite Planned - Residential,Faith House,1222.84, 09-May-2017
650,Revenue,CAHD,Bed Purchasing - North,Permanent Residential,Faith House,2633.8, 09-May-2017
651,Revenue,CAHD,Bed Purchasing - North,Permanent Residential,Faith House,1316.9, 09-May-2017
652,Revenue,CAHD,Bed Purchasing - North,Permanent Residential,Faith House,1207.14, 09-May-2017
653,Revenue,CAHD,Bed Purchasing - Southmead Hospital,Permanent Nursing,Field House Care Home,3261.88, 09-May-2017
654,Revenue,CAHD,Bed Purchasing - Southmead Hospital,Fees & Charges Income - General,Field House Care Home,1128.23, 09-May-2017
655,Revenue,CAHD,Bed Purchasing - North,Respite Emergency - Residential,Fieldview,3444.2, 09-May-2017
656,Revenue,CAHD,Bed Purchasing - Elderly S117- North,Permanent Nursing,Fieldview,4052, 09-May-2017
657,Revenue,CAHD,Bed Purchasing - Elderly S117- North,Permanent Nursing,Fieldview,3857.14, 09-May-2017
658,Revenue,CAHD,Bed Purchasing - Elderly S117- North,Permanent Nursing,Fieldview,2026, 09-May-2017
659,Revenue,CAHD,Bed Purchasing - North,Permanent Residential,Fieldview,3800, 09-May-2017
660,Revenue,CAHD,Bed Purchasing - North,Respite Planned - Nursing,Fieldview,2671.43, 09-May-2017
661,Revenue,CAHD,Bed Purchasing - North,Permanent Residential,Fieldview,2836.4, 09-May-2017
662,Revenue,CAHD,Bed Purchasing - North,Permanent Residential,Fieldview,1418.2, 09-May-2017
663,Revenue,CAHD,MH Purchasing - Younger,Permanent Nursing,Fieldview,5267.6, 09-May-2017
664,Revenue,CAHD,MH Purchasing - Younger,Permanent Nursing,Fieldview,2633.8, 09-May-2017
665,Revenue,CAHD,Bed Purchasing - South,Permanent Residential,Fig House,2836.4, 09-May-2017
666,Revenue,CAHD,Home Care - Elderly - North,Supported Living,Freeways Trust Ltd,810.4, 09-May-2017
667,Revenue,CAHD,Bed purchasing - S28A Under 65 - South,Permanent Residential,Freeways Trust Ltd,3592.4, 09-May-2017
668,Revenue,CAHD,Bed Purchasing - North,Permanent Residential,Freeways Trust Ltd,3606.68, 09-May-2017
669,Revenue,CAHD,Bed Purchasing - South,Permanent Residential,Freeways Trust Ltd,3825.16, 09-May-2017
670,Revenue,CAHD,Bed Purchasing - North,Permanent Residential,Freeways Trust Ltd,2888.32, 09-May-2017
671,Revenue,CAHD,Bed Purchasing - South,Permanent Residential,Freeways Trust Ltd,3043.64, 09-May-2017
672,Revenue,CAHD,Bed Purchasing - North,Permanent Residential,Freeways Trust Ltd,3190, 09-May-2017
673,Revenue,CAHD,Bed Purchasing - North,Permanent Residential,Freeways Trust Ltd,3818.2, 09-May-2017
674,Revenue,CAHD,18-25 Year Olds,Permanent Residential,Freeways Trust Ltd,3527.2, 09-May-2017
675,Revenue,CAHD,Bed Purchasing - North,Permanent Residential,Freeways Trust Ltd,4407.73, 09-May-2017
676,Revenue,CAHD,South Glos Users in South Glos Homes,Permanent Nursing,Fshc  1St Floor,620.2, 09-May-2017
677,Revenue,CAHD,Bed Purchasing - South,Permanent Nursing,Fshc  1St Floor,2621.16, 09-May-2017
678,Revenue,CAHD,South Glos Users in South Glos Homes,Permanent Nursing,Fshc  1St Floor,620.2, 09-May-2017
679,Revenue,CAHD,Bed Purchasing - South,Permanent Nursing,Fshc  1St Floor,2099.88, 09-May-2017
680,Revenue,CAHD,Bed Purchasing - Southmead Hospital,Permanent Nursing,Fshc  1St Floor,2281.28, 09-May-2017
681,Revenue,CAHD,Bed Purchasing - South,Permanent Nursing,Fshc  1St Floor,2099.88, 09-May-2017
682,Revenue,CAHD,South Glos Users in South Glos Homes,Permanent Nursing,Fshc  1St Floor,620.2, 09-May-2017
683,Revenue,CAHD,Bed Purchasing - Southmead Hospital,Permanent Nursing,Fshc  1St Floor,2390.68, 09-May-2017
684,Revenue,CAHD,South Glos Users in South Glos Homes,Permanent Nursing,Fshc  1St Floor,620.2, 09-May-2017
685,Revenue,CAHD,Bed Purchasing - Southmead Hospital,Permanent Nursing,Fshc  1St Floor,2099.88, 09-May-2017
686,Revenue,CAHD,South Glos Users in South Glos Homes,Permanent Nursing,Fshc  1St Floor,620.2, 09-May-2017
687,Revenue,CAHD,South Glos Users in South Glos Homes,Permanent Nursing,Fshc  1St Floor,620.2, 09-May-2017
688,Revenue,CAHD,South Glos Users in South Glos Homes,Permanent Nursing,Fshc  1St Floor,2834.82, 09-May-2017
689,Revenue,CAHD,Bed Purchasing - Southmead Hospital,Permanent Nursing,Fshc  1St Floor,2281.28, 09-May-2017
690,Revenue,CAHD,South Glos Users in South Glos Homes,Permanent Nursing,Fshc  1St Floor,620.2, 09-May-2017
691,Revenue,CAHD,South Glos Users in South Glos Homes,Permanent Nursing,Fshc  1St Floor,509.45, 09-May-2017
692,Revenue,CAHD,Bed Purchasing - Southmead Hospital,Permanent Nursing,Fshc  1St Floor,2581.12, 09-May-2017
693,Revenue,CAHD,South Glos Users in South Glos Homes,Permanent Nursing,Fshc  1St Floor,620.2, 09-May-2017
694,Revenue,CAHD,Bed Purchasing - Southmead Hospital,Permanent Nursing,Fshc  1St Floor,2099.88, 09-May-2017
695,Revenue,CAHD,Bed Purchasing - Southmead Hospital,Respite Planned - Nursing,Fshc  1St Floor,7399.43, 09-May-2017
696,Revenue,CAHD,Bed Purchasing - Southmead Hospital,Permanent Nursing,Fshc  1St Floor,3371.43, 09-May-2017
697,Revenue,CAHD,Bed Purchasing - Southmead Hospital,Permanent Nursing,Fshc  1St Floor,2390.68, 09-May-2017
698,Revenue,CAHD,Bed Purchasing - Southmead Hospital,Permanent Nursing,Fshc  1St Floor,1195.34, 09-May-2017
699,Revenue,CAHD,Bed Purchasing - Southmead Hospital,Permanent Nursing,Fshc  1St Floor,3099.8, 09-May-2017
700,Revenue,CAHD,Bed Purchasing - Southmead Hospital,Permanent Nursing,Fshc  1St Floor,1549.9, 09-May-2017
701,Revenue,CAHD,South Glos Users in South Glos Homes,Permanent Nursing,Fshc  1St Floor,620.2, 09-May-2017
702,Revenue,CAHD,Bed Purchasing - South,Permanent Nursing,Fshc  1St Floor,2613.56, 09-May-2017
703,Revenue,CAHD,South Glos Users in South Glos Homes,Permanent Nursing,Fshc  1St Floor,620.2, 09-May-2017
704,Revenue,CAHD,Bed Purchasing - South,Permanent Nursing,Fshc  1St Floor,2312.32, 09-May-2017
705,Revenue,CAHD,Bed Purchasing - Southmead Hospital,Permanent Nursing,Fshc  1St Floor,2312.32, 09-May-2017
706,Revenue,CAHD,Bed Purchasing - South,Permanent Nursing,Fshc  1St Floor,2281.28, 09-May-2017
707,Revenue,CAHD,South Glos Users in South Glos Homes,Permanent Nursing,Fshc  1St Floor,620.2, 09-May-2017
708,Revenue,CAHD,Bed Purchasing - Southmead Hospital,Permanent Nursing,Fshc  1St Floor,2099.88, 09-May-2017
709,Revenue,CAHD,South Glos Users in South Glos Homes,Permanent Nursing,Fshc  1St Floor,620.2, 09-May-2017
710,Revenue,CAHD,Bed Purchasing - Southmead Hospital,Permanent Nursing,Fshc  1St Floor,2281.28, 09-May-2017
711,Revenue,CAHD,South Glos Users in South Glos Homes,Permanent Nursing,Fshc  1St Floor,620.2, 09-May-2017
712,Revenue,CAHD,Bed Purchasing - Southmead Hospital,Permanent Nursing,Fshc  1St Floor,2099.88, 09-May-2017
713,Revenue,CAHD,South Glos Users in South Glos Homes,Permanent Nursing,Fshc  1St Floor,620.2, 09-May-2017
714,Revenue,CAHD,Bed Purchasing - Southmead Hospital,Permanent Residential,Fshc  1St Floor,1958.56, 09-May-2017
715,Revenue,CAHD,Bed Purchasing - South,Permanent Nursing,Fshc  1St Floor,2099.88, 09-May-2017
716,Revenue,CAHD,Bed Purchasing - North,Permanent Nursing,Fshc  1St Floor,2099.88, 09-May-2017
717,Revenue,CAHD,South Glos Users in South Glos Homes,Permanent Nursing,Fshc  1St Floor,620.2, 09-May-2017
718,Revenue,CAHD,Bed Purchasing - South,Permanent Nursing,Fshc  1St Floor,2281.28, 09-May-2017
719,Revenue,CAHD,South Glos Users in South Glos Homes,Permanent Nursing,Fshc  1St Floor,620.2, 09-May-2017
720,Revenue,CAHD,South Glos Users in South Glos Homes,Permanent Nursing,Fshc  1St Floor,620.2, 09-May-2017
721,Revenue,CAHD,South Glos Users in South Glos Homes,Permanent Nursing,Fshc  1St Floor,620.2, 09-May-2017
722,Revenue,CAHD,Bed Purchasing - North,Permanent Nursing,Fshc  1St Floor,2312.32, 09-May-2017
723,Revenue,CAHD,South Glos Users in South Glos Homes,Permanent Nursing,Fshc  1St Floor,620.2, 09-May-2017
724,Revenue,CAHD,Bed Purchasing - Southmead Hospital,Permanent Nursing,Fshc  1St Floor,2810.84, 09-May-2017
725,Revenue,CAHD,South Glos Users in South Glos Homes,Permanent Nursing,Fshc  1St Floor,620.2, 09-May-2017
726,Revenue,CAHD,Bed Purchasing - Southmead Hospital,Permanent Residential,Fshc  1St Floor,2256.96, 09-May-2017
727,Revenue,CAHD,Bed Purchasing - South,Permanent Nursing,Fshc  1St Floor,2256.96, 09-May-2017
728,Revenue,CAHD,South Glos Users in South Glos Homes,Permanent Nursing,Fshc  1St Floor,620.2, 09-May-2017
729,Revenue,CAHD,Bed Purchasing - Southmead Hospital,Permanent Nursing,Fshc  1St Floor,2099.88, 09-May-2017
730,Revenue,CAHD,South Glos Users in South Glos Homes,Permanent Nursing,Fshc  1St Floor,620.2, 09-May-2017
731,Revenue,CAHD,Bed Purchasing - North,Permanent Nursing,Fshc  1St Floor,2228, 09-May-2017
732,Revenue,CAHD,South Glos Users in South Glos Homes,Permanent Nursing,Fshc  1St Floor,620.2, 09-May-2017
733,Revenue,CAHD,South Glos Users in South Glos Homes,Permanent Nursing,Fshc  1St Floor,620.2, 09-May-2017
734,Revenue,CAHD,Bed Purchasing - Southmead Hospital,Permanent Nursing,Fshc  1St Floor,2099.88, 09-May-2017
735,Revenue,CAHD,South Glos Users in South Glos Homes,Permanent Nursing,Fshc  1St Floor,620.2, 09-May-2017
736,Revenue,CAHD,Bed Purchasing - Southmead Hospital,Permanent Residential,Fshc  1St Floor,1958.56, 09-May-2017
737,Revenue,CAHD,Bed Purchasing - Southmead Hospital,Respite Emergency - Nursing,Fshc  1St Floor,1671, 09-May-2017
738,Revenue,CAHD,South Glos Users in South Glos Homes,Permanent Nursing,Fshc  1St Floor,620.2, 09-May-2017
739,Revenue,CAHD,Bed Purchasing - Southmead Hospital,Permanent Nursing,Fshc  1St Floor,2099.88, 09-May-2017
740,Revenue,CAHD,South Glos Users in South Glos Homes,Permanent Nursing,Fshc  1St Floor,620.2, 09-May-2017
741,Revenue,CAHD,South Glos Users in South Glos Homes,Permanent Nursing,Fshc  1St Floor,620.2, 09-May-2017
742,Revenue,CAHD,Bed Purchasing - Southmead Hospital,Permanent Nursing,Fshc  1St Floor,2099.88, 09-May-2017
743,Revenue,CAHD,South Glos Users in South Glos Homes,Permanent Nursing,Fshc  1St Floor,620.2, 09-May-2017
744,Revenue,CAHD,South Glos Users in South Glos Homes,Permanent Nursing,Fshc  1St Floor,620.2, 09-May-2017
745,Revenue,CAHD,Bed Purchasing - North,Permanent Nursing,Fshc  1St Floor,2228, 09-May-2017
746,Revenue,CAHD,South Glos Users in South Glos Homes,Permanent Nursing,Fshc  1St Floor,620.2, 09-May-2017
747,Revenue,CAHD,Bed Purchasing - North,Permanent Nursing,Fshc  1St Floor,2099.88, 09-May-2017
748,Revenue,CAHD,South Glos Users in South Glos Homes,Permanent Nursing,Fshc  1St Floor,620.2, 09-May-2017
749,Revenue,CAHD,South Glos Users in South Glos Homes,Permanent Nursing,Fshc  1St Floor,669.64, 09-May-2017
750,Revenue,CAHD,South Glos Users in South Glos Homes,Permanent Nursing,Fshc  1St Floor,620.2, 09-May-2017
751,Revenue,CAHD,South Glos Users in South Glos Homes,Permanent Nursing,Fshc  1St Floor,620.2, 09-May-2017
752,Revenue,CAHD,South Glos Users in South Glos Homes,Permanent Nursing,Fshc  1St Floor,620.2, 09-May-2017
753,Revenue,CAHD,Bed Purchasing - Southmead Hospital,Fees & Charges Income - General,Fshc  1St Floor,578.81, 09-May-2017
754,Revenue,CAHD,Bed Purchasing - Southmead Hospital,Respite Planned - Residential,Fshc  1St Floor,1722.38, 09-May-2017
755,Revenue,CAHD,Bed Purchasing - Southmead Hospital,Respite Planned - Residential,Fshc  1St Floor,1096.06, 09-May-2017
756,Revenue,CAHD,South Glos Users in South Glos Homes,Permanent Nursing,Fshc  1St Floor,620.2, 09-May-2017
757,Revenue,CAHD,Bed Purchasing - Southmead Hospital,Respite Planned - Residential,Fshc  1St Floor,541, 09-May-2017
758,Revenue,CAHD,South Glos Users in South Glos Homes,Permanent Nursing,Fshc  1St Floor,620.2, 09-May-2017
759,Revenue,CAHD,South Glos Users in South Glos Homes,Permanent Nursing,Fshc  1St Floor,1473.21, 09-May-2017
760,Revenue,CAHD,South Glos Users in South Glos Homes,Permanent Nursing,Fshc  1St Floor,620.2, 09-May-2017
761,Revenue,CAHD,South Glos Users in South Glos Homes,Permanent Nursing,Fshc  1St Floor,509.45, 09-May-2017
762,Revenue,CAHD,South Glos Users in South Glos Homes,Permanent Nursing,Fshc  1St Floor,620.2, 09-May-2017
763,Revenue,CAHD,Bed Purchasing - North,Permanent Nursing,Fshc  1St Floor,2099.88, 09-May-2017
764,Revenue,CAHD,South Glos Users in South Glos Homes,Permanent Nursing,Fshc  1St Floor,620.2, 09-May-2017
765,Revenue,CAHD,South Glos Users in South Glos Homes,Permanent Nursing,Fshc  1St Floor,2053.57, 09-May-2017
766,Revenue,CAHD,Bed Purchasing - Southmead Hospital,Permanent Residential,Fshc  1St Floor,1958.56, 09-May-2017
767,Revenue,CAHD,Bed Purchasing - Southmead Hospital,Permanent Residential,Fshc  1St Floor,979.28, 09-May-2017
768,Revenue,CAHD,South Glos Users in South Glos Homes,Permanent Nursing,Fshc  1St Floor,620.2, 09-May-2017
769,Revenue,CAHD,South Glos Users in South Glos Homes,Permanent Nursing,Fshc  1St Floor,5200.89, 09-May-2017
770,Revenue,CAHD,South Glos Users in South Glos Homes,Permanent Nursing,Fshc  1St Floor,620.2, 09-May-2017
771,Revenue,CAHD,South Glos Users in South Glos Homes,Permanent Nursing,Fshc  1St Floor,509.45, 09-May-2017
772,Revenue,CAHD,Bed Purchasing - North,Permanent Nursing,Fshc  1St Floor,2099.88, 09-May-2017
773,Revenue,CAHD,South Glos Users in South Glos Homes,Permanent Nursing,Fshc  1St Floor,620.2, 09-May-2017
774,Revenue,CAHD,Bed Purchasing - North,Permanent Nursing,Fshc  1St Floor,2099.88, 09-May-2017
775,Revenue,CAHD,South Glos Users in South Glos Homes,Permanent Nursing,Fshc  1St Floor,620.2, 09-May-2017
776,Revenue,CAHD,Bed Purchasing - Southmead Hospital,Permanent Nursing,Fshc  1St Floor,2228, 09-May-2017
777,Revenue,CAHD,South Glos Users in South Glos Homes,Permanent Nursing,Fshc  1St Floor,620.2, 09-May-2017
778,Revenue,CAHD,Bed Purchasing - North,Permanent Nursing,Fshc  1St Floor,2099.88, 09-May-2017
779,Revenue,CAHD,South Glos Users in South Glos Homes,Permanent Nursing,Fshc  1St Floor,620.2, 09-May-2017
780,Revenue,CAHD,Bed Purchasing - North,Permanent Nursing,Fshc  1St Floor,2099.88, 09-May-2017
781,Revenue,CAHD,South Glos Users in South Glos Homes,Permanent Nursing,Fshc  1St Floor,620.2, 09-May-2017
782,Revenue,CAHD,Bed Purchasing - North,Permanent Nursing,Fshc  1St Floor,2256.96, 09-May-2017
783,Revenue,CAHD,South Glos Users in South Glos Homes,Permanent Nursing,Fshc  1St Floor,620.2, 09-May-2017
784,Revenue,CAHD,Bed Purchasing - North,Permanent Nursing,Fshc  1St Floor,2099.88, 09-May-2017
785,Revenue,CAHD,South Glos Users in South Glos Homes,Permanent Nursing,Fshc  1St Floor,620.2, 09-May-2017
786,Revenue,CAHD,Bed Purchasing - Southmead Hospital,Permanent Nursing,Fshc  1St Floor,1830.14, 09-May-2017
787,Revenue,CAHD,South Glos Users in South Glos Homes,Permanent Nursing,Fshc  1St Floor,580.36, 09-May-2017
788,Revenue,CAHD,Bed Purchasing - Southmead Hospital,Permanent Nursing,Fshc  1St Floor,2228, 09-May-2017
789,Revenue,CAHD,South Glos Users in South Glos Homes,Permanent Nursing,Fshc  1St Floor,620.2, 09-May-2017
790,Revenue,CAHD,Bed Purchasing - North,Permanent Nursing,Fshc  1St Floor,2099.88, 09-May-2017
791,Revenue,CAHD,South Glos Users in South Glos Homes,Permanent Nursing,Fshc  1St Floor,620.2, 09-May-2017
792,Revenue,CAHD,South Glos Users in South Glos Homes,Permanent Nursing,Fshc  1St Floor,620.2, 09-May-2017
793,Revenue,CAHD,Bed Purchasing - North,Permanent Nursing,Fshc  1St Floor,2228, 09-May-2017
794,Revenue,CAHD,South Glos Users in South Glos Homes,Permanent Nursing,Fshc  1St Floor,620.2, 09-May-2017
795,Revenue,CAHD,Bed Purchasing - North,Permanent Nursing,Fshc  1St Floor,2099.88, 09-May-2017
796,Revenue,CAHD,South Glos Users in South Glos Homes,Permanent Nursing,Fshc  1St Floor,620.2, 09-May-2017
797,Revenue,CAHD,Bed Purchasing - North,Permanent Nursing,Fshc  1St Floor,2171.52, 09-May-2017
798,Revenue,CAHD,South Glos Users in South Glos Homes,Permanent Nursing,Fshc  1St Floor,620.2, 09-May-2017
799,Revenue,CAHD,Bed Purchasing - Southmead Hospital,Permanent Nursing,Fshc  1St Floor,2382.56, 09-May-2017
800,Revenue,CAHD,South Glos Users in South Glos Homes,Permanent Nursing,Fshc  1St Floor,620.2, 09-May-2017
801,Revenue,CAHD,South Glos Users in South Glos Homes,Permanent Nursing,Fshc  1St Floor,620.2, 09-May-2017
802,Revenue,CAHD,Bed Purchasing - North,Permanent Nursing,Fshc  1St Floor,2099.88, 09-May-2017
803,Revenue,CAHD,South Glos Users in South Glos Homes,Permanent Nursing,Fshc  1St Floor,620.2, 09-May-2017
804,Revenue,CAHD,South Glos Users in South Glos Homes,Permanent Nursing,Fshc  1St Floor,620.2, 09-May-2017
805,Revenue,CAHD,South Glos Users in South Glos Homes,Permanent Nursing,Fshc  1St Floor,620.2, 09-May-2017
806,Revenue,CAHD,South Glos Users in South Glos Homes,Permanent Nursing,Fshc  1St Floor,620.2, 09-May-2017
807,Revenue,CAHD,South Glos Users in South Glos Homes,Permanent Nursing,Fshc  1St Floor,620.2, 09-May-2017
808,Revenue,CAHD,Bed Purchasing - South,Permanent Nursing,Fshc  1St Floor,2507.16, 09-May-2017
809,Revenue,CAHD,South Glos Users in South Glos Homes,Permanent Nursing,Fshc  1St Floor,620.2, 09-May-2017
810,Revenue,CAHD,South Glos Users in South Glos Homes,Permanent Nursing,Fshc  1St Floor,620.2, 09-May-2017
811,Revenue,CAHD,Bed Purchasing - North,Permanent Nursing,Fshc  1St Floor,2099.88, 09-May-2017
812,Revenue,CAHD,South Glos Users in South Glos Homes,Permanent Nursing,Fshc  1St Floor,620.2, 09-May-2017
813,Revenue,CAHD,South Glos Users in South Glos Homes,Permanent Nursing,Fshc  1St Floor,620.2, 09-May-2017
814,Revenue,CAHD,Bed Purchasing - Southmead Hospital,Permanent Residential,Fshc  1St Floor,1958.56, 09-May-2017
815,Revenue,CAHD,Bed Purchasing - Southmead Hospital,Permanent Nursing,Fshc  1St Floor,2479.8, 09-May-2017
816,Revenue,CAHD,South Glos Users in South Glos Homes,Permanent Nursing,Fshc  1St Floor,620.2, 09-May-2017
817,Revenue,CAHD,South Glos Users in South Glos Homes,Permanent Nursing,Fshc  1St Floor,620.2, 09-May-2017
818,Revenue,CAHD,South Glos Users in South Glos Homes,Permanent Nursing,Fshc  1St Floor,620.2, 09-May-2017
819,Revenue,CAHD,Bed Purchasing - Southmead Hospital,Fees & Charges Income - General,Fshc  1St Floor,690.84, 09-May-2017
820,Revenue,CAHD,South Glos Users in South Glos Homes,Permanent Nursing,Fshc  1St Floor,7366.07, 09-May-2017
821,Revenue,CAHD,Bed Purchasing - Southmead Hospital,Respite Planned - Nursing,Fshc  1St Floor,2148.99, 09-May-2017
822,Revenue,CAHD,South Glos Users in South Glos Homes,Permanent Nursing,Fshc  1St Floor,620.2, 09-May-2017
823,Revenue,CAHD,Bed Purchasing - Southmead Hospital,Permanent Nursing,Fshc  1St Floor,2405.88, 09-May-2017
824,Revenue,CAHD,South Glos Users in South Glos Homes,Permanent Nursing,Fshc  1St Floor,620.2, 09-May-2017
825,Revenue,CAHD,South Glos Users in South Glos Homes,Permanent Nursing,Fshc  1St Floor,620.2, 09-May-2017
826,Revenue,CAHD,South Glos Users in South Glos Homes,Permanent Nursing,Fshc  1St Floor,509.45, 09-May-2017
827,Revenue,CAHD,South Glos Users in South Glos Homes,Permanent Nursing,Fshc  1St Floor,620.2, 09-May-2017
828,Revenue,CAHD,Bed Purchasing - North,Permanent Nursing,Fshc  1St Floor,2549.24, 09-May-2017
829,Revenue,CAHD,Bed Purchasing - Southmead Hospital,Permanent Nursing,Fshc  1St Floor,2507.16, 09-May-2017
830,Revenue,CAHD,South Glos Users in South Glos Homes,Permanent Nursing,Fshc  1St Floor,620.2, 09-May-2017
831,Revenue,CAHD,Bed Purchasing - North,Permanent Nursing,Fshc  1St Floor,2099.88, 09-May-2017
832,Revenue,CAHD,South Glos Users in South Glos Homes,Permanent Nursing,Fshc  1St Floor,620.2, 09-May-2017
833,Revenue,CAHD,South Glos Users in South Glos Homes,Permanent Nursing,Fshc  1St Floor,620.2, 09-May-2017
834,Revenue,CAHD,Bed Purchasing - Southmead Hospital,Permanent Nursing,Fshc  1St Floor,2099.88, 09-May-2017
835,Revenue,CAHD,South Glos Users in South Glos Homes,Permanent Nursing,Fshc  1St Floor,620.2, 09-May-2017
836,Revenue,CAHD,South Glos Users in South Glos Homes,Permanent Nursing,Fshc  1St Floor,620.2, 09-May-2017
837,Revenue,CAHD,Bed Purchasing - Southmead Hospital,Fees & Charges Income - General,Fshc  1St Floor,1755.11, 09-May-2017
838,Revenue,CAHD,South Glos Users in South Glos Homes,Permanent Nursing,Fshc  1St Floor,620.2, 09-May-2017
839,Revenue,CAHD,South Glos Users in South Glos Homes,Permanent Nursing,Fshc  1St Floor,509.45, 09-May-2017
840,Revenue,CAHD,Bed Purchasing - North,Permanent Nursing,Fshc  1St Floor,2099.88, 09-May-2017
841,Revenue,CAHD,Bed Purchasing - North,Permanent Nursing,Fshc  1St Floor,1049.94, 09-May-2017
842,Revenue,CAHD,South Glos Users in South Glos Homes,Permanent Nursing,Fshc  1St Floor,620.2, 09-May-2017
843,Revenue,CAHD,Bed Purchasing - South,Permanent Nursing,Fshc  1St Floor,2507.16, 09-May-2017
844,Revenue,CAHD,South Glos Users in South Glos Homes,Permanent Nursing,Fshc  1St Floor,620.2, 09-May-2017
845,Revenue,CAHD,Bed Purchasing - Southmead Hospital,Fees & Charges Income - General,Fshc  1St Floor,10642.12, 09-May-2017
846,Revenue,CAHD,Bed Purchasing - Southmead Hospital,Permanent Nursing,Fshc  1St Floor,2099.88, 09-May-2017
847,Revenue,CAHD,South Glos Users in South Glos Homes,Permanent Nursing,Fshc  1St Floor,620.2, 09-May-2017
848,Revenue,CAHD,Bed Purchasing - South,Permanent Residential,Fshc  1St Floor,2228.6, 09-May-2017
849,Revenue,CAHD,Bed Purchasing - South,Permanent Nursing,Fshc  1St Floor,2431.2, 09-May-2017
850,Revenue,CAHD,South Glos Users in South Glos Homes,Permanent Nursing,Fshc  1St Floor,620.2, 09-May-2017
851,Revenue,CAHD,Bed Purchasing - South,Permanent Nursing,Fshc  1St Floor,2099.88, 09-May-2017
852,Revenue,CAHD,South Glos Users in South Glos Homes,Permanent Nursing,Fshc  1St Floor,620.2, 09-May-2017
853,Revenue,CAHD,Bed Purchasing - Southmead Hospital,Permanent Nursing,Fshc  1St Floor,2099.88, 09-May-2017
854,Revenue,CAHD,South Glos Users in South Glos Homes,Permanent Nursing,Fshc  1St Floor,620.2, 09-May-2017
855,Revenue,CAHD,Bed Purchasing - Southmead Hospital,Permanent Residential,Fshc  1St Floor,2140, 09-May-2017
856,Revenue,CAHD,South Glos Users in South Glos Homes,Permanent Nursing,Fshc  1St Floor,892.86, 09-May-2017
857,Revenue,CAHD,South Glos Users in South Glos Homes,Permanent Nursing,Fshc  1St Floor,620.2, 09-May-2017
858,Revenue,CAHD,South Glos Users in South Glos Homes,Permanent Nursing,Fshc  1St Floor,509.45, 09-May-2017
859,Revenue,CAHD,South Glos Users in South Glos Homes,Permanent Nursing,Fshc  1St Floor,620.2, 09-May-2017
860,Revenue,CAHD,South Glos Users in South Glos Homes,Permanent Nursing,Fshc  1St Floor,620.2, 09-May-2017
861,Revenue,CAHD,Bed Purchasing - South,Permanent Residential,Fshc  1St Floor,2182.36, 09-May-2017
862,Revenue,CAHD,Bed Purchasing - North,Permanent Nursing,Fshc  1St Floor,2099.88, 09-May-2017
863,Revenue,CAHD,Bed Purchasing - North,Permanent Nursing,Fshc  1St Floor,2099.88, 09-May-2017
864,Revenue,CAHD,South Glos Users in South Glos Homes,Permanent Nursing,Fshc  1St Floor,620.2, 09-May-2017
865,Revenue,CAHD,Bed Purchasing - South,Respite Planned - Residential,Fshc  1St Floor,1178.57, 09-May-2017
866,Revenue,CAHD,Bed Purchasing - South,Respite Planned - Residential,Fshc  1St Floor,1021.43, 09-May-2017
867,Revenue,CAHD,Bed Purchasing - South,Respite Planned - Residential,Fshc  1St Floor,550, 09-May-2017
868,Revenue,CAHD,Bed Purchasing - Southmead Hospital,Permanent Nursing,Fshc  1St Floor,2099.88, 09-May-2017
869,Revenue,CAHD,South Glos Users in South Glos Homes,Permanent Nursing,Fshc  1St Floor,620.2, 09-May-2017
870,Revenue,CAHD,Bed Purchasing - South,Permanent Nursing,Fshc  1St Floor,2210.16, 09-May-2017
871,Revenue,CAHD,South Glos Users in South Glos Homes,Permanent Nursing,Fshc  1St Floor,620.2, 09-May-2017
872,Revenue,CAHD,South Glos Users in South Glos Homes,Permanent Nursing,Fshc  1St Floor,620.2, 09-May-2017
873,Revenue,CAHD,Bed Purchasing - Southmead Hospital,Permanent Nursing,Fshc  1St Floor,2099.88, 09-May-2017
874,Revenue,CAHD,South Glos Users in South Glos Homes,Permanent Nursing,Fshc  1St Floor,620.2, 09-May-2017
875,Revenue,CAHD,Bed Purchasing - Southmead Hospital,Permanent Nursing,Fshc  1St Floor,2258.92, 09-May-2017
876,Revenue,CAHD,South Glos Users in South Glos Homes,Permanent Nursing,Fshc  1St Floor,620.2, 09-May-2017
877,Revenue,CAHD,South Glos Users in South Glos Homes,Permanent Nursing,Fshc  1St Floor,620.2, 09-May-2017
878,Revenue,CAHD,South Glos Users in South Glos Homes,Permanent Nursing,Fshc  1St Floor,620.2, 09-May-2017
879,Revenue,CAHD,Bed Purchasing - North,Permanent Residential,Fshc  1St Floor,2600, 09-May-2017
880,Revenue,CAHD,Bed Purchasing - South,Permanent Residential,Fshc  1St Floor,1958.56, 09-May-2017
881,Revenue,CAHD,Bed Purchasing - Southmead Hospital,Permanent Nursing,Fshc  1St Floor,2099.88, 09-May-2017
882,Revenue,CAHD,South Glos Users in South Glos Homes,Permanent Nursing,Fshc  1St Floor,620.2, 09-May-2017
883,Revenue,CAHD,South Glos Users in South Glos Homes,Permanent Nursing,Fshc  1St Floor,2656.25, 09-May-2017
884,Revenue,CAHD,Bed Purchasing - South,Permanent Nursing,Fshc  1St Floor,2836.4, 09-May-2017
885,Revenue,CAHD,South Glos Users in South Glos Homes,Permanent Nursing,Fshc  1St Floor,620.2, 09-May-2017
886,Revenue,CAHD,South Glos Users in South Glos Homes,Permanent Nursing,Fshc  1St Floor,509.45, 09-May-2017
887,Revenue,CAHD,Bed Purchasing - Southmead Hospital,Permanent Nursing,Fshc  1St Floor,2099.88, 09-May-2017
888,Revenue,CAHD,South Glos Users in South Glos Homes,Permanent Nursing,Fshc  1St Floor,620.2, 09-May-2017
889,Revenue,CAHD,Bed Purchasing - Southmead Hospital,Permanent Nursing,Fshc  1St Floor,2099.88, 09-May-2017
890,Revenue,CAHD,South Glos Users in South Glos Homes,Permanent Nursing,Fshc  1St Floor,620.2, 09-May-2017
891,Revenue,CAHD,South Glos Users in South Glos Homes,Permanent Nursing,Fshc  1St Floor,620.2, 09-May-2017
892,Revenue,CAHD,Bed Purchasing - North,Permanent Residential,Fshc  1St Floor,2431.2, 09-May-2017
893,Revenue,CAHD,Bed Purchasing - South,Permanent Nursing,Fshc  1St Floor,2633.8, 09-May-2017
894,Revenue,CAHD,Bed Purchasing - South,Permanent Nursing,Fshc  1St Floor,2010.56, 09-May-2017
895,Revenue,CAHD,Bed Purchasing - South,Permanent Nursing,Fshc  1St Floor,2099.88, 09-May-2017
896,Revenue,CAHD,South Glos Users in South Glos Homes,Permanent Nursing,Fshc  1St Floor,620.2, 09-May-2017
897,Revenue,CAHD,Bed Purchasing - South,Permanent Nursing,Fshc  1St Floor,2354.28, 09-May-2017
898,Revenue,CAHD,South Glos Users in South Glos Homes,Permanent Nursing,Fshc  1St Floor,620.2, 09-May-2017
899,Revenue,CAHD,Bed Purchasing - South,Permanent Nursing,Fshc  1St Floor,2174.88, 09-May-2017
900,Revenue,CAHD,Bed Purchasing - South,Permanent Nursing,Fshc  1St Floor,1087.44, 09-May-2017
901,Revenue,CAHD,South Glos Users in South Glos Homes,Permanent Nursing,Fshc  1St Floor,620.2, 09-May-2017
902,Revenue,CAHD,Bed Purchasing - South,Permanent Residential,Fshc  1St Floor,2182.36, 09-May-2017
903,Revenue,CAHD,Bed Purchasing - South,Permanent Nursing,Fshc  1St Floor,1954.96, 09-May-2017
904,Revenue,CAHD,Bed Purchasing - Southmead Hospital,Permanent Nursing,Fshc  1St Floor,2874.96, 09-May-2017
905,Revenue,CAHD,Bed purchasing - Elderly S117 - South,Permanent Nursing,Fshc  1St Floor,1954.96, 09-May-2017
906,Revenue,CAHD,Bed Purchasing - South,Permanent Nursing,Fshc  1St Floor,3444.2, 09-May-2017
907,Revenue,CAHD,Bed Purchasing - South,Permanent Nursing,Fshc  1St Floor,2633.8, 09-May-2017
908,Revenue,CAHD,Bed Purchasing - South,Permanent Nursing,Fshc  1St Floor,3849.4, 09-May-2017
909,Revenue,CAHD,Bed Purchasing - South,Fees & Charges Income - General,Fshc  1St Floor,1404.64, 09-May-2017
910,Revenue,CAHD,Bed Purchasing - South,Fees & Charges Income - General,Fshc  1St Floor,739.9, 09-May-2017
911,Revenue,CAHD,Bed Purchasing - South,Fees & Charges Income - General,Fshc  1St Floor,786.6, 09-May-2017
912,Revenue,CAHD,Bed Purchasing - Southmead Hospital,Permanent Nursing,Fshc  1St Floor,1954.96, 09-May-2017
913,Revenue,CAHD,Bed Purchasing - Southmead Hospital,Permanent Nursing,Fshc  1St Floor,1954.96, 09-May-2017
914,Revenue,CAHD,Bed Purchasing - Southmead Hospital,Permanent Nursing,Fshc  1St Floor,1954.96, 09-May-2017
915,Revenue,CAHD,Bed Purchasing - South,Permanent Nursing,Fshc  1St Floor,1954.96, 09-May-2017
916,Revenue,CAHD,Bed Purchasing - South,Permanent Residential,Fshc  1St Floor,3588.12, 09-May-2017
917,Revenue,CAHD,Bed Purchasing - Southmead Hospital,Permanent Residential,Fshc  1St Floor,1971.36, 09-May-2017
918,Revenue,CAHD,Bed Purchasing - North,Permanent Nursing,Fshc  1St Floor,2217.88, 09-May-2017
919,Revenue,CAHD,Bed Purchasing - Southmead Hospital,Respite Planned - Nursing,Fshc  1St Floor,2217.88, 09-May-2017
920,Revenue,CAHD,Bed Purchasing - North,Permanent Nursing,Fshc  1St Floor,2014.28, 09-May-2017
921,Revenue,CAHD,South Glos Users in South Glos Homes,Permanent Nursing,Fshc  1St Floor,620.2, 09-May-2017
922,Revenue,CAHD,Bed Purchasing - North,Permanent Nursing,Fshc  1St Floor,2217.88, 09-May-2017
923,Revenue,CAHD,Bed Purchasing - North,Permanent Nursing,Fshc  1St Floor,2217.88, 09-May-2017
924,Revenue,CAHD,Bed Purchasing - Southmead Hospital,Permanent Nursing,Fshc  1St Floor,2217.88, 09-May-2017
925,Revenue,CAHD,Bed Purchasing - North,Permanent Nursing,Fshc  1St Floor,1954.96, 09-May-2017
926,Revenue,CAHD,Bed Purchasing - Southmead Hospital,Permanent Nursing,Fshc  1St Floor,1787.22, 09-May-2017
927,Revenue,CAHD,Bed Purchasing - Southmead Hospital,Permanent Nursing,Fshc  1St Floor,846.58, 09-May-2017
928,Revenue,CAHD,Bed Purchasing - South,Permanent Residential,Fshc  1St Floor,2228.6, 09-May-2017
929,Revenue,CAHD,Bed Purchasing - North,Permanent Residential,Fshc  1St Floor,1855.12, 09-May-2017
930,Revenue,CAHD,Bed Purchasing - South,Permanent Residential,Gladstone House,5749.96, 09-May-2017
931,Revenue,CAHD,Bed Purchasing - North,Permanent Residential,Glan Y Felin,6520.08, 09-May-2017
932,Revenue,CAHD,Bed Purchasing - South,Permanent Residential,Glasallt Fawr,5121.84, 09-May-2017
933,Revenue,CAHD,South Glos Users in South Glos Homes,Permanent Nursing,Glebe House Nursing Home,620.2, 09-May-2017
934,Revenue,CAHD,Bed Purchasing - North,Permanent Residential,Glebe House Nursing Home,2829.16, 09-May-2017
935,Revenue,CAHD,Bed Purchasing - North,Permanent Residential,Glebe House Nursing Home,615.04, 09-May-2017
936,Revenue,CAHD,South Glos Users in South Glos Homes,Permanent Nursing,Glebe House Nursing Home,620.2, 09-May-2017
937,Revenue,CAHD,South Glos Users in South Glos Homes,Permanent Nursing,Glebe House Nursing Home,620.2, 09-May-2017
938,Revenue,CAHD,South Glos Users in South Glos Homes,Permanent Nursing,Glebe House Nursing Home,620.2, 09-May-2017
939,Revenue,CAHD,South Glos Users in South Glos Homes,Permanent Nursing,Glebe House Nursing Home,620.2, 09-May-2017
940,Revenue,CAHD,Bed Purchasing - North,Permanent Nursing,Glebe House Nursing Home,3154.24, 09-May-2017
941,Revenue,CAHD,South Glos Users in South Glos Homes,Permanent Nursing,Glebe House Nursing Home,620.2, 09-May-2017
942,Revenue,CAHD,South Glos Users in South Glos Homes,Permanent Nursing,Glebe House Nursing Home,620.2, 09-May-2017
943,Revenue,CAHD,South Glos Users in South Glos Homes,Permanent Nursing,Glebe House Nursing Home,620.2, 09-May-2017
944,Revenue,CAHD,Bed Purchasing - North,Permanent Residential,Glebe House Nursing Home,3360, 09-May-2017
945,Revenue,CAHD,Bed Purchasing - North,Permanent Residential,Glebe House Nursing Home,600, 09-May-2017
946,Revenue,CAHD,South Glos Users in South Glos Homes,Permanent Nursing,Glebe House Nursing Home,620.2, 09-May-2017
947,Revenue,CAHD,Bed Purchasing - North,Permanent Nursing,Glebe House Nursing Home,3043.36, 09-May-2017
948,Revenue,CAHD,South Glos Users in South Glos Homes,Permanent Nursing,Glebe House Nursing Home,620.2, 09-May-2017
949,Revenue,CAHD,South Glos Users in South Glos Homes,Permanent Nursing,Glebe House Nursing Home,620.2, 09-May-2017
950,Revenue,CAHD,South Glos Users in South Glos Homes,Permanent Nursing,Glebe House Nursing Home,620.2, 09-May-2017
951,Revenue,CAHD,South Glos Users in South Glos Homes,Permanent Nursing,Glebe House Nursing Home,620.2, 09-May-2017
952,Revenue,CAHD,South Glos Users in South Glos Homes,Permanent Nursing,Glebe House Nursing Home,620.2, 09-May-2017
953,Revenue,CAHD,South Glos Users in South Glos Homes,Permanent Nursing,Glebe House Nursing Home,620.2, 09-May-2017
954,Revenue,CAHD,South Glos Users in South Glos Homes,Permanent Nursing,Glebe House Nursing Home,620.2, 09-May-2017
955,Revenue,CAHD,South Glos Users in South Glos Homes,Permanent Nursing,Glebe House Nursing Home,620.2, 09-May-2017
956,Revenue,CAHD,Bed Purchasing - South,Permanent Residential,Glebe House Nursing Home,3342.92, 09-May-2017
957,Revenue,CAHD,Bed Purchasing - Southmead Hospital,Permanent Residential,Glebe House Nursing Home,2557.14, 09-May-2017
958,Revenue,CAHD,South Glos Users in South Glos Homes,Permanent Nursing,Glebe House Nursing Home,620.2, 09-May-2017
959,Revenue,CAHD,South Glos Users in South Glos Homes,Permanent Nursing,Glebe House Nursing Home,509.45, 09-May-2017
960,Revenue,CAHD,South Glos Users in South Glos Homes,Permanent Nursing,Glebe House Nursing Home,620.2, 09-May-2017
961,Revenue,CAHD,South Glos Users in South Glos Homes,Permanent Nursing,Glebe House Nursing Home,620.2, 09-May-2017
962,Revenue,CAHD,Bed Purchasing - North,Permanent Nursing,Glebe House Nursing Home,3216.28, 09-May-2017
963,Revenue,CAHD,South Glos Users in South Glos Homes,Permanent Nursing,Glebe House Nursing Home,620.2, 09-May-2017
964,Revenue,CAHD,South Glos Users in South Glos Homes,Permanent Nursing,Glebe House Nursing Home,620.2, 09-May-2017
965,Revenue,CAHD,South Glos Users in South Glos Homes,Permanent Nursing,Glebe House Nursing Home,620.2, 09-May-2017
966,Revenue,CAHD,Bed Purchasing - South,Permanent Residential,Goldcare House,4539.28, 09-May-2017
967,Revenue,CAHD,Bed Purchasing - South,Permanent Residential,Goldcare House,2107.52, 09-May-2017
968,Revenue,CAHD,Bed Purchasing - South,Permanent Residential,Goldcare House,960.22, 09-May-2017
969,Revenue,CAHD,Bed Purchasing - Southmead Hospital,Respite Planned - Residential,Gordena Care Home,3852.48, 09-May-2017
970,Revenue,CAHD,Bed Purchasing - Southmead Hospital,Respite Planned - Residential,Gordena Care Home,1788.65, 09-May-2017
971,Revenue,CAHD,Bed Purchasing - South,Permanent Residential,Gordena Care Home,2586.8, 09-May-2017
972,Revenue,CAHD,Bed Purchasing - South,Permanent Residential,Gordena Care Home,3682.84, 09-May-2017
973,Revenue,CAHD,Bed Purchasing - South,Permanent Residential,Gordena Care Home,2582.6, 09-May-2017
974,Revenue,CAHD,Bed Purchasing - South,Permanent Residential,Gordena Care Home,4293.88, 09-May-2017
975,Revenue,CAHD,Bed Purchasing - South,Permanent Residential,Gordena Care Home,3694.04, 09-May-2017
976,Revenue,CAHD,Bed Purchasing - South,Permanent Residential,Gordena Care Limited,4826.88, 09-May-2017
977,Revenue,CAHD,Bed Purchasing - South,Permanent Residential,Gordena Care Limited,4786.44, 09-May-2017
978,Revenue,CAHD,Bed purchasing - S28A Under 65 - South,Permanent Residential,Gordena Care Limited,4694.4, 09-May-2017
979,Revenue,CAHD,Bed Purchasing - North,Permanent Residential,Gordena Care Limited,4892.64, 09-May-2017
980,Revenue,CAHD,Bed Purchasing - South,Permanent Nursing,Gracefields Nursing Home,2486.52, 09-May-2017
981,Revenue,CAHD,South Glos Users in South Glos Homes,Permanent Nursing,Gracefields Nursing Home,620.2, 09-May-2017
982,Revenue,CAHD,South Glos Users in South Glos Homes,Permanent Nursing,Gracefields Nursing Home,620.2, 09-May-2017
983,Revenue,CAHD,South Glos Users in South Glos Homes,Permanent Nursing,Gracefields Nursing Home,620.2, 09-May-2017
984,Revenue,CAHD,Bed Purchasing - Southmead Hospital,Fees & Charges Income - General,Gracefields Nursing Home,2376.39, 09-May-2017
985,Revenue,CAHD,South Glos Users in South Glos Homes,Permanent Nursing,Gracefields Nursing Home,620.2, 09-May-2017
986,Revenue,CAHD,Bed purchasing - Elderly S117 - South,Permanent Nursing,Gracefields Nursing Home,2445.68, 09-May-2017
987,Revenue,CAHD,South Glos Users in South Glos Homes,Permanent Nursing,Gracefields Nursing Home,620.2, 09-May-2017
988,Revenue,CAHD,South Glos Users in South Glos Homes,Permanent Nursing,Gracefields Nursing Home,620.2, 09-May-2017
989,Revenue,CAHD,Bed Purchasing - South,Permanent Nursing,Gracefields Nursing Home,3274, 09-May-2017
990,Revenue,CAHD,South Glos Users in South Glos Homes,Permanent Nursing,Gracefields Nursing Home,620.2, 09-May-2017
991,Revenue,CAHD,Bed Purchasing - South,Permanent Nursing,Gracefields Nursing Home,3094.72, 09-May-2017
992,Revenue,CAHD,South Glos Users in South Glos Homes,Permanent Nursing,Gracefields Nursing Home,620.2, 09-May-2017
993,Revenue,CAHD,South Glos Users in South Glos Homes,Permanent Nursing,Gracefields Nursing Home,620.2, 09-May-2017
994,Revenue,CAHD,South Glos Users in South Glos Homes,Permanent Nursing,Gracefields Nursing Home,620.2, 09-May-2017
995,Revenue,CAHD,South Glos Users in South Glos Homes,Permanent Nursing,Gracefields Nursing Home,620.2, 09-May-2017
996,Revenue,CAHD,South Glos Users in South Glos Homes,Permanent Nursing,Gracefields Nursing Home,620.2, 09-May-2017
997,Revenue,CAHD,South Glos Users in South Glos Homes,Permanent Nursing,Gracefields Nursing Home,620.2, 09-May-2017
998,Revenue,CAHD,South Glos Users in South Glos Homes,Permanent Nursing,Gracefields Nursing Home,620.2, 09-May-2017
999,Revenue,CAHD,South Glos Users in South Glos Homes,Permanent Nursing,Gracefields Nursing Home,620.2, 09-May-2017
1000,Revenue,CAHD,South Glos Users in South Glos Homes,Permanent Nursing,Gracefields Nursing Home,620.2, 09-May-2017
1001,Revenue,CAHD,South Glos Users in South Glos Homes,Permanent Nursing,Gracefields Nursing Home,620.2, 09-May-2017
1002,Revenue,CAHD,South Glos Users in South Glos Homes,Permanent Nursing,Gracefields Nursing Home,620.2, 09-May-2017
1003,Revenue,CAHD,Bed Purchasing - South,Permanent Nursing,Gracefields Nursing Home,3071.4, 09-May-2017
1004,Revenue,CAHD,Bed Purchasing - South,Permanent Nursing,Gracefields Nursing Home,1535.7, 09-May-2017
1005,Revenue,CAHD,Bed Purchasing - South,Permanent Nursing,Gracefields Nursing Home,541.43, 09-May-2017
1006,Revenue,CAHD,South Glos Users in South Glos Homes,Permanent Nursing,Gracefields Nursing Home,1075.18, 09-May-2017
1007,Revenue,CAHD,Bed Purchasing - Southmead Hospital,Permanent Nursing,Gracefields Nursing Home,2790.8, 09-May-2017
1008,Revenue,CAHD,South Glos Users in South Glos Homes,Permanent Nursing,Gracefields Nursing Home,620.2, 09-May-2017
1009,Revenue,CAHD,Bed Purchasing - Southmead Hospital,Permanent Nursing,Gracefields Nursing Home,3094.72, 09-May-2017
1010,Revenue,CAHD,South Glos Users in South Glos Homes,Permanent Nursing,Gracefields Nursing Home,620.2, 09-May-2017
1011,Revenue,CAHD,South Glos Users in South Glos Homes,Permanent Nursing,Gracefields Nursing Home,620.2, 09-May-2017
1012,Revenue,CAHD,Bed Purchasing - South,Permanent Nursing,Gracefields Nursing Home,2970.12, 09-May-2017
1013,Revenue,CAHD,South Glos Users in South Glos Homes,Permanent Nursing,Gracefields Nursing Home,620.2, 09-May-2017
1014,Revenue,CAHD,South Glos Users in South Glos Homes,Permanent Nursing,Gracefields Nursing Home,620.2, 09-May-2017
1015,Revenue,CAHD,South Glos Users in South Glos Homes,Permanent Nursing,Gracefields Nursing Home,620.2, 09-May-2017
1016,Revenue,CAHD,South Glos Users in South Glos Homes,Permanent Nursing,Gracefields Nursing Home,620.2, 09-May-2017
1017,Revenue,CAHD,South Glos Users in South Glos Homes,Permanent Nursing,Gracefields Nursing Home,620.2, 09-May-2017
1018,Revenue,CAHD,Bed Purchasing - South,Permanent Nursing,Gracefields Nursing Home,2445.68, 09-May-2017
1019,Revenue,CAHD,South Glos Users in South Glos Homes,Permanent Nursing,Gracefields Nursing Home,620.2, 09-May-2017
1020,Revenue,CAHD,South Glos Users in South Glos Homes,Permanent Nursing,Gracefields Nursing Home,620.2, 09-May-2017
1021,Revenue,CAHD,South Glos Users in South Glos Homes,Permanent Nursing,Gracefields Nursing Home,1808.04, 09-May-2017
1022,Revenue,CAHD,South Glos Users in South Glos Homes,Permanent Nursing,Gracefields Nursing Home,620.2, 09-May-2017
1023,Revenue,CAHD,South Glos Users in South Glos Homes,Permanent Nursing,Gracefields Nursing Home,509.45, 09-May-2017
1024,Revenue,CAHD,Bed Purchasing - South,Permanent Nursing,Gracefields Nursing Home,2868.8, 09-May-2017
1025,Revenue,CAHD,South Glos Users in South Glos Homes,Permanent Nursing,Gracefields Nursing Home,620.2, 09-May-2017
1026,Revenue,CAHD,Bed Purchasing - Southmead Hospital,Permanent Nursing,Gracefields Nursing Home,3094.72, 09-May-2017
1027,Revenue,CAHD,South Glos Users in South Glos Homes,Permanent Nursing,Gracefields Nursing Home,620.2, 09-May-2017
1028,Revenue,CAHD,South Glos Users in South Glos Homes,Permanent Nursing,Gracefields Nursing Home,620.2, 09-May-2017
1029,Revenue,CAHD,Bed Purchasing - Southmead Hospital,Permanent Nursing,Gracefields Nursing Home,2445.68, 09-May-2017
1030,Revenue,CAHD,South Glos Users in South Glos Homes,Permanent Nursing,Gracefields Nursing Home,620.2, 09-May-2017
1031,Revenue,CAHD,Bed Purchasing - Southmead Hospital,Permanent Nursing,Gracefields Nursing Home,3274, 09-May-2017
1032,Revenue,CAHD,Bed Purchasing - Southmead Hospital,Permanent Residential,Granada House Residential Home,1855.12, 09-May-2017
1033,Revenue,CAHD,Bed Purchasing - North,Permanent Residential,Greensleeves,2036.72, 09-May-2017
1034,Revenue,CAHD,Bed Purchasing - South,Permanent Residential,Grove Care,3039, 09-May-2017
1035,Revenue,CAHD,Bed Purchasing - South,Permanent Residential,Grove Care,1519.5, 09-May-2017
1036,Revenue,CAHD,Bed Purchasing - South,Permanent Residential,Grove Care,1392.86, 09-May-2017
1037,Revenue,CAHD,Bed Purchasing - South,Permanent Residential,Gwendoline House,2238.36, 09-May-2017
1038,Revenue,CAHD,Bed Purchasing - Southmead Hospital,Permanent Residential,Gwendoline House,2234.28, 09-May-2017
1039,Revenue,CAHD,Bed Purchasing - South,Permanent Residential,Gwendoline House,2238.36, 09-May-2017
1040,Revenue,CAHD,Bed Purchasing - South,Permanent Residential,Gwendoline House,2370.4, 09-May-2017
1041,Revenue,CAHD,Bed Purchasing - South,Permanent Residential,Gwendoline House,1185.2, 09-May-2017
1042,Revenue,CAHD,Bed Purchasing - South,Permanent Residential,Gwendoline House,5682.86, 09-May-2017
1043,Revenue,CAHD,Bed Purchasing - South,Fees & Charges Income - General,Gwendoline House,1250.99, 09-May-2017
1044,Revenue,CAHD,Bed Purchasing - Southmead Hospital,Permanent Residential,Gwendoline House,2068.24, 09-May-2017
1045,Revenue,CAHD,Hospital Promoting Independence Team,Other Supplies & Services,Hands Free Computing Ltd,490, 09-May-2017
1046,Revenue,CAHD,Bed Purchasing - South,Permanent Residential,Harefield Hall,2381.92, 09-May-2017
1047,Revenue,CAHD,Bed Purchasing - South,Permanent Residential,Harefield Hall,2669.6, 09-May-2017
1048,Revenue,CAHD,Bed Purchasing - South,Permanent Residential,Harefield Hall,3002.52, 09-May-2017
1049,Revenue,CAHD,Bed Purchasing - South,Permanent Residential,Harefield Hall,2252.96, 09-May-2017
1050,Revenue,CAHD,Bed Purchasing - South,Permanent Residential,Harefield Hall,2443.48, 09-May-2017
1051,Revenue,CAHD,Bed Purchasing - South,Permanent Residential,Harefield Hall,2594.64, 09-May-2017
1052,Revenue,CAHD,Bed Purchasing - South,Permanent Residential,Harefield Hall,1297.32, 09-May-2017
1053,Revenue,CAHD,Bed Purchasing - South,Fees & Charges Income - General,Harefield Hall,604.85, 09-May-2017
1054,Revenue,CAHD,Bed Purchasing - Southmead Hospital,Permanent Nursing,Hazelwood Gardens Nursing Home,2245.88, 09-May-2017
1055,Revenue,CAHD,Bed Purchasing - Southmead Hospital,Permanent Nursing,Hc-One Ltd,2211.24, 09-May-2017
1056,Revenue,CAHD,Bed Purchasing - Southmead Hospital,Respite Planned - Residential,Hc-One Ltd,2229.43, 09-May-2017
1057,Revenue,CAHD,Bed Purchasing - Southmead Hospital,Permanent Nursing,Hc-One Ltd,2135.24, 09-May-2017
1058,Revenue,CAHD,Bed Purchasing - Southmead Hospital,Permanent Nursing,Hc-One Ltd,2763.76, 09-May-2017
1059,Revenue,CAHD,Bed Purchasing - Southmead Hospital,Permanent Nursing,Hc-One Ltd,1381.88, 09-May-2017
1060,Revenue,CAHD,Bed Purchasing - Southmead Hospital,Fees & Charges Income - General,Hc-One Ltd,1364.14, 09-May-2017
1061,Revenue,CAHD,Bed Purchasing - Southmead Hospital,Permanent Nursing,Hc-One Ltd,2046.21, 09-May-2017
1062,Revenue,CAHD,Bed Purchasing - North,Permanent Nursing,Hc-One Ltd,2130.64, 09-May-2017
1063,Revenue,CAHD,Bed Purchasing - North,Permanent Nursing,Hc-One Ltd,2116.36, 09-May-2017
1064,Revenue,CAHD,Bed Purchasing - Southmead Hospital,Permanent Nursing,Hc-One Ltd,2130.64, 09-May-2017
1065,Revenue,CAHD,Bed Purchasing - South,Permanent Residential,Hc-One Ltd,2139.44, 09-May-2017
1066,Revenue,CAHD,Bed Purchasing - Southmead Hospital,Permanent Nursing,Hc-One Ltd,2763.76, 09-May-2017
1067,Revenue,CAHD,Bed Purchasing - North,Permanent Nursing,Hc-One Ltd,2130.64, 09-May-2017
1068,Revenue,CAHD,Bed Purchasing - North,Permanent Nursing,Hc-One Ltd,2130.6, 09-May-2017
1069,Revenue,CAHD,Bed Purchasing - North,Fees & Charges Income - General,Hc-One Ltd,728.19, 09-May-2017
1070,Revenue,CAHD,Bed Purchasing - Southmead Hospital,Permanent Nursing,Hc-One Ltd,958.79, 09-May-2017
1071,Revenue,CAHD,Bed Purchasing - Southmead Hospital,Permanent Nursing,Hc-One Ltd,2560.8, 09-May-2017
1072,Revenue,CAHD,S117 Placements PCT,Permanent Residential,Hesley Hall,18899.04, 09-May-2017
1073,Revenue,CAHD,Bed Purchasing - North,Permanent Residential,High Border Lodge,2001.68, 09-May-2017
1074,Revenue,CAHD,Bed Purchasing - Southmead Hospital,Permanent Residential,Highgate Studios,2378.68, 09-May-2017
1075,Revenue,CAHD,Bed Purchasing - North,Permanent Residential,Holmleigh Care Homes Ltd,4579.12, 09-May-2017
1076,Revenue,CAHD,Bed Purchasing - South,Permanent Residential,Holmleigh Care Homes Ltd,4374.12, 09-May-2017
1077,Revenue,CAHD,Jointly Funded H&SC Packages,Permanent Residential,Holmleigh Care Homes Ltd,1253.16, 09-May-2017
1078,Revenue,CAHD,Bed Purchasing - North,Permanent Residential,Home Farm Trust Ltd  5-6 Brook Office Pa,3316.24, 09-May-2017
1079,Revenue,CAHD,Bed Purchasing - North,Permanent Residential,Home Farm Trust Ltd  5-6 Brook Office Pa,3852.32, 09-May-2017
1080,Revenue,CAHD,Home Care - Elderly - South,Supported Living,Home Farm Trust Ltd  5-6 Brook Office Pa,4074.2, 09-May-2017
1081,Revenue,CAHD,18-25 Year Olds,Permanent Residential,Home From Home Care Ltd,9740.76, 09-May-2017
1082,Revenue,CAHD,Bed Purchasing - North,Permanent Residential,Homes Caring For Autism Ltd  Churchill H,8175.92, 09-May-2017
1083,Revenue,CAHD,Jointly Funded H&SC Packages,Permanent Residential,Homes Caring For Autism Ltd  Churchill H,2470.36, 09-May-2017
1084,Revenue,CAHD,18-25 Year Olds,Permanent Residential,Homes Caring For Autism Ltd  Churchill H,5765.32, 09-May-2017
1085,Revenue,CAHD,Jointly Funded H&SC Packages,Permanent Residential,Homes Caring For Autism Ltd  Churchill H,8039.24, 09-May-2017
1086,Revenue,CAHD,Bed Purchasing - South,Permanent Residential,Jonen House,4079.28, 09-May-2017
1087,Revenue,CAHD,Home Care - Elderly - South,Supported Living,Julia Simone- Supp. Ind.,1209.92, 09-May-2017
1088,Revenue,CAHD,Younger MH non-res purchasing,Supported Living,Julia Simone- Supp. Ind.,1209.92, 09-May-2017
1089,Revenue,CAHD,Younger MH non-res purchasing,Supported Living,Julia Simone- Supp. Ind.,1209.92, 09-May-2017
1090,Revenue,CAHD,Home Care - Elderly - North,Supported Living,Julia Simone- Supp. Ind.,1244.76, 09-May-2017
1091,Revenue,CAHD,Younger MH non-res purchasing,Supported Living,Julia Simone- Supp. Ind.,1209.76, 09-May-2017
1092,Revenue,CAHD,Section 117 Placements MH Younger,Supported Living,Julia Simone- Supp. Ind.,1193.68, 09-May-2017
1093,Revenue,CAHD,Younger MH non-res purchasing,Supported Living,Julia Simone- Supp. Ind.,1209.88, 09-May-2017
1094,Revenue,CAHD,Bed Purchasing - Southmead Hospital,Permanent Residential,Kenver House Residential Home,2248.96, 09-May-2017
1095,Revenue,CAHD,Bed Purchasing - Southmead Hospital,Permanent Residential,Kenver House Residential Home,2248.96, 09-May-2017
1096,Revenue,CAHD,Bed Purchasing - South,Permanent Residential,Kenver House Residential Home,2252.04, 09-May-2017
1097,Revenue,CAHD,Bed Purchasing - South,Permanent Residential,Kenver House Residential Home,2248.96, 09-May-2017
1098,Revenue,CAHD,Bed Purchasing - North,Permanent Residential,Kenver House Residential Home,2248.96, 09-May-2017
1099,Revenue,CAHD,Bed Purchasing - Southmead Hospital,Permanent Residential,Kenver House Residential Home,2316, 09-May-2017
1100,Revenue,CAHD,Bed Purchasing - South,Permanent Residential,Kenver House Residential Home,2463.08, 09-May-2017
1101,Revenue,CAHD,Bed purchasing - Elderly S117 - South,Permanent Residential,Kenver House Residential Home,2463.08, 09-May-2017
1102,Revenue,CAHD,Bed Purchasing - South,Permanent Residential,Kenver House Residential Home,3870, 09-May-2017
1103,Revenue,CAHD,Bed Purchasing - South,Permanent Residential,Kenver House Residential Home,2613.56, 09-May-2017
1104,Revenue,CAHD,Bed Purchasing - South,Permanent Residential,Kenver House Residential Home,1306.78, 09-May-2017
1105,Revenue,CAHD,Bed Purchasing - South,Fees & Charges Income - General,Kenver House Residential Home,765.53, 09-May-2017
1106,Revenue,CAHD,Bed Purchasing - South,Permanent Residential,Kenver House Residential Home,2463.08, 09-May-2017
1107,Revenue,CAHD,Bed Purchasing - South,Permanent Residential,Kenver House Residential Home,2463.08, 09-May-2017
1108,Revenue,CAHD,Bed Purchasing - South,Permanent Residential,Kenver House Residential Home,2613.56, 09-May-2017
1109,Revenue,CAHD,Bed Purchasing - South,Permanent Residential,Kenver House Residential Home,1306.78, 09-May-2017
1110,Revenue,CAHD,Bed Purchasing - South,Permanent Residential,Kenver House Residential Home,1197.86, 09-May-2017
1111,Revenue,CAHD,Bed Purchasing - South,Permanent Residential,Kenver House Residential Home,2463.08, 09-May-2017
1112,Revenue,CAHD,Bed Purchasing - South,Permanent Residential,Kenver House Residential Home,2248.96, 09-May-2017
1113,Revenue,CAHD,Bed Purchasing - North,Permanent Residential,Kilkhampton Lodge,17727.52, 09-May-2017
1114,Revenue,CAHD,Bed Purchasing - North,Permanent Nursing,Kingfisher Lodge Care Centre,3329.08, 09-May-2017
1115,Revenue,CAHD,Bed Purchasing - North,Permanent Residential,Kisimul Group,12236.52, 09-May-2017
1116,Revenue,CAHD,Bed Purchasing - North,Permanent Nursing,Larchfield Care Home,3068.36, 09-May-2017
1117,Revenue,CAHD,Bed Purchasing - North,Permanent Residential,Leonard Cheshire  National Account Centr,3459.12, 09-May-2017
1118,Revenue,CAHD,Bed Purchasing - South,Permanent Residential,Leonard Cheshire  National Account Centr,3825.44, 09-May-2017
1119,Revenue,CAHD,Bed Purchasing - North,Permanent Nursing,Leonard Cheshire  National Account Centr,4015.32, 09-May-2017
1120,Revenue,CAHD,Bed Purchasing - North,Permanent Nursing,Leonard Cheshire  National Account Centr,3306.12, 09-May-2017
1121,Revenue,CAHD,18-25 Year Olds,Permanent Residential,Leonard Cheshire  National Account Centr,3757.76, 09-May-2017
1122,Revenue,CAHD,Bed Purchasing - North,Permanent Residential,Leonard Cheshire  National Account Centr,6516.64, 09-May-2017
1123,Revenue,CAHD,Bed Purchasing - North,Permanent Nursing,Leonard Cheshire  National Account Centr,5160.2, 09-May-2017
1124,Revenue,CAHD,Bed Purchasing - North,Permanent Nursing,Leonard Cheshire  National Account Centr,3346.64, 09-May-2017
1125,Revenue,CAHD,Bed Purchasing - North,Permanent Nursing,Leonard Cheshire  National Account Centr,5506.56, 09-May-2017
1126,Revenue,CAHD,Bed Purchasing - North,Permanent Residential,Leonard Cheshire  National Account Centr,3400.52, 09-May-2017
1127,Revenue,CAHD,Bed Purchasing - North,Permanent Nursing,Leonard Cheshire  National Account Centr,3248.36, 09-May-2017
1128,Revenue,CAHD,Bed Purchasing - North,Permanent Nursing,Leonard Cheshire  National Account Centr,5815.28, 09-May-2017
1129,Revenue,CAHD,Bed Purchasing - South,Permanent Nursing,Leonard Cheshire  National Account Centr,3431, 09-May-2017
1130,Revenue,CAHD,Bed Purchasing - Southmead Hospital,Permanent Nursing,Leonard Cheshire  National Account Centr,3513.32, 09-May-2017
1131,Revenue,CAHD,South Glos Users in all other LA Homes,Permanent Nursing,Leonard Cheshire  National Account Centr,853.28, 09-May-2017
1132,Revenue,CAHD,Bed Purchasing - North,Permanent Nursing,Leonard Cheshire  National Account Centr,3845.96, 09-May-2017
1133,Revenue,CAHD,Bed Purchasing - North,Permanent Nursing,Leonard Cheshire  National Account Centr,4614.92, 09-May-2017
1134,Revenue,CAHD,Bed Purchasing - North,Permanent Residential,Linden House,8095.28, 09-May-2017
1135,Revenue,CAHD,Bed Purchasing - North,Permanent Residential,Linden House,8211.64, 09-May-2017
1136,Revenue,CAHD,Bed Purchasing - Southmead Hospital,Permanent Residential,Little Croft,1886.24, 09-May-2017
1137,Revenue,CAHD,Bed Purchasing - South,Permanent Residential,Little Croft,2053.56, 09-May-2017
1138,Revenue,CAHD,Bed Purchasing - Southmead Hospital,Permanent Residential,Little Croft,1886.24, 09-May-2017
1139,Revenue,CAHD,Bed Purchasing - North,Permanent Residential,Little Croft,1886.24, 09-May-2017
1140,Revenue,CAHD,Bed Purchasing - Southmead Hospital,Permanent Residential,Little Croft,2258.92, 09-May-2017
1141,Revenue,CAHD,Bed Purchasing - South,Permanent Residential,Little Croft,2735.12, 09-May-2017
1142,Revenue,CAHD,Bed Purchasing - South,Permanent Residential,Little Croft,2329.92, 09-May-2017
1143,Revenue,CAHD,Bed Purchasing - South,Respite Emergency - Residential,Little Croft,1812.86, 09-May-2017
1144,Revenue,CAHD,Bed Purchasing - South,Respite Emergency - Residential,Little Croft,1428.34, 09-May-2017
1145,Revenue,CAHD,Bed Purchasing - Southmead Hospital,Permanent Residential,Little Croft,2735.12, 09-May-2017
1146,Revenue,CAHD,Bed Purchasing - South,Permanent Residential,Little Croft,1886.24, 09-May-2017
1147,Revenue,CAHD,Bed Purchasing - Southmead Hospital,Permanent Residential,Little Croft,2637.44, 09-May-2017
1148,Revenue,CAHD,Bed Purchasing - Southmead Hospital,Permanent Residential,Little Croft,2373.64, 09-May-2017
1149,Revenue,CAHD,Bed Purchasing - Southmead Hospital,Permanent Residential,Little Croft,1867.92, 09-May-2017
1150,Revenue,CAHD,Bed Purchasing - Southmead Hospital,Permanent Residential,Little Croft,2048.96, 09-May-2017
1151,Revenue,CAHD,Bed Purchasing - Southmead Hospital,Permanent Residential,Little Croft,2532.52, 09-May-2017
1152,Revenue,CAHD,Bed Purchasing - Southmead Hospital,Permanent Residential,Little Croft,2735.12, 09-May-2017
1153,Revenue,CAHD,Bed Purchasing - Southmead Hospital,Permanent Residential,Little Croft,1735.71, 09-May-2017
1154,Revenue,CAHD,Bed Purchasing - Southmead Hospital,Permanent Residential,Little Croft,1367.56, 09-May-2017
1155,Revenue,CAHD,Bed Purchasing - Southmead Hospital,Permanent Residential,Little Croft,1886.24, 09-May-2017
1156,Revenue,CAHD,Bed Purchasing - South,Permanent Residential,Little Croft,2329.92, 09-May-2017
1157,Revenue,CAHD,Bed Purchasing - Southmead Hospital,Permanent Residential,Little Croft,2228.6, 09-May-2017
1158,Revenue,CAHD,18-25 Year Olds,Respite Planned - Residential,Little Croft,2735.04, 09-May-2017
1159,Revenue,CAHD,Bed Purchasing - South,Respite Planned - Residential,Little Croft,1326.32, 09-May-2017
1160,Revenue,CAHD,Bed Purchasing - South,Respite Planned - Residential,Little Croft,503.57, 09-May-2017
1161,Revenue,CAHD,Bed Purchasing - Southmead Hospital,Permanent Residential,Little Croft,2735.12, 09-May-2017
1162,Revenue,CAHD,Bed Purchasing - Southmead Hospital,Permanent Residential,Little Croft,1823.4, 09-May-2017
1163,Revenue,CAHD,Bed Purchasing - South,Permanent Residential,Little Croft,2070.72, 09-May-2017
1164,Revenue,CAHD,Bed Purchasing - Southmead Hospital,Permanent Residential,Little Croft,1886.24, 09-May-2017
1165,Revenue,CAHD,Bed Purchasing - Southmead Hospital,Permanent Residential,Little Croft,1886.24, 09-May-2017
1166,Revenue,CAHD,Bed Purchasing - South,Permanent Residential,Little Croft,2228.6, 09-May-2017
1167,Revenue,CAHD,Bed Purchasing - North,Permanent Residential,Littlecroft Residential Homes  Longcroft,7058.16, 09-May-2017
1168,Revenue,CAHD,South Glos Users in South Glos Homes,Permanent Nursing,Lodge House,3928.57, 09-May-2017
1169,Revenue,CAHD,South Glos Users in South Glos Homes,Permanent Nursing,Lodge House,620.2, 09-May-2017
1170,Revenue,CAHD,South Glos Users in South Glos Homes,Permanent Nursing,Lodge House,509.45, 09-May-2017
1171,Revenue,CAHD,South Glos Users in South Glos Homes,Permanent Nursing,Lodge House,4464.29, 09-May-2017
1172,Revenue,CAHD,South Glos Users in South Glos Homes,Permanent Nursing,Lodge House,509.45, 09-May-2017
1173,Revenue,CAHD,South Glos Users in South Glos Homes,Permanent Nursing,Lodge House,620.2, 09-May-2017
1174,Revenue,CAHD,Bed Purchasing - South,Permanent Nursing,Lodge House,2248.72, 09-May-2017
1175,Revenue,CAHD,South Glos Users in South Glos Homes,Permanent Nursing,Lodge House,620.2, 09-May-2017
1176,Revenue,CAHD,South Glos Users in South Glos Homes,Permanent Nursing,Lodge House,620.2, 09-May-2017
1177,Revenue,CAHD,South Glos Users in South Glos Homes,Permanent Nursing,Lodge House,620.2, 09-May-2017
1178,Revenue,CAHD,South Glos Users in South Glos Homes,Permanent Nursing,Lodge House,620.2, 09-May-2017
1179,Revenue,CAHD,Bed Purchasing - South,Permanent Nursing,Lodge House,2744.68, 09-May-2017
1180,Revenue,CAHD,South Glos Users in South Glos Homes,Permanent Nursing,Lodge House,620.2, 09-May-2017
1181,Revenue,CAHD,South Glos Users in South Glos Homes,Permanent Nursing,Lodge House,620.2, 09-May-2017
1182,Revenue,CAHD,Bed Purchasing - Southmead Hospital,Permanent Nursing,Lodge House,3410.76, 09-May-2017
1183,Revenue,CAHD,South Glos Users in South Glos Homes,Permanent Nursing,Lodge House,620.2, 09-May-2017
1184,Revenue,CAHD,South Glos Users in South Glos Homes,Permanent Nursing,Lodge House,509.45, 09-May-2017
1185,Revenue,CAHD,South Glos Users in South Glos Homes,Permanent Nursing,Lodge House,620.2, 09-May-2017
1186,Revenue,CAHD,South Glos Users in South Glos Homes,Permanent Nursing,Lodge House,509.45, 09-May-2017
1187,Revenue,CAHD,Bed Purchasing - South,Permanent Nursing,Lodge House,3109.92, 09-May-2017
1188,Revenue,CAHD,South Glos Users in South Glos Homes,Permanent Nursing,Lodge House,620.2, 09-May-2017
1189,Revenue,CAHD,South Glos Users in South Glos Homes,Permanent Nursing,Lodge House,620.2, 09-May-2017
1190,Revenue,CAHD,South Glos Users in South Glos Homes,Permanent Nursing,Lodge House,620.2, 09-May-2017
1191,Revenue,CAHD,Bed Purchasing - Southmead Hospital,Permanent Nursing,Lodge House,3109.92, 09-May-2017
1192,Revenue,CAHD,South Glos Users in South Glos Homes,Permanent Nursing,Lodge House,620.2, 09-May-2017
1193,Revenue,CAHD,South Glos Users in South Glos Homes,Permanent Nursing,Lodge House,620.2, 09-May-2017
1194,Revenue,CAHD,South Glos Users in South Glos Homes,Permanent Nursing,Lodge House,620.2, 09-May-2017
1195,Revenue,CAHD,Bed Purchasing - North,Permanent Nursing,Lodge House,2987.84, 09-May-2017
1196,Revenue,CAHD,South Glos Users in South Glos Homes,Permanent Nursing,Lodge House,620.2, 09-May-2017
1197,Revenue,CAHD,Bed Purchasing - South,Permanent Nursing,Lodge House,3277.04, 09-May-2017
1198,Revenue,CAHD,South Glos Users in South Glos Homes,Permanent Nursing,Lodge House,620.2, 09-May-2017
1199,Revenue,CAHD,South Glos Users in South Glos Homes,Permanent Nursing,Lodge House,620.2, 09-May-2017
1200,Revenue,CAHD,South Glos Users in South Glos Homes,Permanent Nursing,Lodge House,620.2, 09-May-2017
1201,Revenue,CAHD,Bed Purchasing - Southmead Hospital,Permanent Nursing,Lodge House,3410.76, 09-May-2017
1202,Revenue,CAHD,South Glos Users in South Glos Homes,Permanent Nursing,Lodge House,1116.07, 09-May-2017
1203,Revenue,CAHD,South Glos Users in South Glos Homes,Permanent Nursing,Lodge House,620.2, 09-May-2017
1204,Revenue,CAHD,South Glos Users in South Glos Homes,Permanent Nursing,Lodge House,509.45, 09-May-2017
1205,Revenue,CAHD,Bed Purchasing - Southmead Hospital,Permanent Nursing,Lodge House,3277.04, 09-May-2017
1206,Revenue,CAHD,South Glos Users in South Glos Homes,Permanent Nursing,Lodge House,620.2, 09-May-2017
1207,Revenue,CAHD,South Glos Users in South Glos Homes,Permanent Nursing,Lodge House,620.2, 09-May-2017
1208,Revenue,CAHD,South Glos Users in South Glos Homes,Permanent Nursing,Lodge House,620.2, 09-May-2017
1209,Revenue,CAHD,Bed Purchasing - Southmead Hospital,Permanent Nursing,Lodge House,3277.04, 09-May-2017
1210,Revenue,CAHD,South Glos Users in South Glos Homes,Permanent Nursing,Lodge House,620.2, 09-May-2017
1211,Revenue,CAHD,South Glos Users in South Glos Homes,Permanent Nursing,Lodge House,620.2, 09-May-2017
1212,Revenue,CAHD,South Glos Users in South Glos Homes,Permanent Nursing,Lodge House,620.2, 09-May-2017
1213,Revenue,CAHD,South Glos Users in South Glos Homes,Permanent Nursing,Lodge House,620.2, 09-May-2017
1214,Revenue,CAHD,South Glos Users in South Glos Homes,Permanent Nursing,Lodge House,620.2, 09-May-2017
1215,Revenue,CAHD,South Glos Users in South Glos Homes,Permanent Nursing,Lodge House,620.2, 09-May-2017
1216,Revenue,CAHD,South Glos Users in South Glos Homes,Permanent Nursing,Lodge House,620.2, 09-May-2017
1217,Revenue,CAHD,Bed Purchasing - Southmead Hospital,Permanent Nursing,Lodge House,3277.04, 09-May-2017
1218,Revenue,CAHD,South Glos Users in South Glos Homes,Permanent Nursing,Lodge House,982.14, 09-May-2017
1219,Revenue,CAHD,South Glos Users in South Glos Homes,Permanent Nursing,Lodge House,620.2, 09-May-2017
1220,Revenue,CAHD,South Glos Users in South Glos Homes,Permanent Nursing,Lodge House,509.45, 09-May-2017
1221,Revenue,CAHD,Bed Purchasing - South,Permanent Nursing,Lodge House,3277.04, 09-May-2017
1222,Revenue,CAHD,South Glos Users in South Glos Homes,Permanent Nursing,Lodge House,620.2, 09-May-2017
1223,Revenue,CAHD,South Glos Users in South Glos Homes,Permanent Nursing,Lodge House,982.14, 09-May-2017
1224,Revenue,CAHD,South Glos Users in South Glos Homes,Permanent Nursing,Lodge House,620.2, 09-May-2017
1225,Revenue,CAHD,South Glos Users in South Glos Homes,Permanent Nursing,Lodge House,509.45, 09-May-2017
1226,Revenue,CAHD,South Glos Users in South Glos Homes,Permanent Nursing,Lodge House,620.2, 09-May-2017
1227,Revenue,CAHD,South Glos Users in South Glos Homes,Permanent Nursing,Lodge House,620.2, 09-May-2017
1228,Revenue,CAHD,Bed Purchasing - Southmead Hospital,Permanent Nursing,Lodge House,3428, 09-May-2017
1229,Revenue,CAHD,South Glos Users in South Glos Homes,Permanent Nursing,Lodge House,620.2, 09-May-2017
1230,Revenue,CAHD,Bed Purchasing - South,Permanent Nursing,Lodge House,5651.75, 09-May-2017
1231,Revenue,CAHD,Bed Purchasing - South,Permanent Nursing,Lodge House,3410.76, 09-May-2017
1232,Revenue,CAHD,Bed Purchasing - South,Permanent Nursing,Lodge House,1705.38, 09-May-2017
1233,Revenue,CAHD,South Glos Users in South Glos Homes,Permanent Nursing,Lodge House,848.21, 09-May-2017
1234,Revenue,CAHD,South Glos Users in South Glos Homes,Permanent Nursing,Lodge House,620.2, 09-May-2017
1235,Revenue,CAHD,South Glos Users in South Glos Homes,Permanent Nursing,Lodge House,509.45, 09-May-2017
1236,Revenue,CAHD,South Glos Users in South Glos Homes,Permanent Nursing,Lodge House,620.2, 09-May-2017
1237,Revenue,CAHD,South Glos Users in South Glos Homes,Permanent Nursing,Lodge House,620.2, 09-May-2017
1238,Revenue,CAHD,Bed Purchasing - South,Permanent Nursing,Lodge House,3410.76, 09-May-2017
1239,Revenue,CAHD,South Glos Users in South Glos Homes,Permanent Nursing,Lodge House,620.2, 09-May-2017
1240,Revenue,CAHD,Bed Purchasing - Southmead Hospital,Permanent Nursing,Lodge House,3910.2, 09-May-2017
1241,Revenue,CAHD,South Glos Users in South Glos Homes,Permanent Nursing,Lodge House,620.2, 09-May-2017
1242,Revenue,CAHD,Bed Purchasing - South,Permanent Nursing,Lodge House,3410.76, 09-May-2017
1243,Revenue,CAHD,South Glos Users in South Glos Homes,Permanent Nursing,Lodge House,1741.07, 09-May-2017
1244,Revenue,CAHD,South Glos Users in South Glos Homes,Permanent Nursing,Lodge House,620.2, 09-May-2017
1245,Revenue,CAHD,South Glos Users in South Glos Homes,Permanent Nursing,Lodge House,509.45, 09-May-2017
1246,Revenue,CAHD,South Glos Users in South Glos Homes,Permanent Nursing,Lodge House,620.2, 09-May-2017
1247,Revenue,CAHD,Home Care - Elderly - North,Day Care / Social Activities,Lower Kilcott,1481.84, 09-May-2017
1248,Revenue,CAHD,Bed Purchasing - Southmead Hospital,Permanent Nursing,Majestic 3 Limited,2063.48, 09-May-2017
1249,Revenue,CAHD,Bed Purchasing - Southmead Hospital,Respite Planned - Residential,Manor Cottage,1327.04, 09-May-2017
1250,Revenue,CAHD,Bed Purchasing - Southmead Hospital,Permanent Residential,Manor Cottage,1886.24, 09-May-2017
1251,Revenue,CAHD,Bed Purchasing - South,Permanent Residential,Manor Cottage,2431.2, 09-May-2017
1252,Revenue,CAHD,Bed Purchasing - South,Permanent Residential,Manor Cottage,3018.76, 09-May-2017
1253,Revenue,CAHD,Bed Purchasing - Southmead Hospital,Permanent Residential,Manor Cottage,1886.24, 09-May-2017
1254,Revenue,CAHD,Bed Purchasing - South,Permanent Residential,Manor Cottage,2075.72, 09-May-2017
1255,Revenue,CAHD,Younger MH non-res purchasing,Supported Living,Maples Community Care Limited,1437.48, 09-May-2017
1256,Revenue,CAHD,Home Care - Elderly - South,Supported Living,Maples Community Care Limited,1437.48, 09-May-2017
1257,Revenue,CAHD,Younger MH non-res purchasing,Supported Living,Maples Community Care Limited,1437.48, 09-May-2017
1258,Revenue,CAHD,Younger MH non-res purchasing,Supported Living,Maples Community Care Limited,1437.48, 09-May-2017
1259,Revenue,CAHD,Home Care - Elderly - South,Supported Living,Maples Community Care Limited,1418.2, 09-May-2017
1260,Revenue,CAHD,Bed Purchasing - North,Permanent Residential,Marsden Healthcare Ltd,4428.84, 09-May-2017
1261,Revenue,CAHD,Bed Purchasing - South,Permanent Residential,Marsden Healthcare Ltd,1669.32, 09-May-2017
1262,Revenue,CAHD,Bed Purchasing - South,Permanent Residential,Marsden Healthcare Ltd,2113.72, 09-May-2017
1263,Revenue,CAHD,Bed Purchasing - Southmead Hospital,Permanent Nursing,Meadow Care Home,4862.4, 09-May-2017
1264,Revenue,CAHD,Bed Purchasing - South,Permanent Nursing,Meadow Care Home,2516.48, 09-May-2017
1265,Revenue,CAHD,Bed Purchasing - Elderly S117- North,Permanent Nursing,Meadow Care Home,3901.76, 09-May-2017
1266,Revenue,CAHD,Bed Purchasing - Elderly S117- North,Permanent Nursing,Meadow Care Home,4229.28, 09-May-2017
1267,Revenue,CAHD,Bed Purchasing - North,Permanent Nursing,Meadow Care Home,4862.4, 09-May-2017
1268,Revenue,CAHD,Bed Purchasing - North,Permanent Nursing,Meadow Care Home,4862.4, 09-May-2017
1269,Revenue,CAHD,Home Care - Elderly - South,Supported Living,Milestones - Unit 10,4315.88, 09-May-2017
1270,Revenue,CAHD,Home Care - Elderly - South,Supported Living,Milestones - Unit 10,1078.97, 09-May-2017
1271,Revenue,CAHD,Home Care - Elderly - North,Supported Living,Milestones - Unit 10,4419.4, 09-May-2017
1272,Revenue,CAHD,Home Care - Elderly - South,Supported Living,Milestones - Unit 10,1371.6, 09-May-2017
1273,Revenue,CAHD,Home Care - Elderly - South,Supported Living,Milestones - Unit 10,4315.88, 09-May-2017
1274,Revenue,CAHD,Home Care - Elderly - South,Supported Living,Milestones - Unit 10,1078.97, 09-May-2017
1275,Revenue,CAHD,Home Care - Elderly - North,Supported Living,Milestones - Unit 10,4185.48, 09-May-2017
1276,Revenue,CAHD,Home Care - Elderly - South,Supported Living,Milestones - Unit 10,3741.16, 09-May-2017
1277,Revenue,CAHD,Home Care - Elderly - South,Supported Living,Milestones - Unit 10,2379.72, 09-May-2017
1278,Revenue,CAHD,Home Care - Elderly - North,Supported Living,Milestones - Unit 10,4185.48, 09-May-2017
1279,Revenue,CAHD,Home Care - Elderly - South,Supported Living,Milestones - Unit 10,3985.28, 09-May-2017
1280,Revenue,CAHD,Home Care - Elderly - North,Supported Living,Milestones - Unit 10,3699.56, 09-May-2017
1281,Revenue,CAHD,Home Care - Elderly - North,Supported Living,Milestones - Unit 10,924.89, 09-May-2017
1282,Revenue,CAHD,Supported Living (S28a) North,Supported Living,Milestones - Unit 10,3699.52, 09-May-2017
1283,Revenue,CAHD,Supported Living (S28a) South,Supported Living,Milestones - Unit 10,5653.24, 09-May-2017
1284,Revenue,CAHD,Home Care - Elderly - South,Supported Living,Milestones - Unit 10,2292.2, 09-May-2017
1285,Revenue,CAHD,Supported Living (S28a) South,Supported Living,Milestones - Unit 10,2292.28, 09-May-2017
1286,Revenue,CAHD,Home Care - Elderly - North,Supported Living,Milestones - Unit 10,4419.36, 09-May-2017
1287,Revenue,CAHD,Home Care - Elderly - South,Supported Living,Milestones - Unit 10,2159.68, 09-May-2017
1288,Revenue,CAHD,Supported Living (S28a) North,Supported Living,Milestones - Unit 10,3712, 09-May-2017
1289,Revenue,CAHD,Supported Living (S28a) South,Supported Living,Milestones - Unit 10,2292.28, 09-May-2017
1290,Revenue,CAHD,Supported Living (S28a) South,Supported Living,Milestones - Unit 10,2292.28, 09-May-2017
1291,Revenue,CAHD,Section 117 Placements MH Younger,Permanent Nursing,Milestones - Unit 10,3593.72, 09-May-2017
1292,Revenue,CAHD,South Glos Users in South Glos Homes,Permanent Nursing,Milestones - Unit 10,620.2, 09-May-2017
1293,Revenue,CAHD,South Glos Users in South Glos Homes,Permanent Nursing,Milestones - Unit 10,620.2, 09-May-2017
1294,Revenue,CAHD,MH Purchasing - Younger,Permanent Residential,Milestones - Unit 10,1458.72, 09-May-2017
1295,Revenue,CAHD,Bed Purchasing - Southmead Hospital,Permanent Nursing,Milestones - Unit 10,3734.92, 09-May-2017
1296,Revenue,CAHD,Bed Purchasing - South,Permanent Residential,Milestones - Unit 10,5436, 09-May-2017
1297,Revenue,CAHD,Bed Purchasing - South,Permanent Residential,Milestones - Unit 10,5243.6, 09-May-2017
1298,Revenue,CAHD,Jointly Funded H&SC Packages,Permanent Residential,Milestones - Unit 10,1703.28, 09-May-2017
1299,Revenue,CAHD,Bed Purchasing - South,Permanent Nursing,Milestones - Unit 10,2082.04, 09-May-2017
1300,Revenue,CAHD,Bed Purchasing - South,Permanent Residential,Milestones - Unit 10,4257.08, 09-May-2017
1301,Revenue,CAHD,Bed purchasing - Elderly S117 - South,Permanent Nursing,Milestones - Unit 10,4993.6, 09-May-2017
1302,Revenue,CAHD,Jointly Funded H&SC Packages,Permanent Nursing,Milestones - Unit 10,2924.24, 09-May-2017
1303,Revenue,CAHD,Jointly Funded H&SC Packages,Permanent Nursing,Milestones - Unit 10,1462.12, 09-May-2017
1304,Revenue,CAHD,Bed purchasing - Elderly S117 - South,Permanent Nursing,Milestones - Unit 10,2496.8, 09-May-2017
1305,Revenue,CAHD,South Glos Users in South Glos Homes,Permanent Nursing,Milestones - Unit 10,620.2, 09-May-2017
1306,Revenue,CAHD,Bed Purchasing - North,Permanent Residential,Milestones - Unit 10,7353.56, 09-May-2017
1307,Revenue,CAHD,South Glos Users in South Glos Homes,Permanent Nursing,Milestones - Unit 10,620.2, 09-May-2017
1308,Revenue,CAHD,South Glos Users in South Glos Homes,Permanent Nursing,Milestones - Unit 10,620.2, 09-May-2017
1309,Revenue,CAHD,Bed Purchasing - Elderly S117- North,Permanent Nursing,Milestones - Unit 10,3556.68, 09-May-2017
1310,Revenue,CAHD,Jointly Funded H&SC Packages,Permanent Nursing,Milestones - Unit 10,5773.44, 09-May-2017
1311,Revenue,CAHD,Bed Purchasing - Elderly S117- North,Permanent Nursing,Milestones - Unit 10,1778.34, 09-May-2017
1312,Revenue,CAHD,Jointly Funded H&SC Packages,Permanent Nursing,Milestones - Unit 10,2886.72, 09-May-2017
1313,Revenue,CAHD,South Glos Users in South Glos Homes,Permanent Nursing,Milestones - Unit 10,620.2, 09-May-2017
1314,Revenue,CAHD,South Glos Users in South Glos Homes,Permanent Nursing,Milestones - Unit 10,620.2, 09-May-2017
1315,Revenue,CAHD,Bed Purchasing - South,Permanent Residential,Milestones - Unit 10,2731.04, 09-May-2017
1316,Revenue,CAHD,18-25 Year Olds,Permanent Residential,Milestones - Unit 10,4858.88, 09-May-2017
1317,Revenue,CAHD,South Glos Users in South Glos Homes,Permanent Nursing,Milestones - Unit 10,620.2, 09-May-2017
1318,Revenue,CAHD,Bed Purchasing - South,Permanent Residential,Milestones - Unit 10,4987.12, 09-May-2017
1319,Revenue,CAHD,Bed Purchasing - South,Permanent Residential,Milestones - Unit 10,4912.96, 09-May-2017
1320,Revenue,CAHD,Bed purchasing -S28A  Under 65 - North,Permanent Residential,Milestones - Unit 10,6050.68, 09-May-2017
1321,Revenue,CAHD,Bed purchasing - S28A Under 65 - South,Permanent Residential,Milestones - Unit 10,6068.72, 09-May-2017
1322,Revenue,CAHD,Bed Purchasing - South,Permanent Residential,Milestones - Unit 10,5507.76, 09-May-2017
1323,Revenue,CAHD,Bed Purchasing - South,Permanent Residential,Milestones - Unit 10,6092.24, 09-May-2017
1324,Revenue,CAHD,Bed purchasing - S28A Under 65 - South,Permanent Nursing,Milestones - Unit 10,8085.08, 09-May-2017
1325,Revenue,CAHD,MH Purchasing - Younger,Permanent Residential,Milestones - Unit 10,1420.68, 09-May-2017
1326,Revenue,CAHD,Bed Purchasing - South,Permanent Residential,Milestones - Unit 10,5782.2, 09-May-2017
1327,Revenue,CAHD,Bed Purchasing - South,Permanent Residential,Milestones - Unit 10,5824.92, 09-May-2017
1328,Revenue,CAHD,Bed Purchasing - South,Permanent Residential,Milestones - Unit 10,4155.68, 09-May-2017
1329,Revenue,CAHD,Bed Purchasing - North,Permanent Residential,Milestones - Unit 10,3983.88, 09-May-2017
1330,Revenue,CAHD,Bed Purchasing - South,Permanent Nursing,Milestones - Unit 10,6604.76, 09-May-2017
1331,Revenue,CAHD,Bed Purchasing - Southmead Hospital,Permanent Residential,Milestones - Unit 10,4309.08, 09-May-2017
1332,Revenue,CAHD,Bed Purchasing - North,Permanent Residential,Milestones - Unit 10,4415.8, 09-May-2017
1333,Revenue,CAHD,Bed purchasing -S28A  Under 65 - North,Permanent Nursing,Milestones - Unit 10,5857.12, 09-May-2017
1334,Revenue,CAHD,South Glos Users in South Glos Homes,Permanent Nursing,Milestones - Unit 10,620.2, 09-May-2017
1335,Revenue,CAHD,Bed Purchasing - North,Permanent Residential,Milestones - Unit 10,5267.36, 09-May-2017
1336,Revenue,CAHD,Bed purchasing -S28A  Under 65 - North,Permanent Residential,Milestones - Unit 10,7657.52, 09-May-2017
1337,Revenue,CAHD,Bed purchasing -S28A  Under 65 - North,Permanent Nursing,Milestones - Unit 10,6352.52, 09-May-2017
1338,Revenue,CAHD,South Glos Users in South Glos Homes,Permanent Nursing,Milestones - Unit 10,620.2, 09-May-2017
1339,Revenue,CAHD,Bed purchasing -S28A  Under 65 - North,Permanent Residential,Milestones - Unit 10,7353.56, 09-May-2017
1340,Revenue,CAHD,Bed Purchasing - South,Permanent Residential,Milestones - Unit 10,5197.72, 09-May-2017
1341,Revenue,CAHD,Bed purchasing - S28A Under 65 - South,Permanent Residential,Milestones - Unit 10,5151.48, 09-May-2017
1342,Revenue,CAHD,Bed Purchasing - S28A - Over 65- North,Permanent Residential,Milestones - Unit 10,7369.16, 09-May-2017
1343,Revenue,CAHD,Bed purchasing -S28A  Under 65 - North,Permanent Residential,Milestones - Unit 10,7657.52, 09-May-2017
1344,Revenue,CAHD,Bed purchasing -S28A  Under 65 - North,Permanent Residential,Milestones - Unit 10,7657.52, 09-May-2017
1345,Revenue,CAHD,Bed Purchasing - LD S28A- Over 65- South,Permanent Residential,Milestones - Unit 10,4880.2, 09-May-2017
1346,Revenue,CAHD,Bed purchasing - S28A Under 65 - South,Permanent Residential,Milestones - Unit 10,5100.92, 09-May-2017
1347,Revenue,CAHD,Bed purchasing - S28A Under 65 - South,Permanent Residential,Milestones - Unit 10,4235.12, 09-May-2017
1348,Revenue,CAHD,Bed Purchasing - LD S28A- Over 65- South,Permanent Residential,Milestones - Unit 10,5798.44, 09-May-2017
1349,Revenue,CAHD,Bed Purchasing - LD S28A- Over 65- South,Permanent Residential,Milestones - Unit 10,5446, 09-May-2017
1350,Revenue,CAHD,Bed Purchasing - South,Permanent Residential,Milestones - Unit 10,8388, 09-May-2017
1351,Revenue,CAHD,Bed Purchasing - LD S28A- Over 65- South,Fees & Charges Income - General,Milestones - Unit 10,1120.29, 09-May-2017
1352,Revenue,CAHD,Bed Purchasing - LD S28A- Over 65- South,Permanent Residential,Milestones - Unit 10,5880.56, 09-May-2017
1353,Revenue,CAHD,Bed Purchasing - LD S28A- Over 65- South,Permanent Nursing,Milestones - Unit 10,7929.76, 09-May-2017
1354,Revenue,CAHD,Bed Purchasing - S28A - Over 65- North,Permanent Residential,Milestones - Unit 10,3524.76, 09-May-2017
1355,Revenue,CAHD,Bed Purchasing - South,Permanent Residential,Milestones - Unit 10,5197.72, 09-May-2017
1356,Revenue,CAHD,Section 117 Placements MH Younger,Permanent Residential,Milestones - Unit 10,1444.52, 09-May-2017
1357,Revenue,CAHD,Bed Purchasing - South,Permanent Residential,Milestones - Unit 10,1458.72, 09-May-2017
1358,Revenue,CAHD,Bed Purchasing - Southmead Hospital,Permanent Nursing,Milestones - Unit 10,6501.08, 09-May-2017
1359,Revenue,CAHD,Bed Purchasing - South,Permanent Nursing,Milestones - Unit 10,2066.52, 09-May-2017
1360,Revenue,CAHD,Bed Purchasing - North,Permanent Residential,Milestones - Unit 10,5106.84, 09-May-2017
1361,Revenue,CAHD,Bed Purchasing - South,Permanent Nursing,Milestones - Unit 10,7158.48, 09-May-2017
1362,Revenue,CAHD,South Glos Users in South Glos Homes,Permanent Nursing,Milestones - Unit 10,620.2, 09-May-2017
1363,Revenue,CAHD,Bed Purchasing - South,Permanent Residential,Milestones - Unit 10,4800.52, 09-May-2017
1364,Revenue,CAHD,Bed purchasing -S28A  Under 65 - North,Permanent Residential,Milestones - Unit 10,6221.96, 09-May-2017
1365,Revenue,CAHD,Bed Purchasing - S28A - Over 65- North,Permanent Residential,Milestones - Unit 10,4353.68, 09-May-2017
1366,Revenue,CAHD,Bed Purchasing - Southmead Hospital,Respite Planned - Nursing,Milestones - Unit 10,2184.54, 09-May-2017
1367,Revenue,CAHD,MH Purchasing - Younger,Permanent Residential,Milestones - Unit 10,1420.68, 09-May-2017
1368,Revenue,CAHD,Bed Purchasing - S28A - Over 65- North,Permanent Residential,Milestones - Unit 10,3944.84, 09-May-2017
1369,Revenue,CAHD,Bed Purchasing - LD S28A- Over 65- South,Permanent Residential,Milestones - Unit 10,4577.76, 09-May-2017
1370,Revenue,CAHD,Bed purchasing - S28A Under 65 - South,Permanent Residential,Milestones - Unit 10,5698.88, 09-May-2017
1371,Revenue,CAHD,Bed purchasing - S28A Under 65 - South,Permanent Nursing,Milestones - Unit 10,5898.88, 09-May-2017
1372,Revenue,CAHD,South Glos Users in South Glos Homes,Permanent Nursing,Milestones - Unit 10,620.2, 09-May-2017
1373,Revenue,CAHD,Bed Purchasing - LD S28A- Over 65- South,Permanent Nursing,Milestones - Unit 10,5937.96, 09-May-2017
1374,Revenue,CAHD,South Glos Users in South Glos Homes,Permanent Nursing,Milestones - Unit 10,620.2, 09-May-2017
1375,Revenue,CAHD,Bed Purchasing - LD S28A- Over 65- South,Permanent Residential,Milestones - Unit 10,5448, 09-May-2017
1376,Revenue,CAHD,Bed Purchasing - LD S28A- Over 65- South,Permanent Residential,Milestones - Unit 10,5328.24, 09-May-2017
1377,Revenue,CAHD,Bed purchasing - S28A Under 65 - South,Permanent Residential,Milestones - Unit 10,6929.68, 09-May-2017
1378,Revenue,CAHD,Bed Purchasing - LD S28A- Over 65- South,Permanent Residential,Milestones - Unit 10,5436, 09-May-2017
1379,Revenue,CAHD,Bed Purchasing - LD S28A- Over 65- South,Permanent Residential,Milestones - Unit 10,2718, 09-May-2017
1380,Revenue,CAHD,Bed Purchasing - S28A - Over 65- North,Permanent Nursing,Milestones - Unit 10,5440.76, 09-May-2017
1381,Revenue,CAHD,South Glos Users in South Glos Homes,Permanent Nursing,Milestones - Unit 10,620.2, 09-May-2017
1382,Revenue,CAHD,Bed Purchasing - S28A - Over 65- North,Permanent Residential,Milestones - Unit 10,5405.64, 09-May-2017
1383,Revenue,CAHD,Bed purchasing - S28A Under 65 - South,Permanent Residential,Milestones - Unit 10,5396.4, 09-May-2017
1384,Revenue,CAHD,Bed Purchasing - S28A - Over 65- North,Permanent Residential,Milestones - Unit 10,5314.88, 09-May-2017
1385,Revenue,CAHD,Bed purchasing -S28A  Under 65 - North,Permanent Residential,Milestones - Unit 10,7657.52, 09-May-2017
1386,Revenue,CAHD,Bed purchasing -S28A  Under 65 - North,Permanent Residential,Milestones - Unit 10,3788.84, 09-May-2017
1387,Revenue,CAHD,Jointly Funded H&SC Packages,Permanent Residential,Milestones - Unit 10,3765.84, 09-May-2017
1388,Revenue,CAHD,Bed Purchasing - North,Permanent Residential,Milestones - Unit 10,2970.28, 09-May-2017
1389,Revenue,CAHD,Bed Purchasing - S28A - Over 65- North,Permanent Residential,Milestones - Unit 10,4106.28, 09-May-2017
1390,Revenue,CAHD,South Glos Users in South Glos Homes,Permanent Nursing,Milestones - Unit 10,620.2, 09-May-2017
1391,Revenue,CAHD,Bed Purchasing - North,Permanent Nursing,Milestones - Unit 10,1947.24, 09-May-2017
1392,Revenue,CAHD,South Glos Users in South Glos Homes,Permanent Nursing,Milestones - Unit 10,620.2, 09-May-2017
1393,Revenue,CAHD,MH Purchasing - Younger,Permanent Nursing,Milestones - Unit 10,1553.56, 09-May-2017
1394,Revenue,CAHD,South Glos Users in South Glos Homes,Permanent Nursing,Milestones - Unit 10,620.2, 09-May-2017
1395,Revenue,CAHD,Bed Purchasing - South,Permanent Nursing,Milestones - Unit 10,6605.64, 09-May-2017
1396,Revenue,CAHD,South Glos Users in South Glos Homes,Permanent Nursing,Milestones - Unit 10,620.2, 09-May-2017
1397,Revenue,CAHD,South Glos Users in South Glos Homes,Permanent Nursing,Milestones - Unit 10,620.2, 09-May-2017
1398,Revenue,CAHD,Bed Purchasing - South,Permanent Residential,Milestones - Unit 10,3987.04, 09-May-2017
1399,Revenue,CAHD,South Glos Users in South Glos Homes,Permanent Nursing,Milestones - Unit 10,620.2, 09-May-2017
1400,Revenue,CAHD,Bed Purchasing - North,Permanent Residential,Milestones - Unit 10,6678.04, 09-May-2017
1401,Revenue,CAHD,Bed purchasing - S28A Under 65 - South,Permanent Residential,Milestones - Unit 10,6474.72, 09-May-2017
1402,Revenue,CAHD,Bed purchasing - S28A Under 65 - South,Permanent Residential,Milestones - Unit 10,6752.32, 09-May-2017
1403,Revenue,CAHD,Bed Purchasing - Southmead Hospital,Permanent Nursing,Milestones - Unit 10,6323.36, 09-May-2017
1404,Revenue,CAHD,Bed Purchasing - LD S28A- Over 65- South,Permanent Residential,Milestones - Unit 10,5155.52, 09-May-2017
1405,Revenue,CAHD,Bed Purchasing - South,Permanent Residential,Milestones - Unit 10,6475.16, 09-May-2017
1406,Revenue,CAHD,Bed Purchasing - LD S28A- Over 65- South,Permanent Nursing,Milestones - Unit 10,5937.96, 09-May-2017
1407,Revenue,CAHD,South Glos Users in South Glos Homes,Permanent Nursing,Milestones - Unit 10,620.2, 09-May-2017
1408,Revenue,CAHD,Bed Purchasing - LD S28A- Over 65- South,Permanent Residential,Milestones - Unit 10,4221, 09-May-2017
1409,Revenue,CAHD,Bed Purchasing - LD S28A- Over 65- South,Permanent Residential,Milestones - Unit 10,2110.5, 09-May-2017
1410,Revenue,CAHD,Bed Purchasing - South,Permanent Residential,Milestones - Unit 10,1886.24, 09-May-2017
1411,Revenue,CAHD,South Glos Users in South Glos Homes,Permanent Nursing,Milestones - Unit 10,620.2, 09-May-2017
1412,Revenue,CAHD,Section 117 Placements MH Younger,Permanent Residential,Milestones - Unit 10,1444.52, 09-May-2017
1413,Revenue,CAHD,South Glos Users in South Glos Homes,Permanent Nursing,Milestones - Unit 10,620.2, 09-May-2017
1414,Revenue,CAHD,Bed Purchasing - North,Permanent Nursing,Milestones - Unit 10,4796.84, 09-May-2017
1415,Revenue,CAHD,Bed Purchasing - South,Permanent Nursing,Milestones - Unit 10,4029.08, 09-May-2017
1416,Revenue,CAHD,Bed Purchasing - South,Permanent Nursing,Milestones - Unit 10,3370, 09-May-2017
1417,Revenue,CAHD,Bed Purchasing - South,Permanent Nursing,Milestones - Unit 10,4826.08, 09-May-2017
1418,Revenue,CAHD,Bed Purchasing - South,Permanent Nursing,Milestones - Unit 10,4826.08, 09-May-2017
1419,Revenue,CAHD,Bed Purchasing - South,Permanent Nursing,Milestones - Unit 10,4423.86, 09-May-2017
1420,Revenue,CAHD,Bed Purchasing - South,Permanent Nursing,Milestones - Unit 10,7393.84, 09-May-2017
1421,Revenue,CAHD,Section 117 Placements MH Younger,Permanent Residential,Milestones - Unit 10,6291.8, 09-May-2017
1422,Revenue,CAHD,Section 117 Placements MH Younger,Permanent Residential,Milestones - Unit 10,4088.48, 09-May-2017
1423,Revenue,CAHD,Jointly Funded H&SC Packages,Permanent Residential,Milestones - Unit 10,1085.08, 09-May-2017
1424,Revenue,CAHD,Bed purchasing - Elderly S117 - South,Permanent Residential,Milestones - Unit 10,3255.2, 09-May-2017
1425,Revenue,CAHD,Jointly Funded H&SC Packages,Permanent Residential,Milestones - Unit 10,542.54, 09-May-2017
1426,Revenue,CAHD,Bed purchasing - Elderly S117 - South,Permanent Residential,Milestones - Unit 10,1627.6, 09-May-2017
1427,Revenue,CAHD,Bed Purchasing - North,Permanent Residential,Millennium House,2034.12, 09-May-2017
1428,Revenue,CAHD,Bed Purchasing - North,Permanent Residential,Mostyn Lodge Residential Home,2034.12, 09-May-2017
1429,Revenue,CAHD,Care Payment,Support,Individual,988.76, 09-May-2017
1430,Revenue,CAHD,Bed Purchasing - North,Permanent Residential,Nas Services  Church House,7755.6, 09-May-2017
1431,Revenue,CAHD,Jointly Funded H&SC Packages,Permanent Residential,Nas Services  Church House,3149.96, 09-May-2017
1432,Revenue,CAHD,Bed Purchasing - North,Permanent Residential,Nas Services  Church House,6497.84, 09-May-2017
1433,Revenue,CAHD,Section 117 Placements MH Younger,Permanent Residential,Nas Services  Church House,7478.92, 09-May-2017
1434,Revenue,CAHD,Section 117 Placements MH Younger,Permanent Residential,Nas Services  Church House,3739.46, 09-May-2017
1435,Revenue,CAHD,Bed Purchasing - Southmead Hospital,Permanent Residential,Nashley House Retirement Home,1855.12, 09-May-2017
1436,Revenue,CAHD,Swift Dump Code,Permanent Residential,New Beginnings (Gloucester) Ltd,3954.92, 09-May-2017
1437,Revenue,CAHD,Bed Purchasing - North,Permanent Residential,New Beginnings (Gloucester) Ltd,8329.28, 09-May-2017
1438,Revenue,CAHD,Home Care - Elderly - North,Supported Living,Newplan House,2673, 09-May-2017
1439,Revenue,CAHD,Home Care - Elderly - North,Supported Living,Newplan House,2673, 09-May-2017
1440,Revenue,CAHD,Bed Purchasing - South,Permanent Residential,Norwood   Broadway House,5492.2, 09-May-2017
1441,Revenue,CAHD,Bed Purchasing - South,Permanent Residential,Notaro Homes Ltd  Queensmead Court,2042.28, 09-May-2017
1442,Revenue,CAHD,Bed Purchasing - South,Permanent Nursing,Notaro Homes Ltd  Queensmead Court,2120, 09-May-2017
1443,Revenue,CAHD,Bed Purchasing - North,Permanent Nursing,Operations Centre,2451.48, 09-May-2017
1444,Revenue,CAHD,Bed purchasing -S28A  Under 65 - North,Permanent Residential,Orchard End Limited,8180.76, 09-May-2017
1445,Revenue,CAHD,Bed Purchasing - Southmead Hospital,Permanent Residential,Osbourne Court,3403.68, 09-May-2017
1446,Revenue,CAHD,Bed Purchasing - Southmead Hospital,Fees & Charges Income - General,Osbourne Court,690.84, 09-May-2017
1447,Revenue,CAHD,Bed Purchasing - North,Permanent Residential,Osbourne Court,3203.56, 09-May-2017
1448,Revenue,CAHD,Bed Purchasing - North,Permanent Residential,Osbourne Court,3265.16, 09-May-2017
1449,Revenue,CAHD,Bed Purchasing - Southmead Hospital,Permanent Residential,Osbourne Court,3480, 09-May-2017
1450,Revenue,CAHD,Bed Purchasing - Southmead Hospital,Permanent Residential,Osbourne Court,1118.57, 09-May-2017
1451,Revenue,CAHD,Bed Purchasing - North,Permanent Residential,Osbourne Court,3282.16, 09-May-2017
1452,Revenue,CAHD,Bed Purchasing - North,Permanent Residential,Osbourne Court,3403.68, 09-May-2017
1453,Revenue,CAHD,Bed Purchasing - North,Permanent Residential,Osbourne Court,3238.12, 09-May-2017
1454,Revenue,CAHD,Bed Purchasing - North,Permanent Residential,Osbourne Court,3222.84, 09-May-2017
1455,Revenue,CAHD,Bed Purchasing - North,Permanent Residential,Osbourne Court,3403.68, 09-May-2017
1456,Revenue,CAHD,Bed Purchasing - Southmead Hospital,Permanent Residential,Osbourne Court,3039, 09-May-2017
1457,Revenue,CAHD,Bed Purchasing - North,Permanent Residential,Osbourne Court,3026.4, 09-May-2017
1458,Revenue,CAHD,Bed Purchasing - North,Permanent Residential,Osbourne Court,3403.68, 09-May-2017
1459,Revenue,CAHD,Bed Purchasing - South,Permanent Residential,Park Farm House,2698.48, 09-May-2017
1460,Revenue,CAHD,Bed Purchasing - Southmead Hospital,Permanent Residential,Park Farm House,2816.16, 09-May-2017
1461,Revenue,CAHD,Bed Purchasing - North,Permanent Residential,Park Farm House,2633.8, 09-May-2017
1462,Revenue,CAHD,Bed Purchasing - South,Permanent Residential,Park Farm House,2189.88, 09-May-2017
1463,Revenue,CAHD,Bed Purchasing - South,Permanent Residential,Park Hall,6179.52, 09-May-2017
1464,Revenue,CAHD,Bed Purchasing - North,Permanent Residential,Park Hall,5775.8, 09-May-2017
1465,Revenue,CAHD,Bed Purchasing - South,Permanent Residential,Park Hall,5535.8, 09-May-2017
1466,Revenue,CAHD,Bed Purchasing - South,Permanent Residential,Park Hall,3190.8, 09-May-2017
1467,Revenue,CAHD,Bed purchasing - S28A Under 65 - South,Permanent Residential,Park Hall,5230.68, 09-May-2017
1468,Revenue,CAHD,Bed Purchasing - North,Permanent Residential,Park Hall,4835.76, 09-May-2017
1469,Revenue,CAHD,Home Care - Elderly - South,Supported Living,Park Hall,2196.96, 09-May-2017
1470,Revenue,CAHD,Bed Purchasing - South,Permanent Residential,Park Hall,7610.04, 09-May-2017
1471,Revenue,CAHD,Jointly Funded H&SC Packages,Permanent Residential,Park Hall,3565.64, 09-May-2017
1472,Revenue,CAHD,Bed purchasing -S28A  Under 65 - North,Permanent Residential,Park Hall,6487.2, 09-May-2017
1473,Revenue,CAHD,Bed purchasing - S28A Under 65 - South,Permanent Residential,Park Hall,8865.56, 09-May-2017
1474,Revenue,CAHD,Bed purchasing - S28A Under 65 - South,Permanent Residential,Park Hall,4432.78, 09-May-2017
1475,Revenue,CAHD,Bed Purchasing - South,Permanent Residential,Park Hall,15973, 09-May-2017
1476,Revenue,CAHD,18-25 Year Olds,Permanent Residential,Park Hall,7285.28, 09-May-2017
1477,Revenue,CAHD,Bed Purchasing - North,Permanent Residential,Park Hall,6021.84, 09-May-2017
1478,Revenue,CAHD,Home Care - Elderly - North,Day Care / Social Activities,Pauls Place,510.96, 09-May-2017
1479,Revenue,CAHD,Home Care - Elderly - South,Day Care / Social Activities,Pauls Place,510.96, 09-May-2017
1480,Revenue,CAHD,Home Care - Elderly - South,Day Care / Social Activities,Pauls Place,510.96, 09-May-2017
1481,Revenue,CAHD,Bed Purchasing - South,Permanent Residential,Penleigh House Care Home,5188.28, 09-May-2017
1482,Revenue,CAHD,Bed Purchasing - South,Permanent Residential,Penleigh House Care Home,7005.68, 09-May-2017
1483,Revenue,CAHD,Bed Purchasing - South,Permanent Residential,Penleigh House Care Home,5118.96, 09-May-2017
1484,Revenue,CAHD,Bed purchasing - S28A Under 65 - South,Permanent Residential,Penleigh House Care Home,6037.36, 09-May-2017
1485,Revenue,CAHD,Bed Purchasing - South,Permanent Residential,Penleigh House Care Home,5485.68, 09-May-2017
1486,Revenue,CAHD,Alexandra Way,Agency Staff (Operational)/PCT Pay,Prestige Nursing,908.87, 09-May-2017
1487,Revenue,CAHD,Bed Purchasing - Southmead Hospital,Permanent Nursing,Quinton Gardens,810.7, 09-May-2017
1488,Revenue,CAHD,Bed Purchasing - Southmead Hospital,Fees & Charges Income - General,Quinton Gardens,782.86, 09-May-2017
1489,Revenue,CAHD,Bed Purchasing - Southmead Hospital,Fees & Charges Income - General,Quinton Gardens,1387.82, 09-May-2017
1490,Revenue,CAHD,Bed Purchasing - North,Permanent Nursing,Ravenswood,2906, 09-May-2017
1491,Revenue,CAHD,Bed Purchasing - Elderly S117- North,Permanent Nursing,Redholme Memory Care Limited,2067.28, 09-May-2017
1492,Revenue,CAHD,Home Care - Elderly - North,Supported Living,Redwood House,5107.28, 09-May-2017
1493,Revenue,CAHD,Home Care - Elderly - North,Supported Living,Redwood House,5107.28, 09-May-2017
1494,Revenue,CAHD,Bed Purchasing - South,Permanent Residential,Ridgeway House,3995.92, 09-May-2017
1495,Revenue,CAHD,Bed Purchasing - South,Permanent Nursing,Riversway Nursing Home,3800.76, 09-May-2017
1496,Revenue,CAHD,Bed Purchasing - Southmead Hospital,Permanent Nursing,Riversway Nursing Home,3068.36, 09-May-2017
1497,Revenue,CAHD,Bed purchasing - Elderly S117 - South,Permanent Nursing,Riversway Nursing Home,3800.76, 09-May-2017
1498,Revenue,CAHD,Bed Purchasing - Elderly S117- North,Permanent Nursing,Riversway Nursing Home,3824.08, 09-May-2017
1499,Revenue,CAHD,Bed Purchasing - Southmead Hospital,Permanent Residential,Riversway Nursing Home,3800.76, 09-May-2017
1500,Revenue,CAHD,Bed Purchasing - Southmead Hospital,Permanent Nursing,Riversway Nursing Home,3141.84, 09-May-2017
1501,Revenue,CAHD,Bed Purchasing - South,Permanent Residential,Rosedale House,2283.32, 09-May-2017
1502,Revenue,CAHD,Bed Purchasing - South,Permanent Residential,Rosewood Lodge & Brook House,5112.28, 09-May-2017
1503,Revenue,CAHD,South Glos Users in South Glos Homes,Permanent Nursing,Saffron Gardens Nursing Home,620.2, 09-May-2017
1504,Revenue,CAHD,Bed Purchasing - Southmead Hospital,Permanent Nursing,Saffron Gardens Nursing Home,3646.8, 09-May-2017
1505,Revenue,CAHD,South Glos Users in South Glos Homes,Permanent Nursing,Saffron Gardens Nursing Home,620.2, 09-May-2017
1506,Revenue,CAHD,Bed Purchasing - South,Permanent Nursing,Saffron Gardens Nursing Home,3353.92, 09-May-2017
1507,Revenue,CAHD,South Glos Users in South Glos Homes,Permanent Nursing,Saffron Gardens Nursing Home,620.2, 09-May-2017
1508,Revenue,CAHD,South Glos Users in South Glos Homes,Permanent Nursing,Saffron Gardens Nursing Home,620.2, 09-May-2017
1509,Revenue,CAHD,South Glos Users in South Glos Homes,Permanent Nursing,Saffron Gardens Nursing Home,825.89, 09-May-2017
1510,Revenue,CAHD,South Glos Users in South Glos Homes,Permanent Nursing,Saffron Gardens Nursing Home,620.2, 09-May-2017
1511,Revenue,CAHD,South Glos Users in South Glos Homes,Permanent Nursing,Saffron Gardens Nursing Home,509.45, 09-May-2017
1512,Revenue,CAHD,South Glos Users in South Glos Homes,Permanent Nursing,Saffron Gardens Nursing Home,620.2, 09-May-2017
1513,Revenue,CAHD,Bed Purchasing - South,Permanent Nursing,Saffron Gardens Nursing Home,2907.84, 09-May-2017
1514,Revenue,CAHD,South Glos Users in South Glos Homes,Permanent Nursing,Saffron Gardens Nursing Home,620.2, 09-May-2017
1515,Revenue,CAHD,Bed purchasing - Elderly S117 - South,Permanent Nursing,Saffron Gardens Nursing Home,3274, 09-May-2017
1516,Revenue,CAHD,South Glos Users in South Glos Homes,Permanent Nursing,Saffron Gardens Nursing Home,620.2, 09-May-2017
1517,Revenue,CAHD,South Glos Users in South Glos Homes,Permanent Nursing,Saffron Gardens Nursing Home,620.2, 09-May-2017
1518,Revenue,CAHD,South Glos Users in South Glos Homes,Permanent Nursing,Saffron Gardens Nursing Home,580.36, 09-May-2017
1519,Revenue,CAHD,South Glos Users in South Glos Homes,Permanent Nursing,Saffron Gardens Nursing Home,509.45, 09-May-2017
1520,Revenue,CAHD,Bed Purchasing - South,Permanent Nursing,Saffron Gardens Nursing Home,2907.84, 09-May-2017
1521,Revenue,CAHD,South Glos Users in South Glos Homes,Permanent Nursing,Saffron Gardens Nursing Home,620.2, 09-May-2017
1522,Revenue,CAHD,Bed Purchasing - South,Permanent Nursing,Saffron Gardens Nursing Home,37316.76, 09-May-2017
1523,Revenue,CAHD,Bed Purchasing - South,Permanent Nursing,Saffron Gardens Nursing Home,2907.84, 09-May-2017
1524,Revenue,CAHD,Bed Purchasing - South,Permanent Nursing,Saffron Gardens Nursing Home,1453.92, 09-May-2017
1525,Revenue,CAHD,Bed Purchasing - South,Permanent Nursing,Saffron Gardens Nursing Home,809.14, 09-May-2017
1526,Revenue,CAHD,Bed Purchasing - South,Fees & Charges Income - General,Saffron Gardens Nursing Home,11786.09, 09-May-2017
1527,Revenue,CAHD,South Glos Users in South Glos Homes,Permanent Nursing,Saffron Gardens Nursing Home,5959.82, 09-May-2017
1528,Revenue,CAHD,South Glos Users in South Glos Homes,Permanent Nursing,Saffron Gardens Nursing Home,620.2, 09-May-2017
1529,Revenue,CAHD,South Glos Users in South Glos Homes,Permanent Nursing,Saffron Gardens Nursing Home,509.45, 09-May-2017
1530,Revenue,CAHD,South Glos Users in South Glos Homes,Permanent Nursing,Saffron Gardens Nursing Home,620.2, 09-May-2017
1531,Revenue,CAHD,South Glos Users in South Glos Homes,Permanent Nursing,Saffron Gardens Nursing Home,620.2, 09-May-2017
1532,Revenue,CAHD,South Glos Users in South Glos Homes,Permanent Nursing,Saffron Gardens Nursing Home,620.2, 09-May-2017
1533,Revenue,CAHD,Bed Purchasing - Southmead Hospital,Permanent Nursing,Saffron Gardens Nursing Home,2254.8, 09-May-2017
1534,Revenue,CAHD,Bed Purchasing - Southmead Hospital,Permanent Nursing,Saffron Gardens Nursing Home,1127.4, 09-May-2017
1535,Revenue,CAHD,Bed Purchasing - North,Permanent Nursing,Saffron Gardens Nursing Home,3447.6, 09-May-2017
1536,Revenue,CAHD,Bed Purchasing - North,Permanent Nursing,Saffron Gardens Nursing Home,2552.52, 09-May-2017
1537,Revenue,CAHD,Bed Purchasing - North,Permanent Nursing,Saffron Gardens Nursing Home,1723.8, 09-May-2017
1538,Revenue,CAHD,South Glos Users in South Glos Homes,Permanent Nursing,Saffron Gardens Nursing Home,620.2, 09-May-2017
1539,Revenue,CAHD,Home Care - Elderly - North,Day Care / Social Activities,Saffron Gardens Nursing Home,533.92, 09-May-2017
1540,Revenue,CAHD,South Glos Users in South Glos Homes,Permanent Nursing,Saffron Gardens Nursing Home,620.2, 09-May-2017
1541,Revenue,CAHD,South Glos Users in South Glos Homes,Permanent Nursing,Saffron Gardens Nursing Home,620.2, 09-May-2017
1542,Revenue,CAHD,Bed Purchasing - North,Permanent Nursing,Saffron Gardens Nursing Home,3646.8, 09-May-2017
1543,Revenue,CAHD,South Glos Users in South Glos Homes,Permanent Nursing,Saffron Gardens Nursing Home,620.2, 09-May-2017
1544,Revenue,CAHD,Bed Purchasing - North,Permanent Nursing,Saffron Gardens Nursing Home,3849.4, 09-May-2017
1545,Revenue,CAHD,South Glos Users in South Glos Homes,Permanent Nursing,Saffron Gardens Nursing Home,1428.57, 09-May-2017
1546,Revenue,CAHD,South Glos Users in South Glos Homes,Permanent Nursing,Saffron Gardens Nursing Home,620.2, 09-May-2017
1547,Revenue,CAHD,South Glos Users in South Glos Homes,Permanent Nursing,Saffron Gardens Nursing Home,509.45, 09-May-2017
1548,Revenue,CAHD,South Glos Users in South Glos Homes,Permanent Nursing,Saffron Gardens Nursing Home,620.2, 09-May-2017
1549,Revenue,CAHD,South Glos Users in South Glos Homes,Permanent Nursing,Saffron Gardens Nursing Home,620.2, 09-May-2017
1550,Revenue,CAHD,Bed Purchasing - South,Permanent Nursing,Saffron Gardens Nursing Home,3039.24, 09-May-2017
1551,Revenue,CAHD,South Glos Users in South Glos Homes,Permanent Nursing,Saffron Gardens Nursing Home,620.2, 09-May-2017
1552,Revenue,CAHD,South Glos Users in South Glos Homes,Permanent Nursing,Saffron Gardens Nursing Home,620.2, 09-May-2017
1553,Revenue,CAHD,Bed purchasing - Elderly S117 - South,Permanent Nursing,Saffron Gardens Nursing Home,2907.84, 09-May-2017
1554,Revenue,CAHD,South Glos Users in South Glos Homes,Permanent Nursing,Saffron Gardens Nursing Home,620.2, 09-May-2017
1555,Revenue,CAHD,Home Care - Elderly - South,Day Care / Social Activities,Saffron Gardens Nursing Home,533.92, 09-May-2017
1556,Revenue,CAHD,Bed Purchasing - South,Respite Planned - Nursing,Saffron Gardens Nursing Home,567.14, 09-May-2017
1557,Revenue,CAHD,South Glos Users in South Glos Homes,Permanent Nursing,Saffron Gardens Nursing Home,620.2, 09-May-2017
1558,Revenue,CAHD,South Glos Users in South Glos Homes,Permanent Nursing,Saffron Gardens Nursing Home,620.2, 09-May-2017
1559,Revenue,CAHD,South Glos Users in South Glos Homes,Permanent Nursing,Saffron Gardens Nursing Home,620.2, 09-May-2017
1560,Revenue,CAHD,South Glos Users in South Glos Homes,Permanent Nursing,Saffron Gardens Nursing Home,1562.5, 09-May-2017
1561,Revenue,CAHD,South Glos Users in South Glos Homes,Permanent Nursing,Saffron Gardens Nursing Home,620.2, 09-May-2017
1562,Revenue,CAHD,South Glos Users in South Glos Homes,Permanent Nursing,Saffron Gardens Nursing Home,509.45, 09-May-2017
1563,Revenue,CAHD,South Glos Users in South Glos Homes,Permanent Nursing,Saffron Gardens Nursing Home,620.2, 09-May-2017
1564,Revenue,CAHD,Bed Purchasing - North,Respite Emergency - Residential,Saffron Gardens Nursing Home,2154, 09-May-2017
1565,Revenue,CAHD,Bed Purchasing - North,Respite Emergency - Residential,Saffron Gardens Nursing Home,1454.66, 09-May-2017
1566,Revenue,CAHD,Bed Purchasing - North,Respite Emergency - Residential,Saffron Gardens Nursing Home,727.33, 09-May-2017
1567,Revenue,CAHD,Bed Purchasing - South,Permanent Nursing,Saffron Gardens Nursing Home,2909.32, 09-May-2017
1568,Revenue,CAHD,Bed Purchasing - South,Permanent Nursing,Saffron Gardens Nursing Home,1454.66, 09-May-2017
1569,Revenue,CAHD,Bed Purchasing - South,Permanent Nursing,Saffron Gardens Nursing Home,1333.43, 09-May-2017
1570,Revenue,CAHD,South Glos Users in South Glos Homes,Permanent Nursing,Saffron Gardens Nursing Home,620.2, 09-May-2017
1571,Revenue,CAHD,South Glos Users in South Glos Homes,Permanent Nursing,Saffron Gardens Nursing Home,509.45, 09-May-2017
1572,Revenue,CAHD,South Glos Users in South Glos Homes,Permanent Nursing,Saffron Gardens Nursing Home,848.21, 09-May-2017
1573,Revenue,CAHD,South Glos Users in South Glos Homes,Permanent Nursing,Saffron Gardens Nursing Home,620.2, 09-May-2017
1574,Revenue,CAHD,South Glos Users in South Glos Homes,Permanent Nursing,Saffron Gardens Nursing Home,509.45, 09-May-2017
1575,Revenue,CAHD,South Glos Users in South Glos Homes,Permanent Nursing,Saffron Gardens Nursing Home,620.2, 09-May-2017
1576,Revenue,CAHD,Bed Purchasing - North,Permanent Nursing,Saffron Gardens Nursing Home,2907.84, 09-May-2017
1577,Revenue,CAHD,South Glos Users in South Glos Homes,Permanent Nursing,Saffron Gardens Nursing Home,620.2, 09-May-2017
1578,Revenue,CAHD,Bed Purchasing - Southmead Hospital,Permanent Nursing,Saffron Gardens Nursing Home,2717.36, 09-May-2017
1579,Revenue,CAHD,Bed Purchasing - Southmead Hospital,Permanent Nursing,Saffron Gardens Nursing Home,2717.36, 09-May-2017
1580,Revenue,CAHD,South Glos Users in South Glos Homes,Permanent Nursing,Saffron Gardens Nursing Home,1049.11, 09-May-2017
1581,Revenue,CAHD,South Glos Users in South Glos Homes,Permanent Nursing,Saffron Gardens Nursing Home,620.2, 09-May-2017
1582,Revenue,CAHD,Bed Purchasing - South,Permanent Nursing,Saffron Gardens Nursing Home,2908.48, 09-May-2017
1583,Revenue,CAHD,Bed Purchasing - South,Permanent Nursing,Saffron Gardens Nursing Home,2620.36, 09-May-2017
1584,Revenue,CAHD,South Glos Users in South Glos Homes,Permanent Nursing,Saffron Gardens Nursing Home,620.2, 09-May-2017
1585,Revenue,CAHD,South Glos Users in South Glos Homes,Permanent Nursing,Saffron Gardens Nursing Home,1763.39, 09-May-2017
1586,Revenue,CAHD,South Glos Users in South Glos Homes,Permanent Nursing,Saffron Gardens Nursing Home,620.2, 09-May-2017
1587,Revenue,CAHD,South Glos Users in South Glos Homes,Permanent Nursing,Saffron Gardens Nursing Home,509.45, 09-May-2017
1588,Revenue,CAHD,South Glos Users in South Glos Homes,Permanent Nursing,Saffron Gardens Nursing Home,620.2, 09-May-2017
1589,Revenue,CAHD,South Glos Users in South Glos Homes,Permanent Nursing,Saffron Gardens Nursing Home,620.2, 09-May-2017
1590,Revenue,CAHD,Bed Purchasing - South,Permanent Residential,Salters Hill Barn,2493.16, 09-May-2017
1591,Revenue,CAHD,Bed Purchasing - Elderly S117- North,Permanent Residential,Sanctuary Care Ltd  Cameo House,3444.2, 09-May-2017
1592,Revenue,CAHD,Bed Purchasing - South,Permanent Residential,Scope   Accounts Dept,3521.04, 09-May-2017
1593,Revenue,CAHD,Home Care - Elderly - North,Supported Living,Selborrne House,4225.24, 09-May-2017
1594,Revenue,CAHD,Home Care - Elderly - North,Supported Living,Selborrne House,4225.28, 09-May-2017
1595,Revenue,CAHD,Home Care - Elderly - South,Supported Living,Selborrne House,2468.16, 09-May-2017
1596,Revenue,CAHD,Home Care - Elderly - South,Supported Living,Selborrne House,2468.16, 09-May-2017
1597,Revenue,CAHD,Home Care - Elderly - South,Supported Living,Selborrne House,2468.12, 09-May-2017
1598,Revenue,CAHD,Bed Purchasing - North,Permanent Residential,Shaldon House (Positive Care Ltd),3091.68, 09-May-2017
1599,Revenue,CAHD,Bed Purchasing - South,Permanent Residential,Shaldon House (Positive Care Ltd),2662.56, 09-May-2017
1600,Revenue,CAHD,Bed Purchasing - North,Permanent Nursing,Shaw Healthcare Ltd,3197.04, 09-May-2017
1601,Revenue,CAHD,Bed purchasing - Elderly S117 - South,Permanent Nursing,Shaw Healthcare Ltd,3179.8, 09-May-2017
1602,Revenue,CAHD,Bed purchasing - Elderly S117 - South,Permanent Nursing,Shaw Healthcare Ltd,3139, 09-May-2017
1603,Revenue,CAHD,Bed purchasing - Elderly S117 - South,Permanent Nursing,Shaw Healthcare Ltd,1233.18, 09-May-2017
1604,Revenue,CAHD,Bed Purchasing - Elderly S117- North,Permanent Nursing,Shaw Healthcare Ltd,3179.8, 09-May-2017
1605,Revenue,CAHD,Bed purchasing - S28A Under 65 - South,Permanent Residential,Shaw Healthcare Ltd,10677.4, 09-May-2017
1606,Revenue,CAHD,Bed purchasing - S28A Under 65 - South,Permanent Residential,Shaw Healthcare Ltd,10677.4, 09-May-2017
1607,Revenue,CAHD,Bed Purchasing - South,Permanent Residential,Shaw Healthcare Ltd,10612.12, 09-May-2017
1608,Revenue,CAHD,Bed Purchasing - South,Permanent Residential,Shaw Healthcare Ltd,4662.28, 09-May-2017
1609,Revenue,CAHD,Bed Purchasing - S28A - Over 65- North,Permanent Residential,Shaw Healthcare Ltd,5013.76, 09-May-2017
1610,Revenue,CAHD,Bed Purchasing - S28A - Over 65- North,Permanent Residential,Shaw Healthcare Ltd,5021.48, 09-May-2017
1611,Revenue,CAHD,Bed Purchasing - LD S28A- Over 65- South,Permanent Residential,Shaw Healthcare Ltd,5228.48, 09-May-2017
1612,Revenue,CAHD,Bed Purchasing - North,Permanent Residential,Shaw Healthcare Ltd,6596, 09-May-2017
1613,Revenue,CAHD,Bed Purchasing - North,Permanent Residential,Shaw Healthcare Ltd,5050.92, 09-May-2017
1614,Revenue,CAHD,Bed Purchasing - Elderly S117- North,Permanent Nursing,Shaw Healthcare Ltd,2948.88, 09-May-2017
1615,Revenue,CAHD,Bed Purchasing - Elderly S117- North,Permanent Residential,Smallcombe House,2524.4, 09-May-2017
1616,Revenue,CAHD,Home Care - Elderly - North,Supported Living,Smile Ind Living Support Limited,5757.88, 09-May-2017
1617,Revenue,CAHD,Home Care - Elderly - North,Supported Living,Smile Ind Living Support Limited,5757.88, 09-May-2017
1618,Revenue,CAHD,Bed purchasing - Elderly S117 - South,Permanent Residential,Springfield House,4148.84, 09-May-2017
1619,Revenue,CAHD,Bed Purchasing - South,Permanent Residential,St Brigas,2752.24, 09-May-2017
1620,Revenue,CAHD,Bed Purchasing - South,Permanent Residential,St Brigas,3488.2, 09-May-2017
1621,Revenue,CAHD,Bed Purchasing - South,Permanent Residential,St Brigas,2460.24, 09-May-2017
1622,Revenue,CAHD,Bed Purchasing - Southmead Hospital,Permanent Nursing,St George Nursing Home,3444.2, 09-May-2017
1623,Revenue,CAHD,Bed Purchasing - Southmead Hospital,Permanent Nursing,St George Nursing Home,1884.2, 09-May-2017
1624,Revenue,CAHD,Bed Purchasing - South,Permanent Nursing,St George Nursing Home,1884.2, 09-May-2017
1625,Revenue,CAHD,Bed Purchasing - South,Permanent Nursing,St George Nursing Home,3241.6, 09-May-2017
1626,Revenue,CAHD,Bed Purchasing - Southmead Hospital,Permanent Nursing,St George Nursing Home,1884.2, 09-May-2017
1627,Revenue,CAHD,Bed Purchasing - Southmead Hospital,Permanent Nursing,St George Nursing Home,3444.2, 09-May-2017
1628,Revenue,CAHD,Bed Purchasing - Southmead Hospital,Permanent Nursing,St George Nursing Home,1884.2, 09-May-2017
1629,Revenue,CAHD,18-25 Year Olds,Permanent Nursing,St Roses School,2545.15, 09-May-2017
1630,Revenue,CAHD,Bed Purchasing - North,Permanent Nursing,Stanley House,7668.2, 09-May-2017
1631,Revenue,CAHD,Bed Purchasing - South,Permanent Nursing,Stanley House,5953.2, 09-May-2017
1632,Revenue,CAHD,Jointly Funded H&SC Packages,Permanent Nursing,Stanley House,1702.56, 09-May-2017
1633,Revenue,CAHD,Section 117 Placements MH Younger,Permanent Nursing,Stanley House,8298.48, 09-May-2017
1634,Revenue,CAHD,MH Purchasing - Younger,Permanent Nursing,Stanley House,4540.84, 09-May-2017
1635,Revenue,CAHD,Jointly Funded H&SC Packages,Permanent Nursing,Stanley House,4334.24, 09-May-2017
1636,Revenue,CAHD,Bed Purchasing - South,Permanent Residential,Stepping Stones Re-Sett. Unit,4270.56, 09-May-2017
1637,Revenue,CAHD,Jointly Funded H&SC Packages,Permanent Residential,Stepping Stones Re-Sett. Unit,3944.6, 09-May-2017
1638,Revenue,CAHD,Jointly Funded H&SC Packages,Permanent Residential,Stewart Court,1012.96, 09-May-2017
1639,Revenue,CAHD,Bed Purchasing - North,Permanent Residential,Stewart Court,11936.04, 09-May-2017
1640,Revenue,CAHD,Bed Purchasing - South,Permanent Residential,Stroud Court,6137.2, 09-May-2017
1641,Revenue,CAHD,Bed Purchasing - Elderly S117- North,Permanent Residential,Templemore Care Home,2317.08, 09-May-2017
1642,Revenue,CAHD,Home Care - Elderly - North,Day Care / Social Activities,The Ann Coleman Centre,2301.6, 09-May-2017
1643,Revenue,CAHD,Home Care - Elderly - North,Day Care / Social Activities,The Ann Coleman Centre,3378.2, 09-May-2017
1644,Revenue,CAHD,18-25 Year Olds,Permanent Residential,The Ann Coleman Centre,6697.84, 09-May-2017
1645,Revenue,CAHD,Bed Purchasing - North,Permanent Residential,The Beeches,2633.8, 09-May-2017
1646,Revenue,CAHD,Bed Purchasing - North,Permanent Residential,The Beeches,2283.32, 09-May-2017
1647,Revenue,CAHD,Bed Purchasing - South,Respite Planned - Residential,The Beeches,1485.71, 09-May-2017
1648,Revenue,CAHD,Bed Purchasing - South,Respite Planned - Residential,The Beeches,1128.77, 09-May-2017
1649,Revenue,CAHD,Bed Purchasing - Southmead Hospital,Permanent Residential,The Cidermill,2034.12, 09-May-2017
1650,Revenue,CAHD,Bed Purchasing - North,Permanent Residential,The Cidermill,2036.52, 09-May-2017
1651,Revenue,CAHD,Bed Purchasing - North,Permanent Residential,The Cidermill,2001.68, 09-May-2017
1652,Revenue,CAHD,Bed Purchasing - Southmead Hospital,Permanent Nursing,The Cidermill,2098.32, 09-May-2017
1653,Revenue,CAHD,Bed Purchasing - North,Permanent Nursing,The Cidermill,2100.4, 09-May-2017
1654,Revenue,CAHD,Bed Purchasing - North,Permanent Residential,The Cidermill,2036.52, 09-May-2017
1655,Revenue,CAHD,Bed Purchasing - North,Permanent Nursing,The Cidermill,2100.4, 09-May-2017
1656,Revenue,CAHD,Bed Purchasing - Southmead Hospital,Permanent Nursing,The Cidermill,2098.32, 09-May-2017
1657,Revenue,CAHD,Bed Purchasing - North,Permanent Nursing,The Cidermill,2100.4, 09-May-2017
1658,Revenue,CAHD,Bed Purchasing - Southmead Hospital,Permanent Residential,The Coach House Residential Home,2258.92, 09-May-2017
1659,Revenue,CAHD,Home Care - Elderly - North,Supported Living,The Conifers,1301.32, 09-May-2017
1660,Revenue,CAHD,Home Care - Elderly - North,Day Care / Social Activities,The Cottage,678.24, 09-May-2017
1661,Revenue,CAHD,Younger MH non-res purchasing,Day Care / Social Activities,The Cottage,520, 09-May-2017
1662,Revenue,CAHD,Home Care - Elderly - North,Day Care / Social Activities,The Cottage,533.92, 09-May-2017
1663,Revenue,CAHD,Younger MH non-res purchasing,Day Care / Social Activities,The Cottage,555.36, 09-May-2017
1664,Revenue,CAHD,Home Care - Elderly - North,Day Care / Social Activities,The Cottage,533.92, 09-May-2017
1665,Revenue,CAHD,18-25 Year Olds,Permanent Residential,The David Lewis Centre,6530, 09-May-2017
1666,Revenue,CAHD,Bed Purchasing - South,Permanent Residential,The Gables Residential Home,2633.8, 09-May-2017
1667,Revenue,CAHD,Bed Purchasing - South,Permanent Residential,The Gables Residential Home,1316.9, 09-May-2017
1668,Revenue,CAHD,Bed Purchasing - South,Permanent Residential,The Gables Residential Home,835.71, 09-May-2017
1669,Revenue,CAHD,Bed Purchasing - South,Permanent Residential,The Gables Residential Home,2162.44, 09-May-2017
1670,Revenue,CAHD,Bed Purchasing - Southmead Hospital,Permanent Residential,The Gables Residential Home,2140, 09-May-2017
1671,Revenue,CAHD,Bed purchasing - Elderly S117 - South,Permanent Residential,The Gables Residential Home,2331.96, 09-May-2017
1672,Revenue,CAHD,Bed Purchasing - South,Permanent Residential,The Gables Residential Home,2106.48, 09-May-2017
1673,Revenue,CAHD,Bed Purchasing - North,Respite Planned - Residential,The Garden House,642.86, 09-May-2017
1674,Revenue,CAHD,Bed Purchasing - South,Permanent Residential,The Garden House,3403.68, 09-May-2017
1675,Revenue,CAHD,Bed Purchasing - South,Permanent Residential,The Garden House,2669.6, 09-May-2017
1676,Revenue,CAHD,Bed Purchasing - South,Permanent Residential,The Garden House,3203.56, 09-May-2017
1677,Revenue,CAHD,Bed Purchasing - Southmead Hospital,Permanent Residential,The Garden House,2856.68, 09-May-2017
1678,Revenue,CAHD,Bed Purchasing - South,Permanent Residential,The Garden House,3322.64, 09-May-2017
1679,Revenue,CAHD,Bed Purchasing - North,Permanent Residential,The Garden House,2072, 09-May-2017
1680,Revenue,CAHD,Bed Purchasing - North,Permanent Residential,The Garden House,962, 09-May-2017
1681,Revenue,CAHD,Bed Purchasing - South,Permanent Residential,The Garden House,3180.84, 09-May-2017
1682,Revenue,CAHD,Bed Purchasing - Southmead Hospital,Permanent Residential,The Garden House,3039, 09-May-2017
1683,Revenue,CAHD,Bed Purchasing - South,Permanent Residential,The Garden House,3120.04, 09-May-2017
1684,Revenue,CAHD,Bed Purchasing - Southmead Hospital,Permanent Residential,The Garden House,2917.44, 09-May-2017
1685,Revenue,CAHD,Bed Purchasing - Southmead Hospital,Permanent Residential,The Grove,3363.16, 09-May-2017
1686,Revenue,CAHD,Bed Purchasing - Southmead Hospital,Permanent Residential,The Grove,2569.88, 09-May-2017
1687,Revenue,CAHD,Bed Purchasing - North,Permanent Residential,The Grove,3030.56, 09-May-2017
1688,Revenue,CAHD,Bed Purchasing - North,Permanent Residential,The Grove,3160.56, 09-May-2017
1689,Revenue,CAHD,Bed Purchasing - South,Permanent Residential,The Grove,2532.4, 09-May-2017
1690,Revenue,CAHD,Bed Purchasing - Elderly S117- North,Permanent Residential,The Grove,2205.68, 09-May-2017
1691,Revenue,CAHD,Bed Purchasing - Southmead Hospital,Permanent Residential,The Grove,3160.56, 09-May-2017
1692,Revenue,CAHD,Bed Purchasing - Elderly S117- North,Permanent Residential,The Grove,2874.96, 09-May-2017
1693,Revenue,CAHD,Bed Purchasing - North,Permanent Residential,The Grove,2773.16, 09-May-2017
1694,Revenue,CAHD,Bed Purchasing - Southmead Hospital,Permanent Residential,The Grove,2874.96, 09-May-2017
1695,Revenue,CAHD,Bed purchasing - Elderly S117 - South,Permanent Residential,The Grove,2906, 09-May-2017
1696,Revenue,CAHD,Bed Purchasing - Southmead Hospital,Permanent Residential,The Grove,3160.56, 09-May-2017
1697,Revenue,CAHD,Bed Purchasing - South,Permanent Residential,The Grove,3403.68, 09-May-2017
1698,Revenue,CAHD,Bed Purchasing - North,Permanent Residential,The Grove,2874.96, 09-May-2017
1699,Revenue,CAHD,Bed Purchasing - Southmead Hospital,Permanent Residential,The Grove,3160.56, 09-May-2017
1700,Revenue,CAHD,Bed Purchasing - North,Permanent Residential,The Grove,2876.92, 09-May-2017
1701,Revenue,CAHD,Bed Purchasing - South,Permanent Residential,The Grove,3080.32, 09-May-2017
1702,Revenue,CAHD,Home Care - Elderly - North,Supported Living,The Hatch Camphill Community,2093.12, 09-May-2017
1703,Revenue,CAHD,Home Care - Elderly - North,Supported Living,The Hatch Camphill Community,2220.48, 09-May-2017
1704,Revenue,CAHD,Home Care - Elderly - North,Supported Living,The Hatch Camphill Community,2384.6, 09-May-2017
1705,Revenue,CAHD,Home Care - Elderly - North,Supported Living,The Hatch Camphill Community,2371.6, 09-May-2017
1706,Revenue,CAHD,Home Care - Elderly - North,Supported Living,The Hatch Camphill Community,1863.88, 09-May-2017
1707,Revenue,CAHD,Home Care - Elderly - North,Supported Living,The Hatch Camphill Community,2134.2, 09-May-2017
1708,Revenue,CAHD,Home Care - Elderly - North,Supported Living,The Hatch Camphill Community,1944.24, 09-May-2017
1709,Revenue,CAHD,Home Care - Elderly - North,Supported Living,The Hatch Camphill Community,1762.88, 09-May-2017
1710,Revenue,CAHD,Home Care - Elderly - North,Supported Living,The Hatch Camphill Community,2136.28, 09-May-2017
1711,Revenue,CAHD,Home Care - Elderly - North,Supported Living,The Hatch Camphill Community,1909.64, 09-May-2017
1712,Revenue,CAHD,Home Care - Elderly - North,Supported Living,The Hatch Camphill Community,1711.08, 09-May-2017
1713,Revenue,CAHD,Home Care - Elderly - North,Supported Living,The Hatch Camphill Community,1322.48, 09-May-2017
1714,Revenue,CAHD,Home Care - Elderly - North,Supported Living,The Hatch Camphill Community,2134.2, 09-May-2017
1715,Revenue,CAHD,Home Care - Elderly - North,Supported Living,The Hatch Camphill Community,2099.64, 09-May-2017
1716,Revenue,CAHD,Bed Purchasing - Southmead Hospital,Permanent Nursing,The Heathers,1915.8, 09-May-2017
1717,Revenue,CAHD,South Glos Users in South Glos Homes,Permanent Nursing,The Heathers,620.2, 09-May-2017
1718,Revenue,CAHD,Bed Purchasing - Southmead Hospital,Permanent Nursing,The Heathers,2501.2, 09-May-2017
1719,Revenue,CAHD,South Glos Users in South Glos Homes,Permanent Nursing,The Heathers,620.2, 09-May-2017
1720,Revenue,CAHD,Bed Purchasing - Southmead Hospital,Permanent Nursing,The Heathers,1915.8, 09-May-2017
1721,Revenue,CAHD,South Glos Users in South Glos Homes,Permanent Nursing,The Heathers,620.2, 09-May-2017
1722,Revenue,CAHD,South Glos Users in South Glos Homes,Permanent Nursing,The Heathers,620.2, 09-May-2017
1723,Revenue,CAHD,Bed Purchasing - North,Permanent Nursing,The Heathers,2811.08, 09-May-2017
1724,Revenue,CAHD,South Glos Users in South Glos Homes,Permanent Nursing,The Heathers,620.2, 09-May-2017
1725,Revenue,CAHD,South Glos Users in South Glos Homes,Permanent Nursing,The Heathers,620.2, 09-May-2017
1726,Revenue,CAHD,South Glos Users in South Glos Homes,Permanent Nursing,The Heathers,620.2, 09-May-2017
1727,Revenue,CAHD,Bed Purchasing - South,Permanent Nursing,The Heathers,1915.8, 09-May-2017
1728,Revenue,CAHD,South Glos Users in South Glos Homes,Permanent Nursing,The Heathers,620.2, 09-May-2017
1729,Revenue,CAHD,South Glos Users in South Glos Homes,Permanent Nursing,The Heathers,620.2, 09-May-2017
1730,Revenue,CAHD,Bed Purchasing - North,Permanent Nursing,The Heathers,2811.08, 09-May-2017
1731,Revenue,CAHD,South Glos Users in South Glos Homes,Permanent Nursing,The Heathers,1339.29, 09-May-2017
1732,Revenue,CAHD,Bed Purchasing - North,Permanent Nursing,The Heathers,1405.54, 09-May-2017
1733,Revenue,CAHD,South Glos Users in South Glos Homes,Permanent Nursing,The Heathers,620.2, 09-May-2017
1734,Revenue,CAHD,South Glos Users in South Glos Homes,Permanent Nursing,The Heathers,509.45, 09-May-2017
1735,Revenue,CAHD,Bed Purchasing - North,Permanent Nursing,The Heathers,2521.76, 09-May-2017
1736,Revenue,CAHD,South Glos Users in South Glos Homes,Permanent Nursing,The Heathers,620.2, 09-May-2017
1737,Revenue,CAHD,South Glos Users in South Glos Homes,Permanent Nursing,The Heathers,620.2, 09-May-2017
1738,Revenue,CAHD,South Glos Users in South Glos Homes,Permanent Nursing,The Heathers,513.39, 09-May-2017
1739,Revenue,CAHD,South Glos Users in South Glos Homes,Permanent Nursing,The Heathers,509.45, 09-May-2017
1740,Revenue,CAHD,South Glos Users in South Glos Homes,Permanent Nursing,The Heathers,620.2, 09-May-2017
1741,Revenue,CAHD,South Glos Users in South Glos Homes,Permanent Nursing,The Heathers,620.2, 09-May-2017
1742,Revenue,CAHD,South Glos Users in South Glos Homes,Permanent Nursing,The Heathers,620.2, 09-May-2017
1743,Revenue,CAHD,South Glos Users in South Glos Homes,Permanent Nursing,The Heathers,620.2, 09-May-2017
1744,Revenue,CAHD,South Glos Users in South Glos Homes,Permanent Nursing,The Heathers,620.2, 09-May-2017
1745,Revenue,CAHD,South Glos Users in South Glos Homes,Permanent Nursing,The Heathers,620.2, 09-May-2017
1746,Revenue,CAHD,Bed Purchasing - North,Permanent Nursing,The Heathers,2043.28, 09-May-2017
1747,Revenue,CAHD,South Glos Users in South Glos Homes,Permanent Nursing,The Heathers,620.2, 09-May-2017
1748,Revenue,CAHD,Bed Purchasing - North,Permanent Nursing,The Heathers,1915.8, 09-May-2017
1749,Revenue,CAHD,South Glos Users in South Glos Homes,Permanent Nursing,The Heathers,620.2, 09-May-2017
1750,Revenue,CAHD,Bed Purchasing - Southmead Hospital,Permanent Nursing,The Heathers,2059.6, 09-May-2017
1751,Revenue,CAHD,South Glos Users in South Glos Homes,Permanent Nursing,The Heathers,620.2, 09-May-2017
1752,Revenue,CAHD,Bed Purchasing - North,Permanent Nursing,The Heathers,18497.14, 09-May-2017
1753,Revenue,CAHD,Bed Purchasing - North,Permanent Nursing,The Heathers,3160.56, 09-May-2017
1754,Revenue,CAHD,Bed Purchasing - North,Permanent Nursing,The Heathers,1580.28, 09-May-2017
1755,Revenue,CAHD,South Glos Users in South Glos Homes,Permanent Nursing,The Heathers,620.2, 09-May-2017
1756,Revenue,CAHD,Bed Purchasing - North,Fees & Charges Income - General,The Heathers,2283.43, 09-May-2017
1757,Revenue,CAHD,Bed Purchasing - North,Fees & Charges Income - General,The Heathers,2821.97, 09-May-2017
1758,Revenue,CAHD,Bed Purchasing - Southmead Hospital,Permanent Nursing,The Heathers,2101.2, 09-May-2017
1759,Revenue,CAHD,South Glos Users in South Glos Homes,Permanent Nursing,The Heathers,620.2, 09-May-2017
1760,Revenue,CAHD,Bed Purchasing - North,Permanent Nursing,The Heathers,1915.8, 09-May-2017
1761,Revenue,CAHD,South Glos Users in South Glos Homes,Permanent Nursing,The Heathers,620.2, 09-May-2017
1762,Revenue,CAHD,Bed Purchasing - North,Permanent Nursing,The Heathers,2501.2, 09-May-2017
1763,Revenue,CAHD,South Glos Users in South Glos Homes,Permanent Nursing,The Heathers,620.2, 09-May-2017
1764,Revenue,CAHD,Bed Purchasing - South,Permanent Nursing,The Heathers,2309.64, 09-May-2017
1765,Revenue,CAHD,South Glos Users in South Glos Homes,Permanent Nursing,The Heathers,620.2, 09-May-2017
1766,Revenue,CAHD,Bed Purchasing - North,Permanent Nursing,The Heathers,2295.88, 09-May-2017
1767,Revenue,CAHD,South Glos Users in South Glos Homes,Permanent Nursing,The Heathers,620.2, 09-May-2017
1768,Revenue,CAHD,South Glos Users in South Glos Homes,Permanent Nursing,The Heathers,620.2, 09-May-2017
1769,Revenue,CAHD,Bed Purchasing - North,Permanent Nursing,The Hollies Nursing Home,3453.54, 09-May-2017
1770,Revenue,CAHD,Bed Purchasing - North,Permanent Nursing,The Hollies Nursing Home,3409.2, 09-May-2017
1771,Revenue,CAHD,Home Care - Elderly - South,Day Care / Social Activities,The Manor House,2124.8, 09-May-2017
1772,Revenue,CAHD,18-25 Year Olds,Day Care / Social Activities,The Manor House,3131.08, 09-May-2017
1773,Revenue,CAHD,Home Care - Elderly - North,Day Care / Social Activities,The Manor House,657.6, 09-May-2017
1774,Revenue,CAHD,18-25 Year Olds,Day Care / Social Activities,The Manor House,1011.76, 09-May-2017
1775,Revenue,CAHD,18-25 Year Olds,Day Care / Social Activities,The Manor House,1011.76, 09-May-2017
1776,Revenue,CAHD,Home Care - Elderly - South,Day Care / Social Activities,The Manor House,1507.44, 09-May-2017
1777,Revenue,CAHD,Home Care - Elderly - South,Day Care / Social Activities,The Manor House,3064.2, 09-May-2017
1778,Revenue,CAHD,Home Care - Elderly - South,Other Small Contracts,The Manor House,1415.72, 09-May-2017
1779,Revenue,CAHD,Home Care - Elderly - South,Day Care / Social Activities,The Manor House,1415.12, 09-May-2017
1780,Revenue,CAHD,Home Care - Elderly - South,Day Care / Social Activities,The Manor House,1770, 09-May-2017
1781,Revenue,CAHD,Bed Purchasing - South,Permanent Residential,The Manor House,3806.28, 09-May-2017
1782,Revenue,CAHD,Bed Purchasing - South,Permanent Residential,The Manor House,4348.6, 09-May-2017
1783,Revenue,CAHD,Bed Purchasing - South,Permanent Residential,The Manor House,5911.88, 09-May-2017
1784,Revenue,CAHD,Bed Purchasing - South,Respite Planned - Residential,The Manor House,1374.1, 09-May-2017
1785,Revenue,CAHD,Bed Purchasing - South,Respite Planned - Residential,The Manor House,1030.57, 09-May-2017
1786,Revenue,CAHD,Bed Purchasing - South,Respite Planned - Residential,The Manor House,517.97, 09-May-2017
1787,Revenue,CAHD,Bed Purchasing - South,Respite Planned - Residential,The Manor House,517.97, 09-May-2017
1788,Revenue,CAHD,Bed Purchasing - South,Respite Planned - Residential,The Manor House,517.97, 09-May-2017
1789,Revenue,CAHD,Bed Purchasing - South,Respite Planned - Residential,The Manor House,517.97, 09-May-2017
1790,Revenue,CAHD,Bed Purchasing - South,Permanent Residential,The Manor House,5486.6, 09-May-2017
1791,Revenue,CAHD,Bed Purchasing - South,Permanent Residential,The Manor House,5414.6, 09-May-2017
1792,Revenue,CAHD,Bed Purchasing - South,Permanent Residential,The Manor House,4606.8, 09-May-2017
1793,Revenue,CAHD,Bed Purchasing - North,Permanent Residential,The Manor House,3978.96, 09-May-2017
1794,Revenue,CAHD,Bed Purchasing - North,Permanent Residential,The Manor House,4604.24, 09-May-2017
1795,Revenue,CAHD,Bed Purchasing - South,Permanent Residential,The Manor House,5436, 09-May-2017
1796,Revenue,CAHD,Bed Purchasing - South,Permanent Residential,The Manor House,3925.8, 09-May-2017
1797,Revenue,CAHD,Bed Purchasing - South,Permanent Residential,The Manor House,3485.32, 09-May-2017
1798,Revenue,CAHD,Jointly Funded H&SC Packages,Permanent Residential,The Manor House,3159.36, 09-May-2017
1799,Revenue,CAHD,Bed purchasing - S28A Under 65 - South,Permanent Residential,The Manor House,5436, 09-May-2017
1800,Revenue,CAHD,Bed Purchasing - South,Permanent Residential,The Manor House,3929.76, 09-May-2017
1801,Revenue,CAHD,Bed Purchasing - South,Permanent Residential,The Manor House,4180.96, 09-May-2017
1802,Revenue,CAHD,Bed Purchasing - South,Permanent Residential,The Manor House,3812.48, 09-May-2017
1803,Revenue,CAHD,Bed Purchasing - South,Permanent Residential,The Manor House,3461.08, 09-May-2017
1804,Revenue,CAHD,Bed Purchasing - South,Permanent Residential,The Manor House,5114.12, 09-May-2017
1805,Revenue,CAHD,Bed Purchasing - South,Permanent Residential,The Manor House,5606.2, 09-May-2017
1806,Revenue,CAHD,Bed Purchasing - South,Permanent Residential,The Manor House,4984.12, 09-May-2017
1807,Revenue,CAHD,Bed Purchasing - South,Permanent Residential,The Manor House,3821.52, 09-May-2017
1808,Revenue,CAHD,Bed Purchasing - South,Respite Planned - Residential,The Manor House,5294.2, 09-May-2017
1809,Revenue,CAHD,Bed Purchasing - South,Permanent Residential,The Manor House,3413.6, 09-May-2017
1810,Revenue,CAHD,Bed Purchasing - South,Permanent Residential,The Manor House,3804.88, 09-May-2017
1811,Revenue,CAHD,Bed Purchasing - South,Respite Planned - Residential,The Manor House,552.51, 09-May-2017
1812,Revenue,CAHD,Bed Purchasing - South,Permanent Residential,The Manor House,3444.2, 09-May-2017
1813,Revenue,CAHD,Bed Purchasing - South,Permanent Residential,The Manor House,5411.84, 09-May-2017
1814,Revenue,CAHD,Home Care - Elderly - South,Supported Living,The Oaks,3146.6, 09-May-2017
1815,Revenue,CAHD,Home Care - Elderly - North,Day Care / Social Activities,The Old School House,589.6, 09-May-2017
1816,Revenue,CAHD,Home Care - Elderly - North,Day Care / Social Activities,The Old School House,884.4, 09-May-2017
1817,Revenue,CAHD,Home Care - Elderly - South,Day Care / Social Activities,The Old School House,589.6, 09-May-2017
1818,Revenue,CAHD,Home Care - Elderly - North,Day Care / Social Activities,The Old School House,589.6, 09-May-2017
1819,Revenue,CAHD,Bed Purchasing - Southmead Hospital,Respite Planned - Residential,The Old Vicarage Residential Home,1788, 09-May-2017
1820,Revenue,CAHD,Bed purchasing - Elderly S117 - South,Permanent Residential,The Old Vicarage Residential Home,2156.24, 09-May-2017
1821,Revenue,CAHD,Bed Purchasing - South,Permanent Residential,The Old Vicarage Residential Home,1930.19, 09-May-2017
1822,Revenue,CAHD,Bed Purchasing - Elderly S117- North,Permanent Residential,The Old Vicarage Residential Home,2036.52, 09-May-2017
1823,Revenue,CAHD,Bed Purchasing - North,Permanent Residential,The Old Vicarage Residential Home,2001.68, 09-May-2017
1824,Revenue,CAHD,Bed Purchasing - North,Permanent Residential,The Old Vicarage Residential Home,2036.52, 09-May-2017
1825,Revenue,CAHD,Bed Purchasing - North,Permanent Residential,The Thomas Moore Project,2384.88, 09-May-2017
1826,Revenue,CAHD,Home Care - Elderly - North,Day Care / Social Activities,The Vassall Centre,504, 09-May-2017
1827,Revenue,CAHD,Home Care - Elderly - North,Day Care / Social Activities,The Vassall Centre,504, 09-May-2017
1828,Revenue,CAHD,Bed Purchasing - North,Permanent Nursing,The Winfield Suite,15793.12, 09-May-2017
1829,Revenue,CAHD,Bed Purchasing - North,Permanent Residential,Tracs Group Ltd,4588, 09-May-2017
1830,Revenue,CAHD,Jointly Funded H&SC Packages,Permanent Residential,Tracs Group Ltd,1205.88, 09-May-2017
1831,Revenue,CAHD,Bed Purchasing - South,Permanent Residential,Tracs Group Ltd,7111.48, 09-May-2017
1832,Revenue,CAHD,Bed Purchasing - South,Permanent Residential,Tracs Group Ltd,7427.32, 09-May-2017
1833,Revenue,CAHD,Bed Purchasing - North,Permanent Residential,Ty Hafod Tudor,4413.68, 09-May-2017
1834,Revenue,CAHD,Home Care - Elderly - North,Supported Living,Unit 1  Sheldon Business Park,526.4, 09-May-2017
1835,Revenue,CAHD,Bed Purchasing - South,Permanent Residential,Unit 4  Falcons Gate,1855.12, 09-May-2017
1836,Revenue,CAHD,Bed Purchasing - Southmead Hospital,Permanent Residential,Unit 4  Falcons Gate,2633.8, 09-May-2017
1837,Revenue,CAHD,Bed Purchasing - Elderly S117- North,Permanent Residential,Unit 4  Falcons Gate,2464.28, 09-May-2017
1838,Revenue,CAHD,Bed Purchasing - North,Permanent Residential,Unit 4  Falcons Gate,2036.52, 09-May-2017
1839,Revenue,CAHD,Bed Purchasing - Southmead Hospital,Permanent Residential,Unit 4  Falcons Gate,2633.8, 09-May-2017
1840,Revenue,CAHD,Bed Purchasing - North,Permanent Nursing,Unit 4  Falcons Gate,3241.6, 09-May-2017
1841,Revenue,CAHD,Bed Purchasing - North,Permanent Nursing,Unit 4  Falcons Gate,3491.04, 09-May-2017
1842,Revenue,CAHD,Bed Purchasing - Elderly S117- North,Permanent Nursing,Unit 4  Falcons Gate,2100.4, 09-May-2017
1843,Revenue,CAHD,Bed Purchasing - Southmead Hospital,Permanent Nursing,Unit 4  Falcons Gate,2836.4, 09-May-2017
1844,Revenue,CAHD,Bed Purchasing - North,Permanent Residential,Unit 4  Falcons Gate,2633.8, 09-May-2017
1845,Revenue,CAHD,Bed Purchasing - Southmead Hospital,Permanent Nursing,Unit 4  Falcons Gate,2464.28, 09-May-2017
1846,Revenue,CAHD,Bed Purchasing - North,Permanent Nursing,Unit 4  Falcons Gate,2100.4, 09-May-2017
1847,Revenue,CAHD,Home Care - Elderly - South,Day Care / Social Activities,Units 10-11   Milestones  Eclipse Office,762.96, 09-May-2017
1848,Revenue,CAHD,Home Care - Elderly - South,Day Care / Social Activities,Units 10-11   Milestones  Eclipse Office,508.64, 09-May-2017
1849,Revenue,CAHD,Home Care - Elderly - North,Day Care / Social Activities,Units 10-11   Milestones  Eclipse Office,1017.28, 09-May-2017
1850,Revenue,CAHD,Home Care - Elderly - South,Day Care / Social Activities,Units 10-11   Milestones  Eclipse Office,508.64, 09-May-2017
1851,Revenue,CAHD,Home Care - Elderly - South,Day Care / Social Activities,Units 10-11   Milestones  Eclipse Office,508.64, 09-May-2017
1852,Revenue,CAHD,Home Care - Elderly - South,Day Care / Social Activities,Units 10-11   Milestones  Eclipse Office,508.64, 09-May-2017
1853,Revenue,CAHD,Home Care - Elderly - South,Day Care / Social Activities,Units 10-11   Milestones  Eclipse Office,890.12, 09-May-2017
1854,Revenue,CAHD,Home Care - Elderly - South,Day Care / Social Activities,Units 10-11   Milestones  Eclipse Office,762.96, 09-May-2017
1855,Revenue,CAHD,Home Care - Elderly - South,Day Care / Social Activities,Units 10-11   Milestones  Eclipse Office,890.12, 09-May-2017
